Workbook

Sheet Main
B10: 2019-01-03
B12: Sheet No. | C12: Template Name | D12: Summary
B13: 1 | C13: Future Intra | D13: For Intraday trading in F&O segment
B14: 2 | C14: Cash Intra | D14: For Intraday trading in cash market segment
B15: 3 | C15: Mid-cap Intra | D15: For Intraday trading in Mid-cap stocks
B16: 4 | C16: Bulk Deals | D16: Reveals Bulk Deals carried on NSE & BSE
B17: 5 | C17: Call Tracker

Sheet Future Intra
M5: Back to Main Page
A6: FOR INTRA DAY TRADING | L6: =Main!B10 -> 2019-01-03
A9: Sr.no | B9: Sector | C9: Scrip | D9: CLOSE RATE | E9: Pivot Point | F9: Supports | I9: Resistances
B10: Sector | D10: Point | E10: Point | F10: S1 | G10: S2 | H10: S3 | I10: R1 | J10: R2 | K10: R3 | L10: HIGH | M10: LOW | N10: OI | O10: % Change in OI
A11: 1 | B11: Index | C11: BANKNIFTY | D11: 27268.50 | E11: 27322.20 | F11: 27121.40 | G11: 26974.30 | H11: 26773.50 | I11: 27469.30 | J11: 27670.10 | K11: 27817.20 | L11: 27523 | M11: 27175.1 | N11: 1551880 | O11: -5.62%
A12: 2 | B12: Index | C12: NIFTY | D12: 10830.85 | E12: 10841.95 | F12: 10745.90 | G12: 10660.95 | H12: 10564.90 | I12: 10926.90 | J12: 11022.95 | K12: 11107.90 | L12: 10938 | M12: 10757 | N12: 24949125 | O12: 3.96%
A13: 3 | B13: Index | C13: NIFTYIT | D13: 14494.00 | E13: 14511.33 | F13: 14391.67 | G13: 14289.33 | H13: 14169.67 | I13: 14613.67 | J13: 14733.33 | K13: 14835.67 | L13: 14631 | M13: 14409 | N13: 20000 | O13: 36.05%
A14: 4 | B14: Cement | C14: ACC | D14: 1488.35 | E14: 1493.53 | F14: 1479.07 | G14: 1469.78 | H14: 1455.32 | I14: 1502.82 | J14: 1517.28 | K14: 1526.57 | L14: 1508 | M14: 1484.25 | N14: 1278800 | O14: -5.36%
A15: 5 | B15: Others | C15: ADANIENT | D15: 155.65 | E15: 155.60 | F15: 152.95 | G15: 150.25 | H15: 147.60 | I15: 158.30 | J15: 160.95 | K15: 163.65 | L15: 158.25 | M15: 152.9 | N15: 34376000 | O15: -0.39%
A16: 6 | B16: Others | C16: ADANIPORTS | D16: 383.20 | E16: 384.85 | F16: 378.30 | G16: 373.40 | H16: 366.85 | I16: 389.75 | J16: 396.30 | K16: 401.20 | L16: 391.4 | M16: 379.95 | N16: 22945000 | O16: -0.95%
A17: 7 | B17: Power | C17: ADANIPOWER | D17: 51.15 | E17: 51.42 | F17: 50.13 | G17: 49.12 | H17: 47.83 | I17: 52.43 | J17: 53.72 | K17: 54.73 | L17: 52.7 | M17: 50.4 | N17: 160300000 | O17: -0.02%
A18: 8 | B18: Pharma | C18: AJANTPHARM | D18: 1168.10 | E18: 1173.92 | F18: 1152.83 | G18: 1137.57 | H18: 1116.48 | I18: 1189.18 | J18: 1210.27 | K18: 1225.53 | L18: 1195 | M18: 1158.65 | N18: 576500 | O18: -9.07%
A19: 9 | B19: Banking | C19: ALBK | D19: 45.20 | E19: 45.80 | F19: 44.40 | G19: 43.60 | H19: 42.20 | I19: 46.60 | J19: 48.00 | K19: 48.80 | L19: 47.2 | M19: 45 | N19: 18889000 | O19: 2.11%
A20: 10 | B20: Automobile | C20: AMARAJABAT | D20: 736.10 | E20: 738.12 | F20: 731.98 | G20: 727.87 | H20: 721.73 | I20: 742.23 | J20: 748.37 | K20: 752.48 | L20: 744.25 | M20: 734 | N20: 1073100 | O20: -0.78%
A21: 11 | B21: Cement | C21: AMBUJACEM | D21: 220.15 | E21: 221.17 | F21: 218.18 | G21: 216.22 | H21: 213.23 | I21: 223.13 | J21: 226.12 | K21: 228.08 | L21: 224.15 | M21: 219.2 | N21: 14617500 | O21: 1.63%
A22: 12 | B22: Others | C22: APOLLOHOSP | D22: 1263.35 | E22: 1271.08 | F22: 1249.17 | G22: 1234.98 | H22: 1213.07 | I22: 1285.27 | J22: 1307.18 | K22: 1321.37 | L22: 1293 | M22: 1256.9 | N22: 835500 | O22: -4.51%
A23: 13 | B23: Automobile | C23: APOLLOTYRE | D23: 231.95 | E23: 232.90 | F23: 229.10 | G23: 226.25 | H23: 222.45 | I23: 235.75 | J23: 239.55 | K23: 242.40 | L23: 236.7 | M23: 230.05 | N23: 9633000 | O23: -4.09%
A24: 14 | B24: Textile | C24: ARVIND | D24: 96.65 | E24: 97.45 | F24: 95.60 | G24: 94.55 | H24: 92.70 | I24: 98.50 | J24: 100.35 | K24: 101.40 | L24: 99.3 | M24: 96.4 | N24: 5908000 | O24: 4.79%
A25: 15 | B25: Automobile | C25: ASHOKLEY | D25: 100.50 | E25: 100.80 | F25: 98.80 | G25: 97.10 | H25: 95.10 | I25: 102.50 | J25: 104.50 | K25: 106.20 | L25: 102.8 | M25: 99.1 | N25: 67124000 | O25: 6.67%
A26: 16 | B26: FMCG | C26: ASIANPAINT | D26: 1390.90 | E26: 1385.18 | F26: 1375.67 | G26: 1360.43 | H26: 1350.92 | I26: 1400.42 | J26: 1409.93 | K26: 1425.17 | L26: 1394.7 | M26: 1369.95 | N26: 5418000 | O26: 6.22%
A27: 17 | B27: Pharma | C27: AUROPHARMA | D27: 726.05 | E27: 727.58 | F27: 719.47 | G27: 712.88 | H27: 704.77 | I27: 734.17 | J27: 742.28 | K27: 748.87 | L27: 735.7 | M27: 721 | N27: 20743000 | O27: -1.07%
A28: 18 | B28: Banking | C28: AXISBANK | D28: 622.55 | E28: 625.13 | F28: 618.52 | G28: 614.48 | H28: 607.87 | I28: 629.17 | J28: 635.78 | K28: 639.82 | L28: 631.75 | M28: 621.1 | N28: 34634400 | O28: 0.33%
A29: 19 | B29: Automobile | C29: BAJAJ-AUTO | D29: 2700.30 | E29: 2714.15 | F29: 2669.30 | G29: 2638.30 | H29: 2593.45 | I29: 2745.15 | J29: 2790.00 | K29: 2821.00 | L29: 2759 | M29: 2683.15 | N29: 2330250 | O29: 2.37%
A30: 20 | B30: Others | C30: BAJAJFINSV | D30: 6428.10 | E30: 6465.03 | F30: 6362.07 | G30: 6296.03 | H30: 6193.07 | I30: 6531.07 | J30: 6634.03 | K30: 6700.07 | L30: 6568 | M30: 6399 | N30: 666750 | O30: 2.91%
A31: 21 | B31: Finance | C31: BAJFINANCE | D31: 2628.20 | E31: 2637.03 | F31: 2601.02 | G31: 2573.83 | H31: 2537.82 | I31: 2664.22 | J31: 2700.23 | K31: 2727.42 | L31: 2673.05 | M31: 2609.85 | N31: 5745000 | O31: -1.87%
A32: 22 | B32: Others | C32: BALKRISIND | D32: 916.80 | E32: 922.07 | F32: 907.13 | G32: 897.47 | H32: 882.53 | I32: 931.73 | J32: 946.67 | K32: 956.33 | L32: 937 | M32: 912.4 | N32: 2573600 | O32: 0.53%
A33: 23 | B33: Banking | C33: BANKBARODA | D33: 120.05 | E33: 121.30 | F33: 117.40 | G33: 114.75 | H33: 110.85 | I33: 123.95 | J33: 127.85 | K33: 130.50 | L33: 125.2 | M33: 118.65 | N33: 58020000 | O33: 1.34%
A34: 24 | B34: Banking | C34: BANKINDIA | D34: 105.40 | E34: 105.97 | F34: 103.53 | G34: 101.67 | H34: 99.23 | I34: 107.83 | J34: 110.27 | K34: 112.13 | L34: 108.4 | M34: 104.1 | N34: 26202000 | O34: -1.13%
A35: 25 | B35: FMCG | C35: BATAINDIA | D35: 1112.55 | E35: 1115.13 | F35: 1101.47 | G35: 1090.38 | H35: 1076.72 | I35: 1126.22 | J35: 1139.88 | K35: 1150.97 | L35: 1128.8 | M35: 1104.05 | N35: 2086700 | O35: -2.74%
A36: 26 | B36: Capital_Goods | C36: BEL | D36: 89.10 | E36: 88.17 | F36: 86.83 | G36: 84.57 | H36: 83.23 | I36: 90.43 | J36: 91.77 | K36: 94.03 | L36: 89.5 | M36: 85.9 | N36: 35460000 | O36: -0.69%
A37: 27 | B37: Infrastructure | C37: BEML | D37: 928.55 | E37: 921.40 | F37: 908.40 | G37: 888.25 | H37: 875.25 | I37: 941.55 | J37: 954.55 | K37: 974.70 | L37: 934.4 | M37: 901.25 | N37: 1724800 | O37: 12.05%
A38: 28 | B38: Others | C38: BERGEPAINT | D38: 329.25 | E38: 329.92 | F38: 326.83 | G38: 324.42 | H38: 321.33 | I38: 332.33 | J38: 335.42 | K38: 337.83 | L38: 333 | M38: 327.5 | N38: 2288000 | O38: 9.59%
A39: 29 | B39: Finance | C39: BHARATFIN | D39: 1006.15 | E39: 1008.50 | F39: 997.65 | G39: 989.15 | H39: 978.30 | I39: 1017.00 | J39: 1027.85 | K39: 1036.35 | L39: 1019.35 | M39: 1000 | N39: 4328500 | O39: -1.28%
A40: 30 | B40: Automobile | C40: BHARATFORG | D40: 496.70 | E40: 500.87 | F40: 488.43 | G40: 480.17 | H40: 467.73 | I40: 509.13 | J40: 521.57 | K40: 529.83 | L40: 513.3 | M40: 492.6 | N40: 11470800 | O40: 7.26%
A41: 31 | B41: Telecom | C41: BHARTIARTL | D41: 314.75 | E41: 315.92 | F41: 309.03 | G41: 303.32 | H41: 296.43 | I41: 321.63 | J41: 328.52 | K41: 334.23 | L41: 322.8 | M41: 310.2 | N41: 33661700 | O41: 0.17%
A42: 32 | B42: Capital_Goods | C42: BHEL | D42: 73.00 | E42: 73.40 | F42: 71.90 | G42: 70.80 | H42: 69.30 | I42: 74.50 | J42: 76.00 | K42: 77.10 | L42: 74.9 | M42: 72.3 | N42: 44430000 | O42: -1.95%
A43: 33 | B43: Pharma | C43: BIOCON | D43: 626.25 | E43: 627.50 | F43: 620.45 | G43: 614.65 | H43: 607.60 | I43: 633.30 | J43: 640.35 | K43: 646.15 | L43: 634.55 | M43: 621.7 | N43: 5304600 | O43: -1.93%
A44: 34 | B44: Automobile | C44: BOSCHLTD | D44: 19598.50 | E44: 19633.15 | F44: 19516.35 | G44: 19434.20 | H44: 19317.40 | I44: 19715.30 | J44: 19832.10 | K44: 19914.25 | L44: 19749.95 | M44: 19551 | N44: 135660 | O44: 0.87%
A45: 35 | B45: Oil_Gas | C45: BPCL | D45: 355.15 | E45: 353.00 | F45: 346.60 | G45: 338.05 | H45: 331.65 | I45: 361.55 | J45: 367.95 | K45: 376.50 | L45: 359.4 | M45: 344.45 | N45: 10036800 | O45: 1.51%
A46: 36 | B46: FMCG | C46: BRITANNIA | D46: 3127.85 | E46: 3126.28 | F46: 3102.57 | G46: 3077.28 | H46: 3053.57 | I46: 3151.57 | J46: 3175.28 | K46: 3200.57 | L46: 3150 | M46: 3101 | N46: 2783800 | O46: -0.22%
A47: 37 | B47: Pharma | C47: CADILAHC | D47: 347.55 | E47: 347.50 | F47: 343.55 | G47: 339.55 | H47: 335.60 | I47: 351.50 | J47: 355.45 | K47: 359.45 | L47: 351.45 | M47: 343.5 | N47: 8128000 | O47: -1.05%
A48: 38 | B48: Banking | C48: CANBK | D48: 276.95 | E48: 278.95 | F48: 272.65 | G48: 268.35 | H48: 262.05 | I48: 283.25 | J48: 289.55 | K48: 293.85 | L48: 285.25 | M48: 274.65 | N48: 10706000 | O48: -4.85%
A49: 39 | B49: Others | C49: CANFINHOME | D49: 282.60 | E49: 284.58 | F49: 277.12 | G49: 271.63 | H49: 264.17 | I49: 290.07 | J49: 297.53 | K49: 303.02 | L49: 292.05 | M49: 279.1 | N49: 4440600 | O49: -1.79%
A50: 40 | B50: Oil_Gas | C50: CASTROLIND | D50: 148.25 | E50: 149.45 | F50: 146.45 | G50: 144.65 | H50: 141.65 | I50: 151.25 | J50: 154.25 | K50: 156.05 | L50: 152.45 | M50: 147.65 | N50: 7578600 | O50: 1.64%
A51: 41 | B51: Automobile | C51: CEATLTD | D51: 1296.65 | E51: 1298.43 | F51: 1280.72 | G51: 1264.78 | H51: 1247.07 | I51: 1314.37 | J51: 1332.08 | K51: 1348.02 | L51: 1316.15 | M51: 1282.5 | N51: 677200 | O51: -1.40%
A52: 42 | B52: Textile | C52: CENTURYTEX | D52: 909.75 | E52: 913.75 | F52: 900.00 | G52: 890.25 | H52: 876.50 | I52: 923.50 | J52: 937.25 | K52: 947.00 | L52: 927.5 | M52: 904 | N52: 4440600 | O52: 0.23%
A53: 43 | B53: Power | C53: CESC | D53: 669.65 | E53: 670.72 | F53: 664.18 | G53: 658.72 | H53: 652.18 | I53: 676.18 | J53: 682.72 | K53: 688.18 | L53: 677.25 | M53: 665.25 | N53: 2072400 | O53: 1.84%
A54: 44 | B54: Power | C54: CGPOWER | D54: 44.65 | E54: 45.00 | F54: 43.95 | G54: 43.25 | H54: 42.20 | I54: 45.70 | J54: 46.75 | K54: 47.45 | L54: 46.05 | M54: 44.3 | N54: 40092000 | O54: -0.48%
A55: 45 | B55: Others | C55: CHENNPETRO | D55: 282.05 | E55: 283.38 | F55: 276.47 | G55: 270.88 | H55: 263.97 | I55: 288.97 | J55: 295.88 | K55: 301.47 | L55: 290.3 | M55: 277.8 | N55: 1188000 | O55: -8.71%
A56: 46 | B56: Others | C56: CHOLAFIN | D56: 1242.35 | E56: 1249.45 | F56: 1224.90 | G56: 1207.45 | H56: 1182.90 | I56: 1266.90 | J56: 1291.45 | K56: 1308.90 | L56: 1274 | M56: 1232 | N56: 1164500 | O56: -0.56%
A57: 47 | B57: Pharma | C57: CIPLA | D57: 517.60 | E57: 518.85 | F57: 513.20 | G57: 508.80 | H57: 503.15 | I57: 523.25 | J57: 528.90 | K57: 533.30 | L57: 524.5 | M57: 514.45 | N57: 8476000 | O57: 3.59%
A58: 48 | B58: Others | C58: COALINDIA | D58: 236.65 | E58: 237.30 | F58: 234.65 | G58: 232.65 | H58: 230.00 | I58: 239.30 | J58: 241.95 | K58: 243.95 | L58: 239.95 | M58: 235.3 | N58: 31416000 | O58: -1.08%
A59: 49 | B59: FMCG | C59: COLPAL | D59: 1304.20 | E59: 1307.40 | F59: 1296.80 | G59: 1289.40 | H59: 1278.80 | I59: 1314.80 | J59: 1325.40 | K59: 1332.80 | L59: 1318 | M59: 1300 | N59: 1320900 | O59: 9.90%
A60: 50 | B60: Others | C60: CONCOR | D60: 671.05 | E60: 675.90 | F60: 660.80 | G60: 650.55 | H60: 635.45 | I60: 686.15 | J60: 701.25 | K60: 711.50 | L60: 691 | M60: 665.65 | N60: 2365000 | O60: 3.28%
A61: 51 | B61: Capital_Goods | C61: CUMMINSIND | D61: 851.00 | E61: 851.23 | F61: 841.47 | G61: 831.93 | H61: 822.17 | I61: 860.77 | J61: 870.53 | K61: 880.07 | L61: 861 | M61: 841.7 | N61: 1500800 | O61: -2.63%
A62: 52 | B62: FMCG | C62: DABUR | D62: 419.05 | E62: 419.90 | F62: 412.35 | G62: 405.65 | H62: 398.10 | I62: 426.60 | J62: 434.15 | K62: 440.85 | L62: 427.45 | M62: 413.2 | N62: 11737500 | O62: 5.19%
A63: 53 | B63: Banking | C63: DCBBANK | D63: 169.25 | E63: 170.07 | F63: 167.23 | G63: 165.22 | H63: 162.38 | I63: 172.08 | J63: 174.92 | K63: 176.93 | L63: 172.9 | M63: 168.05 | N63: 4027500 | O63: -5.09%
A64: 54 | B64: Finance | C64: DHFL | D64: 241.40 | E64: 243.43 | F64: 237.62 | G64: 233.83 | H64: 228.02 | I64: 247.22 | J64: 253.03 | K64: 256.82 | L64: 249.25 | M64: 239.65 | N64: 17980500 | O64: -3.36%
A65: 55 | B65: Media | C65: DISHTV | D65: 38.50 | E65: 38.27 | F65: 37.68 | G65: 36.87 | H65: 36.28 | I65: 39.08 | J65: 39.67 | K65: 40.48 | L65: 38.85 | M65: 37.45 | N65: 52544000 | O65: -0.70%
A66: 56 | B66: Pharma | C66: DIVISLAB | D66: 1478.45 | E66: 1478.25 | F66: 1466.50 | G66: 1454.55 | H66: 1442.80 | I66: 1490.20 | J66: 1501.95 | K66: 1513.90 | L66: 1490 | M66: 1466.3 | N66: 3083600 | O66: 0.33%
A67: 57 | B67: Realty | C67: DLF | D67: 173.80 | E67: 175.75 | F67: 170.75 | G67: 167.70 | H67: 162.70 | I67: 178.80 | J67: 183.80 | K67: 186.85 | L67: 180.75 | M67: 172.7 | N67: 25763400 | O67: 5.11%
A68: 58 | B68: Pharma | C68: DRREDDY | D68: 2618.35 | E68: 2613.38 | F68: 2594.77 | G68: 2571.18 | H68: 2552.57 | I68: 2636.97 | J68: 2655.58 | K68: 2679.17 | L68: 2632 | M68: 2589.8 | N68: 3881000 | O68: 3.43%
A69: 59 | B69: Automobile | C69: EICHERMOT | D69: 21271.45 | E69: 21590.82 | F69: 20781.63 | G69: 20291.82 | H69: 19482.63 | I69: 22080.63 | J69: 22889.82 | K69: 23379.63 | L69: 22400 | M69: 21101 | N69: 341550 | O69: 26.85%
A70: 60 | B70: Infrastructure | C70: ENGINERSIN | D70: 124.15 | E70: 124.93 | F70: 123.02 | G70: 121.88 | H70: 119.97 | I70: 126.07 | J70: 127.98 | K70: 129.12 | L70: 126.85 | M70: 123.8 | N70: 7999100 | O70: 1.09%
A71: 61 | B71: Finance | C71: EQUITAS | D71: 123.60 | E71: 124.53 | F71: 121.87 | G71: 120.13 | H71: 117.47 | I71: 126.27 | J71: 128.93 | K71: 130.67 | L71: 127.2 | M71: 122.8 | N71: 8124000 | O71: 0.79%
A72: 62 | B72: Automobile | C72: ESCORTS | D72: 710.75 | E72: 715.63 | F72: 698.47 | G72: 686.18 | H72: 669.02 | I72: 727.92 | J72: 745.08 | K72: 757.37 | L72: 732.8 | M72: 703.35 | N72: 4452800 | O72: 1.25%
A73: 63 | B73: Automobile | C73: EXIDEIND | D73: 262.05 | E73: 264.17 | F73: 258.93 | G73: 255.82 | H73: 250.58 | I73: 267.28 | J73: 272.52 | K73: 275.63 | L73: 269.4 | M73: 261.05 | N73: 4934000 | O73: 1.07%
A74: 64 | B74: Banking | C74: FEDERALBNK | D74: 95.45 | E74: 95.23 | F74: 94.07 | G74: 92.68 | H74: 91.52 | I74: 96.62 | J74: 97.78 | K74: 99.17 | L74: 96.4 | M74: 93.85 | N74: 46585000 | O74: 13.24%
A75: 65 | B75: Oil_Gas | C75: GAIL | D75: 349.35 | E75: 350.98 | F75: 344.57 | G75: 339.78 | H75: 333.37 | I75: 355.77 | J75: 362.18 | K75: 366.97 | L75: 357.4 | M75: 346.2 | N75: 11873484 | O75: 3.97%
A76: 66 | B76: Pharma | C76: GLENMARK | D76: 686.55 | E76: 686.53 | F76: 677.02 | G76: 667.48 | H76: 657.97 | I76: 696.07 | J76: 705.58 | K76: 715.12 | L76: 696.05 | M76: 677 | N76: 3831000 | O76: 1.59%
A77: 67 | B77: Infrastructure | C77: GMRINFRA | D77: 16.05 | E77: 16.17 | F77: 15.78 | G77: 15.52 | H77: 15.13 | I77: 16.43 | J77: 16.82 | K77: 17.08 | L77: 16.55 | M77: 15.9 | N77: 168570000 | O77: -1.63%
A78: 68 | B78: Others | C78: GODFRYPHLP | D78: 872.25 | E78: 877.58 | F78: 857.47 | G78: 842.68 | H78: 822.57 | I78: 892.37 | J78: 912.48 | K78: 927.27 | L78: 897.7 | M78: 862.8 | N78: 527100 | O78: -4.44%
A79: 69 | B79: FMCG | C79: GODREJCP | D79: 810.45 | E79: 811.97 | F79: 799.33 | G79: 788.22 | H79: 775.58 | I79: 823.08 | J79: 835.72 | K79: 846.83 | L79: 824.6 | M79: 800.85 | N79: 4233600 | O79: 0.00%
A80: 70 | B80: FMCG | C80: GODREJIND | D80: 539.40 | E80: 541.87 | F80: 533.93 | G80: 528.47 | H80: 520.53 | I80: 547.33 | J80: 555.27 | K80: 560.73 | L80: 549.8 | M80: 536.4 | N80: 1878000 | O80: -3.62%
A81: 71 | B81: Cement | C81: GRASIM | D81: 820.65 | E81: 826.87 | F81: 811.83 | G81: 803.02 | H81: 787.98 | I81: 835.68 | J81: 850.72 | K81: 859.53 | L81: 841.9 | M81: 818.05 | N81: 9719250 | O81: 1.32%
A82: 72 | B82: Others | C82: GSFC | D82: 112.20 | E82: 113.90 | F82: 109.80 | G82: 107.40 | H82: 103.30 | I82: 116.30 | J82: 120.40 | K82: 122.80 | L82: 118 | M82: 111.5 | N82: 14969500 | O82: -3.34%
A83: 73 | B83: Others | C83: HAVELLS | D83: 693.75 | E83: 696.90 | F83: 688.70 | G83: 683.65 | H83: 675.45 | I83: 701.95 | J83: 710.15 | K83: 715.20 | L83: 705.1 | M83: 691.85 | N83: 4589000 | O83: 0.07%
A84: 74 | B84: Technology | C84: HCLTECH | D84: 951.15 | E84: 953.58 | F84: 941.32 | G84: 931.48 | H84: 919.22 | I84: 963.42 | J84: 975.68 | K84: 985.52 | L84: 965.85 | M84: 943.75 | N84: 9559900 | O84: 2.96%
A85: 75 | B85: Finance | C85: HDFC | D85: 1990.85 | E85: 1994.17 | F85: 1969.33 | G85: 1947.82 | H85: 1922.98 | I85: 2015.68 | J85: 2040.52 | K85: 2062.03 | L85: 2019 | M85: 1972.65 | N85: 25979000 | O85: -0.56%
A86: 76 | B86: Banking | C86: HDFCBANK | D86: 2136.45 | E86: 2141.48 | F86: 2125.02 | G86: 2113.58 | H86: 2097.12 | I86: 2152.92 | J86: 2169.38 | K86: 2180.82 | L86: 2157.95 | M86: 2130.05 | N86: 12625500 | O86: -0.82%
A87: 77 | B87: Automobile | C87: HEROMOTOCO | D87: 3062.95 | E87: 3084.03 | F87: 3023.07 | G87: 2983.18 | H87: 2922.22 | I87: 3123.92 | J87: 3184.88 | K87: 3224.77 | L87: 3145 | M87: 3044.15 | N87: 1468400 | O87: 1.62%
A88: 78 | B88: Technology | C88: HEXAWARE | D88: 331.30 | E88: 334.58 | F88: 326.37 | G88: 321.43 | H88: 313.22 | I88: 339.52 | J88: 347.73 | K88: 352.67 | L88: 342.8 | M88: 329.65 | N88: 2776500 | O88: -2.58%
A89: 79 | B89: Metals | C89: HINDALCO | D89: 215.10 | E89: 216.60 | F89: 212.55 | G89: 210.00 | H89: 205.95 | I89: 219.15 | J89: 223.20 | K89: 225.75 | L89: 220.65 | M89: 214.05 | N89: 32865000 | O89: 14.11%
A90: 80 | B90: Oil_Gas | C90: HINDPETRO | D90: 253.15 | E90: 250.17 | F90: 244.63 | G90: 236.12 | H90: 230.58 | I90: 258.68 | J90: 264.22 | K90: 272.73 | L90: 255.7 | M90: 241.65 | N90: 15796200 | O90: 10.18%
A91: 81 | B91: FMCG | C91: HINDUNILVR | D91: 1794.95 | E91: 1797.72 | F91: 1777.48 | G91: 1760.02 | H91: 1739.78 | I91: 1815.18 | J91: 1835.42 | K91: 1852.88 | L91: 1817.95 | M91: 1780.25 | N91: 10146000 | O91: 1.03%
A92: 82 | B92: Metals | C92: HINDZINC | D92: 271.95 | E92: 273.37 | F92: 269.73 | G92: 267.52 | H92: 263.88 | I92: 275.58 | J92: 279.22 | K92: 281.43 | L92: 277 | M92: 271.15 | N92: 5692800 | O92: 3.73%
A93: 83 | B93: Finance | C93: IBULHSGFIN | D93: 838.50 | E93: 842.78 | F93: 828.77 | G93: 819.03 | H93: 805.02 | I93: 852.52 | J93: 866.53 | K93: 876.27 | L93: 856.8 | M93: 833.05 | N93: 12304500 | O93: -0.72%
A94: 84 | B94: Banking | C94: ICICIBANK | D94: 365.20 | E94: 365.15 | F94: 361.45 | G94: 357.70 | H94: 354.00 | I94: 368.90 | J94: 372.60 | K94: 376.35 | L94: 368.85 | M94: 361.4 | N94: 78655500 | O94: 0.91%
A95: 85 | B95: Others | C95: ICICIPRULI | D95: 320.80 | E95: 321.98 | F95: 317.62 | G95: 314.43 | H95: 310.07 | I95: 325.17 | J95: 329.53 | K95: 332.72 | L95: 326.35 | M95: 318.8 | N95: 3672000 | O95: -1.29%
A96: 86 | B96: Banking | C96: IDBI | D96: 61.45 | E96: 61.55 | F96: 61.25 | G96: 61.05 | H96: 60.75 | I96: 61.75 | J96: 62.05 | K96: 62.25 | L96: 61.85 | M96: 61.35 | N96: 30470000 | O96: -1.10%
A97: 87 | B97: Telecom | C97: IDEA | D97: 36.90 | E97: 37.13 | F97: 36.32 | G97: 35.73 | H97: 34.92 | I97: 37.72 | J97: 38.53 | K97: 39.12 | L97: 37.95 | M97: 36.55 | N97: 133812000 | O97: -0.95%
A98: 88 | B98: Finance | C98: IDFC | D98: 42.40 | E98: 42.88 | F98: 41.77 | G98: 41.13 | H98: 40.02 | I98: 43.52 | J98: 44.63 | K98: 45.27 | L98: 44 | M98: 42.25 | N98: 97746000 | O98: -0.54%
A99: 89 | B99: Banking | C99: IDFCBANK | D99: 42.65 | E99: 42.83 | F99: 41.97 | G99: 41.28 | H99: 40.42 | I99: 43.52 | J99: 44.38 | K99: 45.07 | L99: 43.7 | M99: 42.15 | N99: 157764000 | O99: -0.33%
A100: 90 | B100: Finance | C100: IFCI | D100: 14.70 | E100: 14.83 | F100: 14.37 | G100: 14.03 | H100: 13.57 | I100: 15.17 | J100: 15.63 | K100: 15.97 | L100: 15.3 | M100: 14.5 | N100: 53795000 | O100: -1.16%
A101: 91 | B101: Oil_Gas | C101: IGL | D101: 275.30 | E101: 274.45 | F101: 272.20 | G101: 269.10 | H101: 266.85 | I101: 277.55 | J101: 279.80 | K101: 282.90 | L101: 276.7 | M101: 271.35 | N101: 5161750 | O101: -6.10%
A102: 92 | B102: Cement | C102: INDIACEM | D102: 94.20 | E102: 95.05 | F102: 92.80 | G102: 91.40 | H102: 89.15 | I102: 96.45 | J102: 98.70 | K102: 100.10 | L102: 97.3 | M102: 93.65 | N102: 15642000 | O102: 0.99%
A103: 93 | B103: Banking | C103: INDIANB | D103: 246.85 | E103: 249.43 | F103: 242.42 | G103: 237.98 | H103: 230.97 | I103: 253.87 | J103: 260.88 | K103: 265.32 | L103: 256.45 | M103: 245 | N103: 4140000 | O103: -1.10%
A104: 94 | B104: Others | C104: INDIGO | D104: 1168.85 | E104: 1171.73 | F104: 1157.62 | G104: 1146.38 | H104: 1132.27 | I104: 1182.97 | J104: 1197.08 | K104: 1208.32 | L104: 1185.85 | M104: 1160.5 | N104: 2563800 | O104: 1.47%
A105: 95 | B105: Banking | C105: INDUSINDBK | D105: 1585.60 | E105: 1589.63 | F105: 1572.67 | G105: 1559.73 | H105: 1542.77 | I105: 1602.57 | J105: 1619.53 | K105: 1632.47 | L105: 1606.6 | M105: 1576.7 | N105: 6361500 | O105: 2.35%
A106: 96 | B106: Technology | C106: INFIBEAM | D106: 46.45 | E106: 46.63 | F106: 45.42 | G106: 44.38 | H106: 43.17 | I106: 47.67 | J106: 48.88 | K106: 49.92 | L106: 47.85 | M106: 45.6 | N106: 11516000 | O106: -2.11%
A107: 97 | B107: Telecom | C107: INFRATEL | D107: 265.55 | E107: 264.10 | F107: 260.85 | G107: 256.15 | H107: 252.90 | I107: 268.80 | J107: 272.05 | K107: 276.75 | L107: 267.35 | M107: 259.4 | N107: 8412000 | O107: -0.57%
A108: 98 | B108: Technology | C108: INFY | D108: 670.90 | E108: 670.57 | F108: 664.83 | G108: 658.77 | H108: 653.03 | I108: 676.63 | J108: 682.37 | K108: 688.43 | L108: 676.3 | M108: 664.5 | N108: 43395600 | O108: -0.56%
A109: 99 | B109: Oil_Gas | C109: IOC | D109: 137.80 | E109: 137.12 | F109: 135.33 | G109: 132.87 | H109: 131.08 | I109: 139.58 | J109: 141.37 | K109: 143.83 | L109: 138.9 | M109: 134.65 | N109: 53753000 | O109: -3.78%
A110: 100 | B110: Infrastructure | C110: IRB | D110: 159.50 | E110: 161.20 | F110: 156.50 | G110: 153.50 | H110: 148.80 | I110: 164.20 | J110: 168.90 | K110: 171.90 | L110: 165.9 | M110: 158.2 | N110: 6691200 | O110: -2.92%
A111: 101 | B111: FMCG | C111: ITC | D111: 281.35 | E111: 281.38 | F111: 278.27 | G111: 275.18 | H111: 272.07 | I111: 284.47 | J111: 287.58 | K111: 290.67 | L111: 284.5 | M111: 278.3 | N111: 77304000 | O111: 1.09%
A112: 102 | B112: Others | C112: JETAIRWAYS | D112: 252.65 | E112: 258.28 | F112: 243.67 | G112: 234.68 | H112: 220.07 | I112: 267.27 | J112: 281.88 | K112: 290.87 | L112: 272.9 | M112: 249.3 | N112: 6635200 | O112: 12.24%
A113: 103 | B113: Metals | C113: JINDALSTEL | D113: 158.45 | E113: 158.83 | F113: 156.52 | G113: 154.58 | H113: 152.27 | I113: 160.77 | J113: 163.08 | K113: 165.02 | L113: 161.15 | M113: 156.9 | N113: 22122000 | O113: 1.79%
A114: 104 | B114: Others | C114: JISLJALEQS | D114: 67.85 | E114: 68.35 | F114: 66.80 | G114: 65.75 | H114: 64.20 | I114: 69.40 | J114: 70.95 | K114: 72.00 | L114: 69.9 | M114: 67.3 | N114: 33876000 | O114: 2.51%
A115: 105 | B115: Realty | C115: JPASSOCIAT | D115: 7.45 | E115: 7.60 | F115: 7.20 | G115: 6.95 | H115: 6.55 | I115: 7.85 | J115: 8.25 | K115: 8.50 | L115: 8 | M115: 7.35 | N115: 111540000 | O115: -5.10%
A116: 106 | B116: Metals | C116: JSWSTEEL | D116: 290.05 | E116: 292.87 | F116: 285.73 | G116: 281.42 | H116: 274.28 | I116: 297.18 | J116: 304.32 | K116: 308.63 | L116: 300 | M116: 288.55 | N116: 48033000 | O116: 1.50%
A117: 107 | B117: Others | C117: JUBLFOOD | D117: 1246.65 | E117: 1255.55 | F117: 1227.10 | G117: 1207.55 | H117: 1179.10 | I117: 1275.10 | J117: 1303.55 | K117: 1323.10 | L117: 1284 | M117: 1236 | N117: 2768500 | O117: 12.98%
A118: 108 | B118: Others | C118: JUSTDIAL | D118: 496.05 | E118: 498.35 | F118: 490.50 | G118: 484.95 | H118: 477.10 | I118: 503.90 | J118: 511.75 | K118: 517.30 | L118: 506.2 | M118: 492.8 | N118: 2140600 | O118: -5.33%
A119: 109 | B119: Others | C119: KAJARIACER | D119: 496.65 | E119: 495.75 | F119: 490.55 | G119: 484.45 | H119: 479.25 | I119: 501.85 | J119: 507.05 | K119: 513.15 | L119: 500.95 | M119: 489.65 | N119: 2505100 | O119: -2.53%
A120: 110 | B120: Banking | C120: KOTAKBANK | D120: 1244.60 | E120: 1242.98 | F120: 1232.42 | G120: 1220.23 | H120: 1209.67 | I120: 1255.17 | J120: 1265.73 | K120: 1277.92 | L120: 1253.55 | M120: 1230.8 | N120: 11366400 | O120: 0.32%
A121: 111 | B121: Technology | C121: KPIT | D121: 217.05 | E121: 218.23 | F121: 215.02 | G121: 212.98 | H121: 209.77 | I121: 220.27 | J121: 223.48 | K121: 225.52 | L121: 221.45 | M121: 216.2 | N121: 5022000 | O121: -1.50%
A122: 112 | B122: Others | C122: KSCL | D122: 563.05 | E122: 567.75 | F122: 555.50 | G122: 547.95 | H122: 535.70 | I122: 575.30 | J122: 587.55 | K122: 595.10 | L122: 580 | M122: 560.2 | N122: 1077000 | O122: -2.31%
A123: 113 | B123: Banking | C123: KTKBANK | D123: 112.20 | E123: 112.73 | F123: 110.82 | G123: 109.43 | H123: 107.52 | I123: 114.12 | J123: 116.03 | K123: 117.42 | L123: 114.65 | M123: 111.35 | N123: 15256200 | O123: -1.25%
A124: 114 | B124: Finance | C124: L&TFH | D124: 150.85 | E124: 151.60 | F124: 148.75 | G124: 146.65 | H124: 143.80 | I124: 153.70 | J124: 156.55 | K124: 158.65 | L124: 154.45 | M124: 149.5 | N124: 18517500 | O124: -0.36%
A125: 115 | B125: Finance | C125: LICHSGFIN | D125: 479.15 | E125: 481.53 | F125: 473.97 | G125: 468.78 | H125: 461.22 | I125: 486.72 | J125: 494.28 | K125: 499.47 | L125: 489.1 | M125: 476.35 | N125: 8120200 | O125: -1.34%
A126: 116 | B126: Capital_Goods | C126: LT | D126: 1433.00 | E126: 1435.72 | F126: 1418.43 | G126: 1403.87 | H126: 1386.58 | I126: 1450.28 | J126: 1467.57 | K126: 1482.13 | L126: 1453 | M126: 1421.15 | N126: 9606000 | O126: 0.61%
A127: 117 | B127: Pharma | C127: LUPIN | D127: 837.85 | E127: 839.70 | F127: 828.15 | G127: 818.45 | H127: 806.90 | I127: 849.40 | J127: 860.95 | K127: 870.65 | L127: 851.25 | M127: 830 | N127: 8506400 | O127: 1.20%
A128: 118 | B128: Automobile | C128: M&M | D128: 746.25 | E128: 753.23 | F128: 731.47 | G128: 716.68 | H128: 694.92 | I128: 768.02 | J128: 789.78 | K128: 804.57 | L128: 775 | M128: 738.45 | N128: 15413000 | O128: 9.00%
A129: 119 | B129: Finance | C129: M&MFIN | D129: 468.75 | E129: 469.40 | F129: 462.40 | G129: 456.05 | H129: 449.05 | I129: 475.75 | J129: 482.75 | K129: 489.10 | L129: 476.4 | M129: 463.05 | N129: 9437500 | O129: -0.97%
A130: 120 | B130: Others | C130: MANAPPURAM | D130: 92.70 | E130: 92.95 | F130: 91.60 | G130: 90.50 | H130: 89.15 | I130: 94.05 | J130: 95.40 | K130: 96.50 | L130: 94.3 | M130: 91.85 | N130: 11982000 | O130: -3.20%
A131: 121 | B131: FMCG | C131: MARICO | D131: 374.20 | E131: 374.42 | F131: 369.93 | G131: 365.67 | H131: 361.18 | I131: 378.68 | J131: 383.17 | K131: 387.43 | L131: 378.9 | M131: 370.15 | N131: 8018400 | O131: 1.18%
A132: 122 | B132: Automobile | C132: MARUTI | D132: 7314.35 | E132: 7370.08 | F132: 7236.17 | G132: 7157.98 | H132: 7024.07 | I132: 7448.27 | J132: 7582.18 | K132: 7660.37 | L132: 7504 | M132: 7291.9 | N132: 2429250 | O132: 4.11%
A133: 123 | B133: FMCG | C133: MCDOWELL-N | D133: 621.60 | E133: 621.10 | F133: 614.20 | G133: 606.80 | H133: 599.90 | I133: 628.50 | J133: 635.40 | K133: 642.80 | L133: 628 | M133: 613.7 | N133: 10823750 | O133: 1.55%
A134: 124 | B134: Others | C134: MCX | D134: 729.05 | E134: 729.73 | F134: 717.47 | G134: 705.88 | H134: 693.62 | I134: 741.32 | J134: 753.58 | K134: 765.17 | L134: 742 | M134: 718.15 | N134: 2415700 | O134: -1.48%
A135: 125 | B135: Finance | C135: MFSL | D135: 430.30 | E135: 434.43 | F135: 422.87 | G135: 415.43 | H135: 403.87 | I135: 441.87 | J135: 453.43 | K135: 460.87 | L135: 446 | M135: 427 | N135: 2204400 | O135: 2.17%
A136: 126 | B136: Others | C136: MGL | D136: 897.95 | E136: 902.08 | F136: 888.37 | G136: 878.78 | H136: 865.07 | I136: 911.67 | J136: 925.38 | K136: 934.97 | L136: 915.8 | M136: 892.5 | N136: 698400 | O136: -2.68%
A137: 127 | B137: Technology | C137: MINDTREE | D137: 862.05 | E137: 867.22 | F137: 853.93 | G137: 845.82 | H137: 832.53 | I137: 875.33 | J137: 888.62 | K137: 896.73 | L137: 880.5 | M137: 859.1 | N137: 2140800 | O137: -2.73%
A138: 128 | B138: Automobile | C138: MOTHERSUMI | D138: 164.25 | E138: 164.78 | F138: 162.62 | G138: 160.98 | H138: 158.82 | I138: 166.42 | J138: 168.58 | K138: 170.22 | L138: 166.95 | M138: 163.15 | N138: 21822450 | O138: 0.99%
A139: 129 | B139: Automobile | C139: MRF | D139: 66770.80 | E139: 66740.27 | F139: 66280.58 | G139: 65790.37 | H139: 65330.68 | I139: 67230.48 | J139: 67690.17 | K139: 68180.38 | L139: 67199.95 | M139: 66250.05 | N139: 24320 | O139: -3.72%
A140: 130 | B140: Others | C140: MRPL | D140: 74.00 | E140: 74.25 | F140: 72.55 | G140: 71.10 | H140: 69.40 | I140: 75.70 | J140: 77.40 | K140: 78.85 | L140: 75.95 | M140: 72.8 | N140: 5719000 | O140: -4.67%
A141: 131 | B141: Finance | C141: MUTHOOTFIN | D141: 504.30 | E141: 506.35 | F141: 496.95 | G141: 489.60 | H141: 480.20 | I141: 513.70 | J141: 523.10 | K141: 530.45 | L141: 515.75 | M141: 499 | N141: 2047500 | O141: -5.73%
A142: 132 | B142: Others | C142: NATIONALUM | D142: 63.40 | E142: 63.55 | F142: 62.70 | G142: 62.00 | H142: 61.15 | I142: 64.25 | J142: 65.10 | K142: 65.80 | L142: 64.4 | M142: 62.85 | N142: 24424000 | O142: 2.42%
A143: 133 | B143: Others | C143: NBCC | D143: 58.05 | E143: 57.90 | F143: 56.95 | G143: 55.85 | H143: 54.90 | I143: 59.00 | J143: 59.95 | K143: 61.05 | L143: 58.85 | M143: 56.8 | N143: 37704000 | O143: -2.44%
A144: 134 | B144: Infrastructure | C144: NCC | D144: 89.90 | E144: 90.10 | F144: 88.50 | G144: 87.10 | H144: 85.50 | I144: 91.50 | J144: 93.10 | K144: 94.50 | L144: 91.7 | M144: 88.7 | N144: 46648000 | O144: -3.79%
A145: 135 | B145: Others | C145: NESTLEIND | D145: 11119.10 | E145: 11108.37 | F145: 10995.73 | G145: 10872.37 | H145: 10759.73 | I145: 11231.73 | J145: 11344.37 | K145: 11467.73 | L145: 11221 | M145: 10985 | N145: 284700 | O145: -0.49%
A146: 136 | B146: Power | C146: NHPC | D146: 25.35 | E146: 25.43 | F146: 25.12 | G146: 24.88 | H146: 24.57 | I146: 25.67 | J146: 25.98 | K146: 26.22 | L146: 25.75 | M146: 25.2 | N146: 21978000 | O146: -3.44%
A147: 137 | B147: Technology | C147: NIITTECH | D147: 1158.20 | E147: 1162.03 | F147: 1141.52 | G147: 1124.83 | H147: 1104.32 | I147: 1178.72 | J147: 1199.23 | K147: 1215.92 | L147: 1182.55 | M147: 1145.35 | N147: 1492500 | O147: 1.89%
A148: 138 | B148: Metals | C148: NMDC | D148: 95.95 | E148: 96.42 | F148: 94.88 | G148: 93.82 | H148: 92.28 | I148: 97.48 | J148: 99.02 | K148: 100.08 | L148: 97.95 | M148: 95.35 | N148: 21036000 | O148: -1.77%
A149: 139 | B149: Power | C149: NTPC | D149: 145.50 | E149: 145.83 | F149: 144.47 | G149: 143.43 | H149: 142.07 | I149: 146.87 | J149: 148.23 | K149: 149.27 | L149: 147.2 | M149: 144.8 | N149: 41828000 | O149: -2.79%
A150: 140 | B150: Technology | C150: OFSS | D150: 3719.85 | E150: 3733.62 | F150: 3693.23 | G150: 3666.62 | H150: 3626.23 | I150: 3760.23 | J150: 3800.62 | K150: 3827.23 | L150: 3774 | M150: 3707 | N150: 104100 | O150: -2.25%
A151: 141 | B151: Oil_Gas | C151: OIL | D151: 170.45 | E151: 170.55 | F151: 169.15 | G151: 167.85 | H151: 166.45 | I151: 171.85 | J151: 173.25 | K151: 174.55 | L151: 171.95 | M151: 169.25 | N151: 8864592 | O151: -1.40%
A152: 142 | B152: Oil_Gas | C152: ONGC | D152: 146.10 | E152: 145.80 | F152: 144.65 | G152: 143.20 | H152: 142.05 | I152: 147.25 | J152: 148.40 | K152: 149.85 | L152: 146.95 | M152: 144.35 | N152: 49143750 | O152: -3.02%
A153: 143 | B153: Banking | C153: ORIENTBANK | D153: 96.00 | E153: 96.88 | F153: 94.22 | G153: 92.43 | H153: 89.77 | I153: 98.67 | J153: 101.33 | K153: 103.12 | L153: 99.55 | M153: 95.1 | N153: 12789000 | O153: -5.39%
A154: 144 | B154: Textile | C154: PAGEIND | D154: 24656.10 | E154: 24705.70 | F154: 24261.40 | G154: 23866.70 | H154: 23422.40 | I154: 25100.40 | J154: 25544.70 | K154: 25939.40 | L154: 25150 | M154: 24311 | N154: 124875 | O154: -0.97%
A155: 145 | B155: Others | C155: PCJEWELLER | D155: 83.15 | E155: 84.10 | F155: 81.55 | G155: 79.95 | H155: 77.40 | I155: 85.70 | J155: 88.25 | K155: 89.85 | L155: 86.65 | M155: 82.5 | N155: 9841000 | O155: -2.70%
A156: 146 | B156: Pharma | C156: PEL | D156: 2354.35 | E156: 2372.20 | F156: 2321.15 | G156: 2287.95 | H156: 2236.90 | I156: 2405.40 | J156: 2456.45 | K156: 2489.65 | L156: 2423.25 | M156: 2339 | N156: 2631628 | O156: -2.14%
A157: 147 | B157: Oil_Gas | C157: PETRONET | D157: 229.30 | E157: 229.57 | F157: 227.23 | G157: 225.17 | H157: 222.83 | I157: 231.63 | J157: 233.97 | K157: 236.03 | L157: 231.9 | M157: 227.5 | N157: 11133000 | O157: -3.49%
A158: 148 | B158: Finance | C158: PFC | D158: 104.05 | E158: 104.77 | F158: 102.58 | G158: 101.12 | H158: 98.93 | I158: 106.23 | J158: 108.42 | K158: 109.88 | L158: 106.95 | M158: 103.3 | N158: 33895400 | O158: -1.87%
A159: 149 | B159: FMCG | C159: PIDILITIND | D159: 1111.80 | E159: 1108.13 | F159: 1093.67 | G159: 1075.53 | H159: 1061.07 | I159: 1126.27 | J159: 1140.73 | K159: 1158.87 | L159: 1122.6 | M159: 1090 | N159: 2813000 | O159: -1.18%
A160: 150 | B160: Banking | C160: PNB | D160: 78.30 | E160: 78.97 | F160: 76.98 | G160: 75.67 | H160: 73.68 | I160: 80.28 | J160: 82.27 | K160: 83.58 | L160: 80.95 | M160: 77.65 | N160: 113162000 | O160: 0.56%
A161: 151 | B161: Power | C161: POWERGRID | D161: 195.30 | E161: 196.23 | F161: 192.77 | G161: 190.23 | H161: 186.77 | I161: 198.77 | J161: 202.23 | K161: 204.77 | L161: 199.7 | M161: 193.7 | N161: 25588000 | O161: -1.07%
A162: 152 | B162: Power | C162: PTC | D162: 91.25 | E162: 91.87 | F162: 89.98 | G162: 88.72 | H162: 86.83 | I162: 93.13 | J162: 95.02 | K162: 96.28 | L162: 93.75 | M162: 90.6 | N162: 6160000 | O162: -5.52%
A163: 153 | B163: Others | C163: PVR | D163: 1590.10 | E163: 1590.95 | F163: 1575.30 | G163: 1560.50 | H163: 1544.85 | I163: 1605.75 | J163: 1621.40 | K163: 1636.20 | L163: 1606.6 | M163: 1576.15 | N163: 1360800 | O163: -2.72%
A164: 154 | B164: Cement | C164: RAMCOCEM | D164: 640.65 | E164: 641.42 | F164: 635.83 | G164: 631.02 | H164: 625.43 | I164: 646.23 | J164: 651.82 | K164: 656.63 | L164: 647 | M164: 636.6 | N164: 681600 | O164: -1.84%
A165: 155 | B165: Others | C165: RAYMOND | D165: 819.25 | E165: 827.37 | F165: 806.88 | G165: 794.52 | H165: 774.03 | I165: 839.73 | J165: 860.22 | K165: 872.58 | L165: 847.85 | M165: 815 | N165: 3752800 | O165: 1.58%
A166: 156 | B166: Banking | C166: RBLBANK | D166: 567.85 | E166: 571.42 | F166: 563.23 | G166: 558.62 | H166: 550.43 | I166: 576.03 | J166: 584.22 | K166: 588.83 | L166: 579.6 | M166: 566.8 | N166: 5173200 | O166: 2.11%
A167: 157 | B167: Telecom | C167: RCOM | D167: 13.80 | E167: 13.93 | F167: 13.42 | G167: 13.03 | H167: 12.52 | I167: 14.32 | J167: 14.83 | K167: 15.22 | L167: 14.45 | M167: 13.55 | N167: 90882000 | O167: 2.85%
A168: 158 | B168: Power | C168: RECLTD | D168: 118.90 | E168: 119.52 | F168: 117.68 | G168: 116.47 | H168: 114.63 | I168: 120.73 | J168: 122.57 | K168: 123.78 | L168: 121.35 | M168: 118.3 | N168: 41370000 | O168: -0.32%
A169: 159 | B169: Finance | C169: RELCAPITAL | D169: 222.50 | E169: 225.73 | F169: 217.97 | G169: 213.43 | H169: 205.67 | I169: 230.27 | J169: 238.03 | K169: 242.57 | L169: 233.5 | M169: 221.2 | N169: 12703500 | O169: -3.99%
A170: 160 | B170: Oil_Gas | C170: RELIANCE | D170: 1111.05 | E170: 1116.35 | F170: 1098.80 | G170: 1086.55 | H170: 1069.00 | I170: 1128.60 | J170: 1146.15 | K170: 1158.40 | L170: 1133.9 | M170: 1104.1 | N170: 48087000 | O170: -0.74%
A171: 161 | B171: Power | C171: RELINFRA | D171: 307.65 | E171: 310.07 | F171: 301.73 | G171: 295.82 | H171: 287.48 | I171: 315.98 | J171: 324.32 | K171: 330.23 | L171: 318.4 | M171: 304.15 | N171: 9278100 | O171: -2.66%
A172: 162 | B172: Others | C172: REPCOHOME | D172: 391.45 | E172: 394.97 | F172: 384.63 | G172: 377.82 | H172: 367.48 | I172: 401.78 | J172: 412.12 | K172: 418.93 | L172: 405.3 | M172: 388.15 | N172: 1447600 | O172: -0.75%
A173: 163 | B173: Power | C173: RPOWER | D173: 27.80 | E173: 28.08 | F173: 27.32 | G173: 26.83 | H173: 26.07 | I173: 28.57 | J173: 29.33 | K173: 29.82 | L173: 28.85 | M173: 27.6 | N173: 52832000 | O173: 3.67%
A174: 164 | B174: Metals | C174: SAIL | D174: 54.05 | E174: 54.30 | F174: 53.45 | G174: 52.85 | H174: 52.00 | I174: 54.90 | J174: 55.75 | K174: 56.35 | L174: 55.15 | M174: 53.7 | N174: 81012000 | O174: -2.22%
A175: 165 | B175: Banking | C175: SBIN | D175: 295.45 | E175: 297.68 | F175: 291.97 | G175: 288.48 | H175: 282.77 | I175: 301.17 | J175: 306.88 | K175: 310.37 | L175: 303.4 | M175: 294.2 | N175: 75759000 | O175: 0.33%
A176: 166 | B176: Cement | C176: SHREECEM | D176: 17004.85 | E176: 17055.18 | F176: 16820.72 | G176: 16636.58 | H176: 16402.12 | I176: 17239.32 | J176: 17473.78 | K176: 17657.92 | L176: 17289.65 | M176: 16871.05 | N176: 74550 | O176: -1.06%
A177: 167 | B177: Capital_Goods | C177: SIEMENS | D177: 1051.35 | E177: 1053.50 | F177: 1042.00 | G177: 1032.65 | H177: 1021.15 | I177: 1062.85 | J177: 1074.35 | K177: 1083.70 | L177: 1065 | M177: 1044.15 | N177: 2036100 | O177: -4.64%
A178: 168 | B178: Banking | C178: SOUTHBANK | D178: 15.55 | E178: 15.60 | F178: 15.35 | G178: 15.15 | H178: 14.90 | I178: 15.80 | J178: 16.05 | K178: 16.25 | L178: 15.85 | M178: 15.4 | N178: 133392525 | O178: 0.70%
A179: 169 | B179: Others | C179: SREINFRA | D179: 34.85 | E179: 35.32 | F179: 34.13 | G179: 33.42 | H179: 32.23 | I179: 36.03 | J179: 37.22 | K179: 37.93 | L179: 36.5 | M179: 34.6 | N179: 12048000 | O179: -2.05%
A180: 170 | B180: Textile | C180: SRF | D180: 2001.75 | E180: 2000.63 | F180: 1977.27 | G180: 1952.78 | H180: 1929.42 | I180: 2025.12 | J180: 2048.48 | K180: 2072.97 | L180: 2024 | M180: 1976.15 | N180: 786500 | O180: -0.69%
A181: 171 | B181: Finance | C181: SRTRANSFIN | D181: 1201.35 | E181: 1213.32 | F181: 1169.78 | G181: 1138.22 | H181: 1094.68 | I181: 1244.88 | J181: 1288.42 | K181: 1319.98 | L181: 1256.85 | M181: 1181.75 | N181: 3735600 | O181: 3.89%
A182: 172 | B182: Pharma | C182: STAR | D182: 460.20 | E182: 462.72 | F182: 452.48 | G182: 444.77 | H182: 434.53 | I182: 470.43 | J182: 480.67 | K182: 488.38 | L182: 472.95 | M182: 455 | N182: 3989700 | O182: -0.27%
A183: 173 | B183: Pharma | C183: SUNPHARMA | D183: 441.20 | E183: 438.28 | F183: 434.32 | G183: 427.43 | H183: 423.47 | I183: 445.17 | J183: 449.13 | K183: 456.02 | L183: 442.25 | M183: 431.4 | N183: 55391600 | O183: -2.18%
A184: 174 | B184: Media | C184: SUNTV | D184: 606.55 | E184: 607.83 | F184: 599.72 | G184: 592.88 | H184: 584.77 | I184: 614.67 | J184: 622.78 | K184: 629.62 | L184: 615.95 | M184: 601 | N184: 6940000 | O184: -3.88%
A185: 175 | B185: Power | C185: SUZLON | D185: 5.45 | E185: 5.45 | F185: 5.40 | G185: 5.35 | H185: 5.30 | I185: 5.50 | J185: 5.55 | K185: 5.60 | L185: 5.5 | M185: 5.4 | N185: 287736000 | O185: 1.01%
A186: 176 | B186: Banking | C186: SYNDIBANK | D186: 39.30 | E186: 39.47 | F186: 38.58 | G186: 37.87 | H186: 36.98 | I186: 40.18 | J186: 41.07 | K186: 41.78 | L186: 40.35 | M186: 38.75 | N186: 22230000 | O186: -6.32%
A187: 177 | B187: Fertilisers | C187: TATACHEM | D187: 703.35 | E187: 704.97 | F187: 697.68 | G187: 692.02 | H187: 684.73 | I187: 710.63 | J187: 717.92 | K187: 723.58 | L187: 712.25 | M187: 699.3 | N187: 2370000 | O187: -1.34%
A188: 178 | B188: Telecom | C188: TATACOMM | D188: 523.05 | E188: 526.63 | F188: 516.87 | G188: 510.68 | H188: 500.92 | I188: 532.82 | J188: 542.58 | K188: 548.77 | L188: 536.4 | M188: 520.45 | N188: 2423000 | O188: -0.37%
A189: 179 | B189: Technology | C189: TATAELXSI | D189: 1031.50 | E189: 1034.92 | F189: 1022.58 | G189: 1013.67 | H189: 1001.33 | I189: 1043.83 | J189: 1056.17 | K189: 1065.08 | L189: 1047.25 | M189: 1026 | N189: 1391600 | O189: 0.52%
A190: 180 | B190: FMCG | C190: TATAGLOBAL | D190: 215.70 | E190: 217.35 | F190: 212.90 | G190: 210.10 | H190: 205.65 | I190: 220.15 | J190: 224.60 | K190: 227.40 | L190: 221.8 | M190: 214.55 | N190: 10489500 | O190: 0.06%
A191: 181 | B191: Automobile | C191: TATAMOTORS | D191: 169.05 | E191: 170.08 | F191: 167.27 | G191: 165.48 | H191: 162.67 | I191: 171.87 | J191: 174.68 | K191: 176.47 | L191: 172.9 | M191: 168.3 | N191: 59668000 | O191: 0.53%
A192: 182 | B192: Automobile | C192: TATAMTRDVR | D192: 90.70 | E192: 91.17 | F192: 89.73 | G192: 88.77 | H192: 87.33 | I192: 92.13 | J192: 93.57 | K192: 94.53 | L192: 92.6 | M192: 90.2 | N192: 27227000 | O192: -0.35%
A193: 183 | B193: Power | C193: TATAPOWER | D193: 75.10 | E193: 75.60 | F193: 74.15 | G193: 73.20 | H193: 71.75 | I193: 76.55 | J193: 78.00 | K193: 78.95 | L193: 77.05 | M193: 74.65 | N193: 46368000 | O193: 2.69%
A194: 184 | B194: Metals | C194: TATASTEEL | D194: 496.00 | E194: 499.95 | F194: 490.40 | G194: 484.80 | H194: 475.25 | I194: 505.55 | J194: 515.10 | K194: 520.70 | L194: 509.5 | M194: 494.35 | N194: 36831554 | O194: 9.33%
A195: 185 | B195: Technology | C195: TCS | D195: 1926.90 | E195: 1925.75 | F195: 1909.85 | G195: 1892.80 | H195: 1876.90 | I195: 1942.80 | J195: 1958.70 | K195: 1975.75 | L195: 1941.65 | M195: 1908.7 | N195: 12148500 | O195: -0.24%
A196: 186 | B196: Technology | C196: TECHM | D196: 716.15 | E196: 720.03 | F196: 707.42 | G196: 698.68 | H196: 686.07 | I196: 728.77 | J196: 741.38 | K196: 750.12 | L196: 732.65 | M196: 711.3 | N196: 11955600 | O196: -0.47%
A197: 187 | B197: FMCG | C197: TITAN | D197: 936.65 | E197: 935.18 | F197: 929.37 | G197: 922.08 | H197: 916.27 | I197: 942.47 | J197: 948.28 | K197: 955.57 | L197: 941 | M197: 927.9 | N197: 14715750 | O197: -0.33%
A198: 188 | B198: Pharma | C198: TORNTPHARM | D198: 1780.60 | E198: 1775.23 | F198: 1755.72 | G198: 1730.83 | H198: 1711.32 | I198: 1800.12 | J198: 1819.63 | K198: 1844.52 | L198: 1794.75 | M198: 1750.35 | N198: 309500 | O198: -5.78%
A199: 189 | B199: Power | C199: TORNTPOWER | D199: 256.65 | E199: 257.35 | F199: 254.20 | G199: 251.75 | H199: 248.60 | I199: 259.80 | J199: 262.95 | K199: 265.40 | L199: 260.5 | M199: 254.9 | N199: 2334000 | O199: 0.78%
A200: 190 | B200: Media | C200: TV18BRDCST | D200: 37.75 | E200: 38.03 | F200: 37.22 | G200: 36.68 | H200: 35.87 | I200: 38.57 | J200: 39.38 | K200: 39.92 | L200: 38.85 | M200: 37.5 | N200: 51441000 | O200: -2.44%
A201: 191 | B201: Automobile | C201: TVSMOTOR | D201: 533.90 | E201: 546.12 | F201: 517.23 | G201: 500.57 | H201: 471.68 | I201: 562.78 | J201: 591.67 | K201: 608.33 | L201: 575 | M201: 529.45 | N201: 3753000 | O201: -1.34%
A202: 192 | B202: FMCG | C202: UBL | D202: 1362.55 | E202: 1364.32 | F202: 1350.63 | G202: 1338.72 | H202: 1325.03 | I202: 1376.23 | J202: 1389.92 | K202: 1401.83 | L202: 1378 | M202: 1352.4 | N202: 1961400 | O202: 0.97%
A203: 193 | B203: Finance | C203: UJJIVAN | D203: 275.95 | E203: 277.78 | F203: 271.27 | G203: 266.58 | H203: 260.07 | I203: 282.47 | J203: 288.98 | K203: 293.67 | L203: 284.3 | M203: 273.1 | N203: 3444800 | O203: 13.14%
A204: 194 | B204: Cement | C204: ULTRACEMCO | D204: 4013.70 | E204: 4014.62 | F204: 3985.08 | G204: 3956.47 | H204: 3926.93 | I204: 4043.23 | J204: 4072.77 | K204: 4101.38 | L204: 4044.15 | M204: 3986 | N204: 1612400 | O204: -0.52%
A205: 195 | B205: Banking | C205: UNIONBANK | D205: 88.65 | E205: 88.90 | F205: 87.45 | G205: 86.25 | H205: 84.80 | I205: 90.10 | J205: 91.55 | K205: 92.75 | L205: 90.35 | M205: 87.7 | N205: 39186000 | O205: 1.21%
A206: 196 | B206: Fertilisers | C206: UPL | D206: 759.40 | E206: 755.80 | F206: 749.80 | G206: 740.20 | H206: 734.20 | I206: 765.40 | J206: 771.40 | K206: 781.00 | L206: 761.8 | M206: 746.2 | N206: 17470800 | O206: -1.88%
... 22 more rows

Sheet Cash Intra
M5: Back to Main Page
A6: FOR INTRA DAY TRADING | K6: =Main!B10 -> 2019-01-03
A8: Sr.no | B8: Scrip | C8: CLOSE RATE | D8: Pivot Point | E8: Supports | H8: Resistances
C9: Point | E9: S1 | F9: S2 | G9: S3 | H9: R1 | I9: R2 | J9: R3 | K9: HIGH | L9: LOW | M9: Total Trade Quanity in Lakhs
A10: 1 | B10: Nifty 50 | C10: 10792.5 | D10: 10807.63 | E10: 10719.92 | F10: 10647.33 | G10: 10559.62 | H10: 10880.22 | I10: 10967.93 | J10: 11040.52 | K10: 10895.35 | L10: 10735.05
A11: 2 | B11: Nifty Bank | C11: 27174.7 | D11: 27216.62 | E11: 27035.68 | F11: 26896.67 | G11: 26715.73 | H11: 27355.63 | I11: 27536.57 | J11: 27675.58 | K11: 27397.55 | L11: 27077.6
A12: 3 | B12: Nifty CPSE | C12: 2038.95 | D12: 2039.05 | E12: 2022.45 | F12: 2005.95 | G12: 1989.35 | H12: 2055.55 | I12: 2072.15 | J12: 2088.65 | K12: 2055.65 | L12: 2022.55
A13: 4 | B13: Nifty Infra | C13: 3143.95 | D13: 3152.33 | E13: 3118.62 | F13: 3093.28 | G13: 3059.57 | H13: 3177.67 | I13: 3211.38 | J13: 3236.72 | K13: 3186.05 | L13: 3127
A14: 5 | B14: Nifty IT | C14: 14447.1 | D14: 14470.65 | E14: 14347.45 | F14: 14247.80 | G14: 14124.60 | H14: 14570.30 | I14: 14693.50 | J14: 14793.15 | K14: 14593.85 | L14: 14371
A15: 6 | B15: Nifty PSE | C15: 3343.05 | D15: 3347.02 | E15: 3310.83 | F15: 3278.62 | G15: 3242.43 | H15: 3379.23 | I15: 3415.42 | J15: 3447.63 | K15: 3383.2 | L15: 3314.8
A16: 7 | B16: Nifty Midcap 50 | C16: 4860.05 | D16: 4882.57 | E16: 4826.98 | F16: 4793.92 | G16: 4738.33 | H16: 4915.63 | I16: 4971.22 | J16: 5004.28 | K16: 4938.15 | L16: 4849.5
A17: 8 | B17: ABB | C17: 1319.25 | D17: 1320.18 | E17: 1310.37 | F17: 1301.48 | G17: 1291.67 | H17: 1329.07 | I17: 1338.88 | J17: 1347.77 | K17: 1330 | L17: 1311.3 | M17: 0.56713
A18: 9 | B18: ACC | C18: 1483.95 | D18: 1487.82 | E18: 1473.68 | F18: 1463.42 | G18: 1449.28 | H18: 1498.08 | I18: 1512.22 | J18: 1522.48 | K18: 1501.95 | L18: 1477.55 | M18: 6.69181
A19: 10 | B19: AIAENG | C19: 1652.55 | D19: 1651.83 | E19: 1629.82 | F19: 1607.08 | G19: 1585.07 | H19: 1674.57 | I19: 1696.58 | J19: 1719.32 | K19: 1673.85 | L19: 1629.1 | M19: 0.1391
A20: 11 | B20: AUBANK | C20: 620.25 | D20: 618.95 | E20: 613.25 | F20: 606.25 | G20: 600.55 | H20: 625.95 | I20: 631.65 | J20: 638.65 | K20: 624.65 | L20: 611.95 | M20: 1.66148
A21: 12 | B21: ADANIENT | C21: 154.85 | D21: 155.07 | E21: 152.28 | F21: 149.72 | G21: 146.93 | H21: 157.63 | I21: 160.42 | J21: 162.98 | K21: 157.85 | L21: 152.5 | M21: 27.35262
A22: 13 | B22: ADANIPORTS | C22: 381.3 | D22: 382.75 | E22: 376.55 | F22: 371.80 | G22: 365.60 | H22: 387.50 | I22: 393.70 | J22: 398.45 | K22: 388.95 | L22: 378 | M22: 15.06543
A23: 14 | B23: ADANIPOWER | C23: 50.55 | D23: 50.60 | E23: 50.15 | F23: 49.75 | G23: 49.30 | H23: 51.00 | I23: 51.45 | J23: 51.85 | K23: 51.05 | L23: 50.2 | M23: 61.7496
A24: 15 | B24: ABFRL | C24: 195.55 | D24: 196.98 | E24: 193.12 | F24: 190.68 | G24: 186.82 | H24: 199.42 | I24: 203.28 | J24: 205.72 | K24: 200.85 | L24: 194.55 | M24: 8.54111
A25: 16 | B25: AJANTPHARM | C25: 1164.35 | D25: 1170.03 | E25: 1148.47 | F25: 1132.58 | G25: 1111.02 | H25: 1185.92 | I25: 1207.48 | J25: 1223.37 | K25: 1191.6 | L25: 1154.15 | M25: 1.78595
A26: 17 | B26: ALKEM | C26: 1951.05 | D26: 1950.35 | E26: 1925.70 | F26: 1900.35 | G26: 1875.70 | H26: 1975.70 | I26: 2000.35 | J26: 2025.70 | K26: 1975 | L26: 1925 | M26: 0.33809
A27: 18 | B27: AMARAJABAT | C27: 733.55 | D27: 735.15 | E27: 729.20 | F27: 724.85 | G27: 718.90 | H27: 739.50 | I27: 745.45 | J27: 749.80 | K27: 741.1 | L27: 730.8 | M27: 2.65053
A28: 19 | B28: AMBUJACEM | C28: 218.95 | D28: 220.27 | E28: 216.73 | F28: 214.52 | G28: 210.98 | H28: 222.48 | I28: 226.02 | J28: 228.23 | K28: 223.8 | L28: 218.05 | M28: 18.26162
A29: 20 | B29: APOLLOHOSP | C29: 1258.75 | D29: 1266.18 | E29: 1244.37 | F29: 1229.98 | G29: 1208.17 | H29: 1280.57 | I29: 1302.38 | J29: 1316.77 | K29: 1288 | L29: 1251.8 | M29: 6.58775
A30: 21 | B30: APOLLOTYRE | C30: 230.85 | D30: 231.78 | E30: 228.32 | F30: 225.78 | G30: 222.32 | H30: 234.32 | I30: 237.78 | J30: 240.32 | K30: 235.25 | L30: 229.25 | M30: 19.8351
A31: 22 | B31: ARVIND | C31: 96.3 | D31: 97.00 | E31: 95.35 | F31: 94.40 | G31: 92.75 | H31: 97.95 | I31: 99.60 | J31: 100.55 | K31: 98.65 | L31: 96.05 | M31: 14.21931
A32: 23 | B32: ASHOKLEY | C32: 99.95 | D32: 100.42 | E32: 98.53 | F32: 97.12 | G32: 95.23 | H32: 101.83 | I32: 103.72 | J32: 105.13 | K32: 102.3 | L32: 99 | M32: 401.23864
A33: 24 | B33: ASIANPAINT | C33: 1383.3 | D33: 1377.25 | E33: 1367.65 | F33: 1352.00 | G33: 1342.40 | H33: 1392.90 | I33: 1402.50 | J33: 1418.15 | K33: 1386.85 | L33: 1361.6 | M33: 12.3378
A34: 25 | B34: AUROPHARMA | C34: 724.35 | D34: 725.25 | E34: 718.10 | F34: 711.85 | G34: 704.70 | H34: 731.50 | I34: 738.65 | J34: 744.90 | K34: 732.4 | L34: 719 | M34: 18.45752
A35: 26 | B35: DMART | C35: 1560.25 | D35: 1567.83 | E35: 1543.72 | F35: 1527.18 | G35: 1503.07 | H35: 1584.37 | I35: 1608.48 | J35: 1625.02 | K35: 1591.95 | L35: 1551.3 | M35: 3.97366
A36: 27 | B36: AXISBANK | C36: 620.05 | D36: 622.02 | E36: 615.53 | F36: 611.02 | G36: 604.53 | H36: 626.53 | I36: 633.02 | J36: 637.53 | K36: 628.5 | L36: 617.5 | M36: 123.86281
A37: 28 | B37: BAJAJ-AUTO | C37: 2692 | D37: 2705.42 | E37: 2663.58 | F37: 2635.17 | G37: 2593.33 | H37: 2733.83 | I37: 2775.67 | J37: 2804.08 | K37: 2747.25 | L37: 2677 | M37: 5.99274
A38: 29 | B38: BAJFINANCE | C38: 2614.05 | D38: 2625.98 | E38: 2589.97 | F38: 2565.88 | G38: 2529.87 | H38: 2650.07 | I38: 2686.08 | J38: 2710.17 | K38: 2662 | L38: 2601.9 | M38: 13.04915
A39: 30 | B39: BAJAJFINSV | C39: 6384 | D39: 6423.33 | E39: 6320.67 | F39: 6257.33 | G39: 6154.67 | H39: 6486.67 | I39: 6589.33 | J39: 6652.67 | K39: 6526 | L39: 6360 | M39: 2.21274
A40: 31 | B40: BALKRISIND | C40: 912.3 | D40: 917.83 | E40: 902.92 | F40: 893.53 | G40: 878.62 | H40: 927.22 | I40: 942.13 | J40: 951.52 | K40: 932.75 | L40: 908.45 | M40: 5.34985
A41: 32 | B41: BANKBARODA | C41: 119.35 | D41: 120.67 | E41: 116.88 | F41: 114.42 | G41: 110.63 | H41: 123.13 | I41: 126.92 | J41: 129.38 | K41: 124.45 | L41: 118.2 | M41: 255.68039
A42: 33 | B42: BANKINDIA | C42: 104.8 | D42: 105.50 | E42: 103.10 | F42: 101.40 | G42: 99.00 | H42: 107.20 | I42: 109.60 | J42: 111.30 | K42: 107.9 | L42: 103.8 | M42: 169.84848
A43: 34 | B43: BATAINDIA | C43: 1112.05 | D43: 1118.35 | E43: 1101.70 | F43: 1091.35 | G43: 1074.70 | H43: 1128.70 | I43: 1145.35 | J43: 1155.70 | K43: 1135 | L43: 1108 | M43: 4.93851
A44: 35 | B44: BERGEPAINT | C44: 327.3 | D44: 328.37 | E44: 324.88 | F44: 322.47 | G44: 318.98 | H44: 330.78 | I44: 334.27 | J44: 336.68 | K44: 331.85 | L44: 325.95 | M44: 13.31713
A45: 36 | B45: BEL | C45: 89.7 | D45: 88.90 | E45: 87.55 | F45: 85.40 | G45: 84.05 | H45: 91.05 | I45: 92.40 | J45: 94.55 | K45: 90.25 | L45: 86.75 | M45: 102.31387
A46: 37 | B46: BHARATFIN | C46: 1001.4 | D46: 1003.92 | E46: 993.23 | F46: 985.07 | G46: 974.38 | H46: 1012.08 | I46: 1022.77 | J46: 1030.93 | K46: 1014.6 | L46: 995.75 | M46: 1.99322
A47: 38 | B47: BHARATFORG | C47: 494.9 | D47: 499.22 | E47: 487.68 | F47: 480.47 | G47: 468.93 | H47: 506.43 | I47: 517.97 | J47: 525.18 | K47: 510.75 | L47: 492 | M47: 16.21236
A48: 39 | B48: BHEL | C48: 73 | D48: 73.42 | E48: 72.03 | F48: 71.07 | G48: 69.68 | H48: 74.38 | I48: 75.77 | J48: 76.73 | K48: 74.8 | L48: 72.45 | M48: 86.15103
A49: 40 | B49: BPCL | C49: 357.95 | D49: 356.90 | E49: 347.80 | F49: 337.65 | G49: 328.55 | H49: 367.05 | I49: 376.15 | J49: 386.30 | K49: 366 | L49: 346.75 | M49: 98.62795
A50: 41 | B50: BHARTIARTL | C50: 312.65 | D50: 314.25 | E50: 307.50 | F50: 302.35 | G50: 295.60 | H50: 319.40 | I50: 326.15 | J50: 331.30 | K50: 321 | L50: 309.1 | M50: 56.04911
A51: 42 | B51: INFRATEL | C51: 264.25 | D51: 262.98 | E51: 259.97 | F51: 255.68 | G51: 252.67 | H51: 267.27 | I51: 270.28 | J51: 274.57 | K51: 266 | L51: 258.7 | M51: 11.15095
A52: 43 | B52: BIOCON | C52: 622.8 | D52: 624.33 | E52: 617.47 | F52: 612.13 | G52: 605.27 | H52: 629.67 | I52: 636.53 | J52: 641.87 | K52: 631.2 | L52: 619 | M52: 12.32572
A53: 44 | B53: BOSCHLTD | C53: 19477.8 | D53: 19512.85 | E53: 19396.75 | F53: 19315.70 | G53: 19199.60 | H53: 19593.90 | I53: 19710.00 | J53: 19791.05 | K53: 19628.95 | L53: 19431.8 | M53: 0.1081
A54: 45 | B54: BRITANNIA | C54: 3116.85 | D54: 3109.68 | E54: 3088.37 | F54: 3059.88 | G54: 3038.57 | H54: 3138.17 | I54: 3159.48 | J54: 3187.97 | K54: 3131 | L54: 3081.2 | M54: 1.52324
A55: 46 | B55: CRISIL | C55: 1625 | D55: 1622.68 | E55: 1612.37 | F55: 1599.73 | G55: 1589.42 | H55: 1635.32 | I55: 1645.63 | J55: 1658.27 | K55: 1633 | L55: 1610.05 | M55: 0.10263
A56: 47 | B56: CADILAHC | C56: 346.75 | D56: 346.43 | E56: 342.87 | F56: 338.98 | G56: 335.42 | H56: 350.32 | I56: 353.88 | J56: 357.77 | K56: 350 | L56: 342.55 | M56: 5.58345
A57: 48 | B57: CANBK | C57: 275.4 | D57: 277.57 | E57: 271.43 | F57: 267.47 | G57: 261.33 | H57: 281.53 | I57: 287.67 | J57: 291.63 | K57: 283.7 | L57: 273.6 | M57: 56.44563
A58: 49 | B58: CASTROLIND | C58: 147.35 | D58: 148.62 | E58: 145.63 | F58: 143.92 | G58: 140.93 | H58: 150.33 | I58: 153.32 | J58: 155.03 | K58: 151.6 | L58: 146.9 | M58: 8.611
A59: 50 | B59: CENTRALBK | C59: 37.25 | D59: 37.40 | E59: 36.85 | F59: 36.45 | G59: 35.90 | H59: 37.80 | I59: 38.35 | J59: 38.75 | K59: 37.95 | L59: 37 | M59: 18.18337
A60: 51 | B60: CENTURYTEX | C60: 905.6 | D60: 910.08 | E60: 896.22 | F60: 886.83 | G60: 872.97 | H60: 919.47 | I60: 933.33 | J60: 942.72 | K60: 923.95 | L60: 900.7 | M60: 3.24587
A61: 52 | B61: CHOLAFIN | C61: 1236.95 | D61: 1243.95 | E61: 1221.05 | F61: 1205.15 | G61: 1182.25 | H61: 1259.85 | I61: 1282.75 | J61: 1298.65 | K61: 1266.85 | L61: 1228.05 | M61: 2.84508
A62: 53 | B62: CIPLA | C62: 514.55 | D62: 516.73 | E62: 510.97 | F62: 507.38 | G62: 501.62 | H62: 520.32 | I62: 526.08 | J62: 529.67 | K62: 522.5 | L62: 513.15 | M62: 12.43067
A63: 54 | B63: COALINDIA | C63: 236.7 | D63: 238.07 | E63: 234.68 | F63: 232.67 | G63: 229.28 | H63: 240.08 | I63: 243.47 | J63: 245.48 | K63: 241.45 | L63: 236.05 | M63: 38.97893
A64: 55 | B64: COLPAL | C64: 1301.8 | D64: 1307.25 | E64: 1291.75 | F64: 1281.70 | G64: 1266.20 | H64: 1317.30 | I64: 1332.80 | J64: 1342.85 | K64: 1322.75 | L64: 1297.2 | M64: 3.96926
A65: 56 | B65: CONCOR | C65: 668.95 | D65: 673.68 | E65: 658.27 | F65: 647.58 | G65: 632.17 | H65: 684.37 | I65: 699.78 | J65: 710.47 | K65: 689.1 | L65: 663 | M65: 10.92937
A66: 57 | B66: COROMANDEL | C66: 450.05 | D66: 451.02 | E66: 448.03 | F66: 446.02 | G66: 443.03 | H66: 453.03 | I66: 456.02 | J66: 458.03 | K66: 454 | L66: 449 | M66: 1.34328
A67: 58 | B67: CROMPTON | C67: 231.7 | D67: 232.53 | E67: 228.42 | F67: 225.13 | G67: 221.02 | H67: 235.82 | I67: 239.93 | J67: 243.22 | K67: 236.65 | L67: 229.25 | M67: 3.08712
A68: 59 | B68: CUMMINSIND | C68: 845.9 | D68: 847.53 | E68: 836.37 | F68: 826.83 | G68: 815.67 | H68: 857.07 | I68: 868.23 | J68: 877.77 | K68: 858.7 | L68: 838 | M68: 3.87427
A69: 60 | B69: DLF | C69: 173.1 | D69: 175.08 | E69: 170.27 | F69: 167.43 | G69: 162.62 | H69: 177.92 | I69: 182.73 | J69: 185.57 | K69: 179.9 | L69: 172.25 | M69: 66.04177
A70: 61 | B70: DABUR | C70: 416.4 | D70: 417.58 | E70: 409.82 | F70: 403.23 | G70: 395.47 | H70: 424.17 | I70: 431.93 | J70: 438.52 | K70: 425.35 | L70: 411 | M70: 25.50167
A71: 62 | B71: DHFL | C71: 241.7 | D71: 243.78 | E71: 238.22 | F71: 234.73 | G71: 229.17 | H71: 247.27 | I71: 252.83 | J71: 256.32 | K71: 249.35 | L71: 240.3 | M71: 71.76965
A72: 63 | B72: DISHTV | C72: 38.35 | D72: 38.17 | E72: 37.58 | F72: 36.82 | G72: 36.23 | H72: 38.93 | I72: 39.52 | J72: 40.28 | K72: 38.75 | L72: 37.4 | M72: 33.52297
A73: 64 | B73: DIVISLAB | C73: 1470.9 | D73: 1471.97 | E73: 1460.33 | F73: 1449.77 | G73: 1438.13 | H73: 1482.53 | I73: 1494.17 | J73: 1504.73 | K73: 1483.6 | L73: 1461.4 | M73: 2.47208
A74: 65 | B74: LALPATHLAB | C74: 915.2 | D74: 913.07 | E74: 902.13 | F74: 889.07 | G74: 878.13 | H74: 926.13 | I74: 937.07 | J74: 950.13 | K74: 924 | L74: 900 | M74: 0.94182
A75: 66 | B75: DRREDDY | C75: 2601.05 | D75: 2598.03 | E75: 2578.07 | F75: 2555.08 | G75: 2535.12 | H75: 2621.02 | I75: 2640.98 | J75: 2663.97 | K75: 2618 | L75: 2575.05 | M75: 4.17551
A76: 67 | B76: EDELWEISS | C76: 180.25 | D76: 180.88 | E76: 177.97 | F76: 175.68 | G76: 172.77 | H76: 183.17 | I76: 186.08 | J76: 188.37 | K76: 183.8 | L76: 178.6 | M76: 7.74141
A77: 68 | B77: EICHERMOT | C77: 21162.3 | D77: 21484.18 | E77: 20628.37 | F77: 20094.43 | G77: 19238.62 | H77: 22018.12 | I77: 22873.93 | J77: 23407.87 | K77: 22340 | L77: 20950.25 | M77: 4.81497
A78: 69 | B78: EMAMILTD | C78: 422.7 | D78: 422.20 | E78: 418.90 | F78: 415.10 | G78: 411.80 | H78: 426.00 | I78: 429.30 | J78: 433.10 | K78: 425.5 | L78: 418.4 | M78: 11.38318
A79: 70 | B79: ENDURANCE | C79: 1245.15 | D79: 1251.35 | E79: 1233.75 | F79: 1222.35 | G79: 1204.75 | H79: 1262.75 | I79: 1280.35 | J79: 1291.75 | K79: 1268.95 | L79: 1239.95 | M79: 0.59788
A80: 71 | B80: ENGINERSIN | C80: 125 | D80: 125.78 | E80: 123.82 | F80: 122.63 | G80: 120.67 | H80: 126.97 | I80: 128.93 | J80: 130.12 | K80: 127.75 | L80: 124.6 | M80: 10.98546
A81: 72 | B81: EXIDEIND | C81: 261.4 | D81: 263.23 | E81: 258.37 | F81: 255.33 | G81: 250.47 | H81: 266.27 | I81: 271.13 | J81: 274.17 | K81: 268.1 | L81: 260.2 | M81: 7.95469
A82: 73 | B82: FEDERALBNK | C82: 94.8 | D82: 94.57 | E82: 93.38 | F82: 91.97 | G82: 90.78 | H82: 95.98 | I82: 97.17 | J82: 98.58 | K82: 95.75 | L82: 93.15 | M82: 183.53855
A83: 74 | B83: GAIL | C83: 350.3 | D83: 353.25 | E83: 344.60 | F83: 338.90 | G83: 330.25 | H83: 358.95 | I83: 367.60 | J83: 373.30 | K83: 361.9 | L83: 347.55 | M83: 35.28488
A84: 75 | B84: GMRINFRA | C84: 15.95 | D84: 16.08 | E84: 15.72 | F84: 15.48 | G84: 15.12 | H84: 16.32 | I84: 16.68 | J84: 16.92 | K84: 16.45 | L84: 15.85 | M84: 91.10731
A85: 76 | B85: GSKCONS | C85: 7515.85 | D85: 7529.45 | E85: 7437.70 | F85: 7359.55 | G85: 7267.80 | H85: 7607.60 | I85: 7699.35 | J85: 7777.50 | K85: 7621.2 | L85: 7451.3 | M85: 0.65849
A86: 77 | B86: GLAXO | C86: 1497.55 | D86: 1499.10 | E86: 1486.20 | F86: 1474.85 | G86: 1461.95 | H86: 1510.45 | I86: 1523.35 | J86: 1534.70 | K86: 1512 | L86: 1487.75 | M86: 0.06845
A87: 78 | B87: GLENMARK | C87: 683.05 | D87: 682.63 | E87: 673.47 | F87: 663.88 | G87: 654.72 | H87: 692.22 | I87: 701.38 | J87: 710.97 | K87: 691.8 | L87: 673.05 | M87: 5.83438
A88: 79 | B88: GODREJCP | C88: 806.65 | D88: 808.53 | E88: 794.32 | F88: 781.98 | G88: 767.77 | H88: 820.87 | I88: 835.08 | J88: 847.42 | K88: 822.75 | L88: 796.2 | M88: 12.65919
A89: 80 | B89: GODREJIND | C89: 538.25 | D89: 540.25 | E89: 533.00 | F89: 527.75 | G89: 520.50 | H89: 545.50 | I89: 552.75 | J89: 558.00 | K89: 547.5 | L89: 535 | M89: 2.58586
A90: 81 | B90: GRUH | C90: 321.4 | D90: 319.83 | E90: 316.67 | F90: 311.93 | G90: 308.77 | H90: 324.57 | I90: 327.73 | J90: 332.47 | K90: 323 | L90: 315.1 | M90: 2.03054
A91: 82 | B91: GPPL | C91: 102.05 | D91: 102.68 | E91: 101.37 | F91: 100.68 | G91: 99.37 | H91: 103.37 | I91: 104.68 | J91: 105.37 | K91: 104 | L91: 102 | M91: 0.55698
A92: 83 | B92: GSPL | C92: 176.05 | D92: 175.52 | E92: 174.63 | F92: 173.22 | G92: 172.33 | H92: 176.93 | I92: 177.82 | J92: 179.23 | K92: 176.4 | L92: 174.1 | M92: 13.86895
A93: 84 | B93: HCLTECH | C93: 946.35 | D93: 949.17 | E93: 936.33 | F93: 926.32 | G93: 913.48 | H93: 959.18 | I93: 972.02 | J93: 982.03 | K93: 962 | L93: 939.15 | M93: 11.35048
A94: 85 | B94: HDFCBANK | C94: 2128.5 | D94: 2131.90 | E94: 2116.30 | F94: 2104.10 | G94: 2088.50 | H94: 2144.10 | I94: 2159.70 | J94: 2171.90 | K94: 2147.5 | L94: 2119.7 | M94: 20.33558
A95: 86 | B95: HAVELLS | C95: 691.8 | D95: 694.93 | E95: 686.87 | F95: 681.93 | G95: 673.87 | H95: 699.87 | I95: 707.93 | J95: 712.87 | K95: 703 | L95: 690 | M95: 12.28486
A96: 87 | B96: HEROMOTOCO | C96: 3046.55 | D96: 3062.55 | E96: 3007.80 | F96: 2969.05 | G96: 2914.30 | H96: 3101.30 | I96: 3156.05 | J96: 3194.80 | K96: 3117.3 | L96: 3023.8 | M96: 5.97712
A97: 88 | B97: HEXAWARE | C97: 330.75 | D97: 333.70 | E97: 326.15 | F97: 321.55 | G97: 314.00 | H97: 338.30 | I97: 345.85 | J97: 350.45 | K97: 341.25 | L97: 329.1 | M97: 20.16439
A98: 89 | B98: HINDALCO | C98: 214.55 | D98: 215.78 | E98: 212.42 | F98: 210.28 | G98: 206.92 | H98: 217.92 | I98: 221.28 | J98: 223.42 | K98: 219.15 | L98: 213.65 | M98: 109.91026
A99: 90 | B99: HINDPETRO | C99: 256.55 | D99: 253.25 | E99: 248.00 | F99: 239.45 | G99: 234.20 | H99: 261.80 | I99: 267.05 | J99: 275.60 | K99: 258.5 | L99: 244.7 | M99: 106.6694
A100: 91 | B100: HINDUNILVR | C100: 1784.6 | D100: 1788.25 | E100: 1767.65 | F100: 1750.70 | G100: 1730.10 | H100: 1805.20 | I100: 1825.80 | J100: 1842.75 | K100: 1808.85 | L100: 1771.3 | M100: 15.98707
A101: 92 | B101: HINDZINC | C101: 272.75 | D101: 274.07 | E101: 270.38 | F101: 268.02 | G101: 264.33 | H101: 276.43 | I101: 280.12 | J101: 282.48 | K101: 277.75 | L101: 271.7 | M101: 3.36931
A102: 93 | B102: HUDCO | C102: 43.1 | D102: 43.33 | E102: 42.82 | F102: 42.53 | G102: 42.02 | H102: 43.62 | I102: 44.13 | J102: 44.42 | K102: 43.85 | L102: 43.05 | M102: 7.36037
A103: 94 | B103: HDFC | C103: 1980.65 | D103: 1983.55 | E103: 1958.10 | F103: 1935.55 | G103: 1910.10 | H103: 2006.10 | I103: 2031.55 | J103: 2054.10 | K103: 2009 | L103: 1961 | M103: 20.0117
A104: 95 | B104: ITC | C104: 280.6 | D104: 280.47 | E104: 277.68 | F104: 274.77 | G104: 271.98 | H104: 283.38 | I104: 286.17 | J104: 289.08 | K104: 283.25 | L104: 277.55 | M104: 99.34187
A105: 96 | B105: ICICIBANK | C105: 364.6 | D105: 364.27 | E105: 360.63 | F105: 356.67 | G105: 353.03 | H105: 368.23 | I105: 371.87 | J105: 375.83 | K105: 367.9 | L105: 360.3 | M105: 182.43156
A106: 97 | B106: ICICIPRULI | C106: 319.8 | D106: 321.63 | E106: 316.27 | F106: 312.73 | G106: 307.37 | H106: 325.17 | I106: 330.53 | J106: 334.07 | K106: 327 | L106: 318.1 | M106: 4.09481
A107: 98 | B107: IDBI | C107: 61.35 | D107: 61.37 | E107: 61.23 | F107: 61.12 | G107: 60.98 | H107: 61.48 | I107: 61.62 | J107: 61.73 | K107: 61.5 | L107: 61.25 | M107: 29.57494
A108: 99 | B108: IDFCBANK | C108: 42.7 | D108: 42.83 | E108: 42.07 | F108: 41.43 | G108: 40.67 | H108: 43.47 | I108: 44.23 | J108: 44.87 | K108: 43.6 | L108: 42.2 | M108: 110.44098
A109: 100 | B109: IDFC | C109: 42.15 | D109: 42.63 | E109: 41.52 | F109: 40.88 | G109: 39.77 | H109: 43.27 | I109: 44.38 | J109: 45.02 | K109: 43.75 | L109: 42 | M109: 24.02002
A110: 101 | B110: IRB | C110: 159.05 | D110: 160.58 | E110: 156.12 | F110: 153.18 | G110: 148.72 | H110: 163.52 | I110: 167.98 | J110: 170.92 | K110: 165.05 | L110: 157.65 | M110: 15.66046
A111: 102 | B111: IDEA | C111: 36.75 | D111: 37.07 | E111: 36.18 | F111: 35.62 | G111: 34.73 | H111: 37.63 | I111: 38.52 | J111: 39.08 | K111: 37.95 | L111: 36.5 | M111: 106.19192
A112: 103 | B112: IBULHSGFIN | C112: 842.3 | D112: 843.88 | E112: 831.27 | F112: 820.23 | G112: 807.62 | H112: 854.92 | I112: 867.53 | J112: 878.57 | K112: 856.5 | L112: 832.85 | M112: 39.95428
A113: 104 | B113: INDIANB | C113: 245.85 | D113: 248.68 | E113: 241.67 | F113: 237.48 | G113: 230.47 | H113: 252.87 | I113: 259.88 | J113: 264.07 | K113: 255.7 | L113: 244.5 | M113: 31.43838
A114: 105 | B114: INDHOTEL | C114: 141.85 | D114: 142.37 | E114: 134.73 | F114: 127.62 | G114: 119.98 | H114: 149.48 | I114: 157.12 | J114: 164.23 | K114: 150 | L114: 135.25 | M114: 10.35845
A115: 106 | B115: IOC | C115: 137.25 | D115: 136.52 | E115: 134.83 | F115: 132.42 | G115: 130.73 | H115: 138.93 | I115: 140.62 | J115: 143.03 | K115: 138.2 | L115: 134.1 | M115: 115.09773
A116: 107 | B116: IGL | C116: 275.35 | D116: 273.98 | E116: 271.22 | F116: 267.08 | G116: 264.32 | H116: 278.12 | I116: 280.88 | J116: 285.02 | K116: 276.75 | L116: 269.85 | M116: 25.07973
A117: 108 | B117: INDUSINDBK | C117: 1576.6 | D117: 1580.95 | E117: 1563.90 | F117: 1551.20 | G117: 1534.15 | H117: 1593.65 | I117: 1610.70 | J117: 1623.40 | K117: 1598 | L117: 1568.25 | M117: 11.64974
A118: 109 | B118: NAUKRI | C118: 1430.45 | D118: 1424.93 | E118: 1401.47 | F118: 1372.48 | G118: 1349.02 | H118: 1453.92 | I118: 1477.38 | J118: 1506.37 | K118: 1448.4 | L118: 1395.95 | M118: 0.89499
A119: 110 | B119: INFY | C119: 669.05 | D119: 668.37 | E119: 662.73 | F119: 656.42 | G119: 650.78 | H119: 674.68 | I119: 680.32 | J119: 686.63 | K119: 674 | L119: 662.05 | M119: 74.16655
A120: 111 | B120: INDIGO | C120: 1161 | D120: 1164.77 | E120: 1150.43 | F120: 1139.87 | G120: 1125.53 | H120: 1175.33 | I120: 1189.67 | J120: 1200.23 | K120: 1179.1 | L120: 1154.2 | M120: 6.44385
A121: 112 | B121: IPCALAB | C121: 799.85 | D121: 805.70 | E121: 792.40 | F121: 784.95 | G121: 771.65 | H121: 813.15 | I121: 826.45 | J121: 833.90 | K121: 819 | L121: 798.25 | M121: 0.60411
A122: 113 | B122: JSWENERGY | C122: 70.45 | D122: 70.25 | E122: 69.75 | F122: 69.05 | G122: 68.55 | H122: 70.95 | I122: 71.45 | J122: 72.15 | K122: 70.75 | L122: 69.55 | M122: 6.52239
A123: 114 | B123: JSWSTEEL | C123: 288.7 | D123: 291.08 | E123: 284.22 | F123: 279.73 | G123: 272.87 | H123: 295.57 | I123: 302.43 | J123: 306.92 | K123: 297.95 | L123: 286.6 | M123: 88.55139
A124: 115 | B124: JINDALSTEL | C124: 158.2 | D124: 158.72 | E124: 156.48 | F124: 154.77 | G124: 152.53 | H124: 160.43 | I124: 162.67 | J124: 164.38 | K124: 160.95 | L124: 157 | M124: 116.23258
A125: 116 | B125: JUBLFOOD | C125: 1239.15 | D125: 1248.12 | E125: 1220.03 | F125: 1200.92 | G125: 1172.83 | H125: 1267.23 | I125: 1295.32 | J125: 1314.43 | K125: 1276.2 | L125: 1229 | M125: 27.93859
A126: 117 | B126: JUBILANT | C126: 708.75 | D126: 709.57 | E126: 705.53 | F126: 702.32 | G126: 698.28 | H126: 712.78 | I126: 716.82 | J126: 720.03 | K126: 713.6 | L126: 706.35 | M126: 0.75984
A127: 118 | B127: KARURVYSYA | C127: 91.75 | D127: 91.58 | E127: 89.97 | F127: 88.18 | G127: 86.57 | H127: 93.37 | I127: 94.98 | J127: 96.77 | K127: 93.2 | L127: 89.8 | M127: 14.00459
A128: 119 | B128: KOTAKBANK | C128: 1240.6 | D128: 1238.62 | E128: 1228.98 | F128: 1217.37 | G128: 1207.73 | H128: 1250.23 | I128: 1259.87 | J128: 1271.48 | K128: 1248.25 | L128: 1227 | M128: 17.13677
A129: 120 | B129: L&TFH | C129: 150.5 | D129: 151.48 | E129: 148.62 | F129: 146.73 | G129: 143.87 | H129: 153.37 | I129: 156.23 | J129: 158.12 | K129: 154.35 | L129: 149.6 | M129: 46.95402
A130: 121 | B130: LICHSGFIN | C130: 476.15 | D130: 478.83 | E130: 471.67 | F130: 467.18 | G130: 460.02 | H130: 483.32 | I130: 490.48 | J130: 494.97 | K130: 486 | L130: 474.35 | M130: 11.19301
A131: 122 | B131: LT | C131: 1425.5 | D131: 1429.17 | E131: 1413.43 | F131: 1401.37 | G131: 1385.63 | H131: 1441.23 | I131: 1456.97 | J131: 1469.03 | K131: 1444.9 | L131: 1417.1 | M131: 20.58504
A132: 123 | B132: LUPIN | C132: 832.8 | D132: 835.28 | E132: 823.57 | F132: 814.33 | G132: 802.62 | H132: 844.52 | I132: 856.23 | J132: 865.47 | K132: 847 | L132: 826.05 | M132: 11.15202
A133: 124 | B133: MRF | C133: 66635.5 | D133: 66628.73 | E133: 66157.47 | F133: 65679.43 | G133: 65208.17 | H133: 67106.77 | I133: 67578.03 | J133: 68056.07 | K133: 67100 | L133: 66150.7 | M133: 0.07531
A134: 125 | B134: MGL | C134: 900.2 | D134: 903.53 | E134: 890.57 | F134: 880.93 | G134: 867.97 | H134: 913.17 | I134: 926.13 | J134: 935.77 | K134: 916.5 | L134: 893.9 | M134: 1.93454
A135: 126 | B135: M&MFIN | C135: 466.1 | D135: 467.30 | E135: 460.20 | F135: 454.30 | G135: 447.20 | H135: 473.20 | I135: 480.30 | J135: 486.20 | K135: 474.4 | L135: 461.4 | M135: 9.37198
A136: 127 | B136: M&M | C136: 741.7 | D136: 749.87 | E136: 726.93 | F136: 712.17 | G136: 689.23 | H136: 764.63 | I136: 787.57 | J136: 802.33 | K136: 772.8 | L136: 735.1 | M136: 105.9626
A137: 128 | B137: MANAPPURAM | C137: 92.4 | D137: 92.58 | E137: 91.37 | F137: 90.33 | G137: 89.12 | H137: 93.62 | I137: 94.83 | J137: 95.87 | K137: 93.8 | L137: 91.55 | M137: 18.09319
A138: 129 | B138: MRPL | C138: 73.95 | D138: 74.22 | E138: 72.83 | F138: 71.72 | G138: 70.33 | H138: 75.33 | I138: 76.72 | J138: 77.83 | K138: 75.6 | L138: 73.1 | M138: 9.18289
A139: 130 | B139: MARICO | C139: 372.85 | D139: 373.25 | E139: 368.85 | F139: 364.85 | G139: 360.45 | H139: 377.25 | I139: 381.65 | J139: 385.65 | K139: 377.65 | L139: 369.25 | M139: 11.60137
A140: 131 | B140: MARUTI | C140: 7267.85 | D140: 7323.95 | E140: 7187.90 | F140: 7107.95 | G140: 6971.90 | H140: 7403.90 | I140: 7539.95 | J140: 7619.90 | K140: 7460 | L140: 7244 | M140: 8.91844
A141: 132 | B141: MFSL | C141: 428.55 | D141: 433.18 | E141: 420.87 | F141: 413.18 | G141: 400.87 | H141: 440.87 | I141: 453.18 | J141: 460.87 | K141: 445.5 | L141: 425.5 | M141: 3.35661
A142: 133 | B142: MINDTREE | C142: 860.5 | D142: 865.23 | E142: 852.47 | F142: 844.43 | G142: 831.67 | H142: 873.27 | I142: 886.03 | J142: 894.07 | K142: 878 | L142: 857.2 | M142: 8.92157
A143: 134 | B143: MOTHERSUMI | C143: 163.75 | D143: 164.17 | E143: 162.38 | F143: 161.02 | G143: 159.23 | H143: 165.53 | I143: 167.32 | J143: 168.68 | K143: 165.95 | L143: 162.8 | M143: 24.66757
A144: 135 | B144: MPHASIS | C144: 989.4 | D144: 995.72 | E144: 981.68 | F144: 973.97 | G144: 959.93 | H144: 1003.43 | I144: 1017.47 | J144: 1025.18 | K144: 1009.75 | L144: 988 | M144: 1.52577
A145: 136 | B145: MUTHOOTFIN | C145: 502.25 | D145: 505.27 | E145: 494.98 | F145: 487.72 | G145: 477.43 | H145: 512.53 | I145: 522.82 | J145: 530.08 | K145: 515.55 | L145: 498 | M145: 9.73749
A146: 137 | B146: NATCOPHARM | C146: 698.7 | D146: 696.07 | E146: 690.63 | F146: 682.57 | G146: 677.13 | H146: 704.13 | I146: 709.57 | J146: 717.63 | K146: 701.5 | L146: 688 | M146: 1.65072
A147: 138 | B147: NBCC | C147: 58 | D147: 57.90 | E147: 56.90 | F147: 55.80 | G147: 54.80 | H147: 59.00 | I147: 60.00 | J147: 61.10 | K147: 58.9 | L147: 56.8 | M147: 86.92267
A148: 139 | B148: NHPC | C148: 25.65 | D148: 25.73 | E148: 25.47 | F148: 25.28 | G148: 25.02 | H148: 25.92 | I148: 26.18 | J148: 26.37 | K148: 26 | L148: 25.55 | M148: 23.84454
A149: 140 | B149: NMDC | C149: 96.8 | D149: 97.65 | E149: 95.80 | F149: 94.80 | G149: 92.95 | H149: 98.65 | I149: 100.50 | J149: 101.50 | K149: 99.5 | L149: 96.65 | M149: 131.02744
A150: 141 | B150: NTPC | C150: 147 | D150: 147.28 | E150: 145.87 | F150: 144.73 | G150: 143.32 | H150: 148.42 | I150: 149.83 | J150: 150.97 | K150: 148.7 | L150: 146.15 | M150: 43.34233
A151: 142 | B151: NATIONALUM | C151: 63.95 | D151: 64.28 | E151: 63.27 | F151: 62.58 | G151: 61.57 | H151: 64.97 | I151: 65.98 | J151: 66.67 | K151: 65.3 | L151: 63.6 | M151: 34.37321
A152: 143 | B152: OBEROIRLTY | C152: 447.45 | D152: 451.48 | E152: 436.97 | F152: 426.48 | G152: 411.97 | H152: 461.97 | I152: 476.48 | J152: 486.97 | K152: 466 | L152: 441 | M152: 3.89093
A153: 144 | B153: ONGC | C153: 147.05 | D153: 147.05 | E153: 145.75 | F153: 144.45 | G153: 143.15 | H153: 148.35 | I153: 149.65 | J153: 150.95 | K153: 148.35 | L153: 145.75 | M153: 174.36694
A154: 145 | B154: OIL | C154: 172.4 | D154: 173.20 | E154: 170.20 | F154: 168.00 | G154: 165.00 | H154: 175.40 | I154: 178.40 | J154: 180.60 | K154: 176.2 | L154: 171 | M154: 7.22532
A155: 146 | B155: OFSS | C155: 3710.95 | D155: 3721.42 | E155: 3682.83 | F155: 3654.72 | G155: 3616.13 | H155: 3749.53 | I155: 3788.12 | J155: 3816.23 | K155: 3760 | L155: 3693.3 | M155: 0.34252
A156: 147 | B156: PCJEWELLER | C156: 82.8 | D156: 83.77 | E156: 81.23 | F156: 79.67 | G156: 77.13 | H156: 85.33 | I156: 87.87 | J156: 89.43 | K156: 86.3 | L156: 82.2 | M156: 117.6762
A157: 148 | B157: PIIND | C157: 864.1 | D157: 865.42 | E157: 854.93 | F157: 845.77 | G157: 835.28 | H157: 874.58 | I157: 885.07 | J157: 894.23 | K157: 875.9 | L157: 856.25 | M157: 0.87402
A158: 149 | B158: PNBHOUSING | C158: 919.85 | D158: 919.95 | E158: 914.90 | F158: 909.95 | G158: 904.90 | H158: 924.90 | I158: 929.95 | J158: 934.90 | K158: 925 | L158: 915 | M158: 0.87061
A159: 150 | B159: PAGEIND | C159: 24591.15 | D159: 24677.38 | E159: 24243.77 | F159: 23896.38 | G159: 23462.77 | H159: 25024.77 | I159: 25458.38 | J159: 25805.77 | K159: 25111 | L159: 24330 | M159: 0.2959
A160: 151 | B160: PETRONET | C160: 228.8 | D160: 229.00 | E160: 226.70 | F160: 224.60 | G160: 222.30 | H160: 231.10 | I160: 233.40 | J160: 235.50 | K160: 231.3 | L160: 226.9 | M160: 27.41873
A161: 152 | B161: PIDILITIND | C161: 1107.65 | D161: 1104.05 | E161: 1091.90 | F161: 1076.15 | G161: 1064.00 | H161: 1119.80 | I161: 1131.95 | J161: 1147.70 | K161: 1116.2 | L161: 1088.3 | M161: 4.10838
A162: 153 | B162: PEL | C162: 2343.75 | D162: 2362.75 | E162: 2315.50 | F162: 2287.25 | G162: 2240.00 | H162: 2391.00 | I162: 2438.25 | J162: 2466.50 | K162: 2410 | L162: 2334.5 | M162: 6.07051
A163: 154 | B163: PFC | C163: 104.05 | D163: 105.08 | E163: 102.47 | F163: 100.88 | G163: 98.27 | H163: 106.67 | I163: 109.28 | J163: 110.87 | K163: 107.7 | L163: 103.5 | M163: 75.9842
A164: 155 | B164: POWERGRID | C164: 195.25 | D164: 196.42 | E164: 192.83 | F164: 190.42 | G164: 186.83 | H164: 198.83 | I164: 202.42 | J164: 204.83 | K164: 200 | L164: 194 | M164: 44.30566
A165: 156 | B165: PRESTIGE | C165: 231.6 | D165: 234.67 | E165: 226.93 | F165: 222.27 | G165: 214.53 | H165: 239.33 | I165: 247.07 | J165: 251.73 | K165: 242.4 | L165: 230 | M165: 4.75496
A166: 157 | B166: PGHH | C166: 9895 | D166: 9882.87 | E166: 9852.13 | F166: 9809.27 | G166: 9778.53 | H166: 9925.73 | I166: 9956.47 | J166: 9999.33 | K166: 9913.6 | L166: 9840 | M166: 0.02809
A167: 158 | B167: PNB | C167: 77.85 | D167: 78.52 | E167: 76.63 | F167: 75.42 | G167: 73.53 | H167: 79.73 | I167: 81.62 | J167: 82.83 | K167: 80.4 | L167: 77.3 | M167: 271.92314
A168: 159 | B168: RBLBANK | C168: 565.2 | D168: 570.45 | E168: 559.00 | F168: 552.80 | G168: 541.35 | H168: 576.65 | I168: 588.10 | J168: 594.30 | K168: 581.9 | L168: 564.25 | M168: 7.56154
A169: 160 | B169: RAJESHEXPO | C169: 572.45 | D169: 572.63 | E169: 570.32 | F169: 568.18 | G169: 565.87 | H169: 574.77 | I169: 577.08 | J169: 579.22 | K169: 574.95 | L169: 570.5 | M169: 3.37617
A170: 161 | B170: RELCAPITAL | C170: 221.8 | D170: 224.70 | E170: 217.35 | F170: 212.90 | G170: 205.55 | H170: 229.15 | I170: 236.50 | J170: 240.95 | K170: 232.05 | L170: 220.25 | M170: 54.76449
A171: 162 | B171: RCOM | C171: 13.85 | D171: 13.95 | E171: 13.50 | F171: 13.15 | G171: 12.70 | H171: 14.30 | I171: 14.75 | J171: 15.10 | K171: 14.4 | L171: 13.6 | M171: 920.48688
A172: 163 | B172: RELIANCE | C172: 1106.4 | D172: 1111.47 | E172: 1095.93 | F172: 1085.47 | G172: 1069.93 | H172: 1121.93 | I172: 1137.47 | J172: 1147.93 | K172: 1127 | L172: 1101 | M172: 71.4497
A173: 164 | B173: RELINFRA | C173: 305.95 | D173: 308.70 | E173: 300.15 | F173: 294.35 | G173: 285.80 | H173: 314.50 | I173: 323.05 | J173: 328.85 | K173: 317.25 | L173: 302.9 | M173: 34.67764
A174: 165 | B174: RPOWER | C174: 27.75 | D174: 28.05 | E174: 27.30 | F174: 26.85 | G174: 26.10 | H174: 28.50 | I174: 29.25 | J174: 29.70 | K174: 28.8 | L174: 27.6 | M174: 115.68301
A175: 166 | B175: RECLTD | C175: 119.05 | D175: 119.85 | E175: 117.85 | F175: 116.65 | G175: 114.65 | H175: 121.05 | I175: 123.05 | J175: 124.25 | K175: 121.85 | L175: 118.65 | M175: 62.62554
A176: 167 | B176: SRF | C176: 1992.15 | D176: 1988.45 | E176: 1963.75 | F176: 1935.35 | G176: 1910.65 | H176: 2016.85 | I176: 2041.55 | J176: 2069.95 | K176: 2013.15 | L176: 1960.05 | M176: 4.67887
A177: 168 | B177: SHREECEM | C177: 16939.95 | D177: 16969.98 | E177: 16741.97 | F177: 16543.98 | G177: 16315.97 | H177: 17167.97 | I177: 17395.98 | J177: 17593.97 | K177: 17198 | L177: 16772 | M177: 0.13931
A178: 169 | B178: SRTRANSFIN | C178: 1195.4 | D178: 1207.98 | E178: 1163.97 | F178: 1132.53 | G178: 1088.52 | H178: 1239.42 | I178: 1283.43 | J178: 1314.87 | K178: 1252 | L178: 1176.55 | M178: 15.88301
A179: 170 | B179: SIEMENS | C179: 1056.55 | D179: 1057.92 | E179: 1048.23 | F179: 1039.92 | G179: 1030.23 | H179: 1066.23 | I179: 1075.92 | J179: 1084.23 | K179: 1067.6 | L179: 1049.6 | M179: 5.81675
A180: 171 | B180: SBIN | C180: 293.9 | D180: 296.50 | E180: 290.50 | F180: 287.10 | G180: 281.10 | H180: 299.90 | I180: 305.90 | J180: 309.30 | K180: 302.5 | L180: 293.1 | M180: 255.59853
A181: 172 | B181: SAIL | C181: 54 | D181: 54.32 | E181: 53.43 | F181: 52.87 | G181: 51.98 | H181: 54.88 | I181: 55.77 | J181: 56.33 | K181: 55.2 | L181: 53.75 | M181: 123.22286
A182: 173 | B182: SPARC | C182: 190.35 | D182: 190.57 | E182: 188.03 | F182: 185.72 | G182: 183.18 | H182: 192.88 | I182: 195.42 | J182: 197.73 | K182: 193.1 | L182: 188.25 | M182: 7.31913
A183: 174 | B183: SUNPHARMA | C183: 440.05 | D183: 436.83 | E183: 432.47 | F183: 424.88 | G183: 420.52 | H183: 444.42 | I183: 448.78 | J183: 456.37 | K183: 441.2 | L183: 429.25 | M183: 96.56878
A184: 175 | B184: SUNTV | C184: 604.6 | D184: 605.30 | E184: 597.75 | F184: 590.90 | G184: 583.35 | H184: 612.15 | I184: 619.70 | J184: 626.55 | K184: 612.85 | L184: 598.45 | M184: 12.05671
A185: 176 | B185: SUZLON | C185: 5.35 | D185: 5.37 | E185: 5.28 | F185: 5.22 | G185: 5.13 | H185: 5.43 | I185: 5.52 | J185: 5.58 | K185: 5.45 | L185: 5.3 | M185: 135.45713
A186: 177 | B186: SYNDIBANK | C186: 39.15 | D186: 39.28 | E186: 38.47 | F186: 37.78 | G186: 36.97 | H186: 39.97 | I186: 40.78 | J186: 41.47 | K186: 40.1 | L186: 38.6 | M186: 49.55011
A187: 178 | B187: SYNGENE | C187: 552.2 | D187: 554.48 | E187: 547.72 | F187: 543.23 | G187: 536.47 | H187: 558.97 | I187: 565.73 | J187: 570.22 | K187: 561.25 | L187: 550 | M187: 0.26904
A188: 179 | B188: TV18BRDCST | C188: 37.65 | D188: 37.93 | E188: 37.12 | F188: 36.58 | G188: 35.77 | H188: 38.47 | I188: 39.28 | J188: 39.82 | K188: 38.75 | L188: 37.4 | M188: 27.64365
A189: 180 | B189: TVSMOTOR | C189: 535.25 | D189: 547.30 | E189: 518.95 | F189: 502.65 | G189: 474.30 | H189: 563.60 | I189: 591.95 | J189: 608.25 | K189: 575.65 | L189: 531 | M189: 36.5009
A190: 181 | B190: TATACHEM | C190: 700.85 | D190: 702.32 | E190: 695.58 | F190: 690.32 | G190: 683.58 | H190: 707.58 | I190: 714.32 | J190: 719.58 | K190: 709.05 | L190: 697.05 | M190: 7.63954
A191: 182 | B191: TATACOMM | C191: 521.35 | D191: 524.53 | E191: 515.12 | F191: 508.88 | G191: 499.47 | H191: 530.77 | I191: 540.18 | J191: 546.42 | K191: 533.95 | L191: 518.3 | M191: 7.61027
A192: 183 | B192: TCS | C192: 1923.3 | D192: 1919.25 | E192: 1904.05 | F192: 1884.80 | G192: 1869.60 | H192: 1938.50 | I192: 1953.70 | J192: 1972.95 | K192: 1934.45 | L192: 1900 | M192: 21.00463
A193: 184 | B193: TATAGLOBAL | C193: 214.6 | D193: 216.18 | E193: 212.02 | F193: 209.43 | G193: 205.27 | H193: 218.77 | I193: 222.93 | J193: 225.52 | K193: 220.35 | L193: 213.6 | M193: 10.81778
A194: 185 | B194: TATAMTRDVR | C194: 90.45 | D194: 90.95 | E194: 89.55 | F194: 88.65 | G194: 87.25 | H194: 91.85 | I194: 93.25 | J194: 94.15 | K194: 92.35 | L194: 90.05 | M194: 25.73415
A195: 186 | B195: TATAMOTORS | C195: 168.55 | D195: 169.43 | E195: 167.12 | F195: 165.68 | G195: 163.37 | H195: 170.87 | I195: 173.18 | J195: 174.62 | K195: 171.75 | L195: 168 | M195: 134.10104
A196: 187 | B196: TATAPOWER | C196: 74.85 | D196: 75.40 | E196: 73.85 | F196: 72.85 | G196: 71.30 | H196: 76.40 | I196: 77.95 | J196: 78.95 | K196: 76.95 | L196: 74.4 | M196: 25.04768
A197: 188 | B197: TATASTEEL | C197: 493.65 | D197: 497.48 | E197: 488.17 | F197: 482.68 | G197: 473.37 | H197: 502.97 | I197: 512.28 | J197: 517.77 | K197: 506.8 | L197: 492 | M197: 117.4735
A198: 189 | B198: TECHM | C198: 712.05 | D198: 717.00 | E198: 704.30 | F198: 696.55 | G198: 683.85 | H198: 724.75 | I198: 737.45 | J198: 745.20 | K198: 729.7 | L198: 709.25 | M198: 25.76769
A199: 190 | B199: RAMCOCEM | C199: 638.1 | D199: 637.80 | E199: 633.30 | F199: 628.50 | G199: 624.00 | H199: 642.60 | I199: 647.10 | J199: 651.90 | K199: 642.3 | L199: 633 | M199: 0.98006
A200: 191 | B200: TITAN | C200: 932.15 | D200: 930.82 | E200: 924.63 | F200: 917.12 | G200: 910.93 | H200: 938.33 | I200: 944.52 | J200: 952.03 | K200: 937 | L200: 923.3 | M200: 26.72587
A201: 192 | B201: TORNTPHARM | C201: 1777.75 | D201: 1771.27 | E201: 1753.53 | F201: 1729.32 | G201: 1711.58 | H201: 1795.48 | I201: 1813.22 | J201: 1837.43 | K201: 1789 | L201: 1747.05 | M201: 1.08547
A202: 193 | B202: TORNTPOWER | C202: 255.75 | D202: 256.53 | E202: 253.17 | F202: 250.58 | G202: 247.22 | H202: 259.12 | I202: 262.48 | J202: 265.07 | K202: 259.9 | L202: 253.95 | M202: 7.36827
A203: 194 | B203: UPL | C203: 756.5 | D203: 752.98 | E203: 747.52 | F203: 738.53 | G203: 733.07 | H203: 761.97 | I203: 767.43 | J203: 776.42 | K203: 758.45 | L203: 744 | M203: 13.08043
A204: 195 | B204: ULTRACEMCO | C204: 4006.1 | D204: 3999.67 | E204: 3980.38 | F204: 3954.67 | G204: 3935.38 | H204: 4025.38 | I204: 4044.67 | J204: 4070.38 | K204: 4018.95 | L204: 3973.95 | M204: 1.43828
A205: 196 | B205: UNIONBANK | C205: 88.2 | D205: 88.43 | E205: 87.07 | F205: 85.93 | G205: 84.57 | H205: 89.57 | I205: 90.93 | J205: 92.07 | K205: 89.8 | L205: 87.3 | M205: 110.20333
... 29 more rows

Sheet MidCap Intra
L5: Back To Main Page
A6: FOR INTRA DAY TRADING | K6: =Main!B10 -> 2019-01-03
A9: Sr.no | B9: Scrip | C9: CLOSE RATE | D9: Pivot Point | E9: Supports | H9: Resistances
C10: Point | E10: S1 | F10: S2 | G10: S3 | H10: R1 | I10: R2 | J10: R3 | K10: HIGH | L10: LOW | M10: Total Trade Quanity in Lakhs
A11: 1 | B11: 3MINDIA | C11: 19985.75 | D11: 20201.52 | E11: 19736.68 | F11: 19487.62 | G11: 19022.78 | H11: 20450.58 | I11: 20915.42 | J11: 21164.48 | K11: 20666.35 | L11: 19952.45 | M11: 0.08642
A12: 2 | B12: 8KMILES | C12: 138.8 | D12: 140.02 | E12: 137.03 | F12: 135.27 | G12: 132.28 | H12: 141.78 | I12: 144.77 | J12: 146.53 | K12: 143 | L12: 138.25 | M12: 2.15557
A13: 3 | B13: AARTIIND | C13: 1450.7 | D13: 1445.28 | E13: 1436.62 | F13: 1422.53 | G13: 1413.87 | H13: 1459.37 | I13: 1468.03 | J13: 1482.12 | K13: 1453.95 | L13: 1431.2 | M13: 0.27836
A14: 4 | B14: ABAN | C14: 74.1 | D14: 74.17 | E14: 73.03 | F14: 71.97 | G14: 70.83 | H14: 75.23 | I14: 76.37 | J14: 77.43 | K14: 75.3 | L14: 73.1 | M14: 4.13245
A15: 5 | B15: ABB | C15: 1319.25 | D15: 1320.18 | E15: 1310.37 | F15: 1301.48 | G15: 1291.67 | H15: 1329.07 | I15: 1338.88 | J15: 1347.77 | K15: 1330 | L15: 1311.3 | M15: 0.56713
A16: 6 | B16: ABCAPITAL | C16: 99.25 | D16: 99.90 | E16: 98.35 | F16: 97.45 | G16: 95.90 | H16: 100.80 | I16: 102.35 | J16: 103.25 | K16: 101.45 | L16: 99 | M16: 17.28162
A17: 7 | B17: ABFRL | C17: 195.55 | D17: 196.98 | E17: 193.12 | F17: 190.68 | G17: 186.82 | H17: 199.42 | I17: 203.28 | J17: 205.72 | K17: 200.85 | L17: 194.55 | M17: 8.54111
A18: 8 | B18: ACC | C18: 1483.95 | D18: 1487.82 | E18: 1473.68 | F18: 1463.42 | G18: 1449.28 | H18: 1498.08 | I18: 1512.22 | J18: 1522.48 | K18: 1501.95 | L18: 1477.55 | M18: 6.69181
A19: 9 | B19: ADANIPORTS | C19: 381.3 | D19: 382.75 | E19: 376.55 | F19: 371.80 | G19: 365.60 | H19: 387.50 | I19: 393.70 | J19: 398.45 | K19: 388.95 | L19: 378 | M19: 15.06543
A20: 10 | B20: ADANIPOWER | C20: 50.55 | D20: 50.60 | E20: 50.15 | F20: 49.75 | G20: 49.30 | H20: 51.00 | I20: 51.45 | J20: 51.85 | K20: 51.05 | L20: 50.2 | M20: 61.7496
A21: 11 | B21: ADANITRANS | C21: 200.55 | D21: 200.22 | E21: 198.43 | F21: 196.32 | G21: 194.53 | H21: 202.33 | I21: 204.12 | J21: 206.23 | K21: 202 | L21: 198.1 | M21: 0.67391
A22: 12 | B22: ADVENZYMES | C22: 175 | D22: 175.35 | E22: 173.85 | F22: 172.70 | G22: 171.20 | H22: 176.50 | I22: 178.00 | J22: 179.15 | K22: 176.85 | L22: 174.2 | M22: 0.19928
A23: 13 | B23: AEGISCHEM | C23: 203.95 | D23: 202.62 | E23: 200.33 | F23: 196.72 | G23: 194.43 | H23: 206.23 | I23: 208.52 | J23: 212.13 | K23: 204.9 | L23: 199 | M23: 0.71509
A24: 14 | B24: AIAENG | C24: 1652.55 | D24: 1651.83 | E24: 1629.82 | F24: 1607.08 | G24: 1585.07 | H24: 1674.57 | I24: 1696.58 | J24: 1719.32 | K24: 1673.85 | L24: 1629.1 | M24: 0.1391
A25: 15 | B25: AJANTPHARM | C25: 1164.35 | D25: 1170.03 | E25: 1148.47 | F25: 1132.58 | G25: 1111.02 | H25: 1185.92 | I25: 1207.48 | J25: 1223.37 | K25: 1191.6 | L25: 1154.15 | M25: 1.78595
A26: 16 | B26: AKZOINDIA | C26: 1769.4 | D26: 1779.33 | E26: 1733.67 | F26: 1697.93 | G26: 1652.27 | H26: 1815.07 | I26: 1860.73 | J26: 1896.47 | K26: 1825 | L26: 1743.6 | M26: 0.19951
A27: 17 | B27: ALBK | C27: 45 | D27: 45.62 | E27: 44.23 | F27: 43.47 | G27: 42.08 | H27: 46.38 | I27: 47.77 | J27: 48.53 | K27: 47 | L27: 44.85 | M27: 46.12405
A28: 18 | B28: ALKEM | C28: 1951.05 | D28: 1950.35 | E28: 1925.70 | F28: 1900.35 | G28: 1875.70 | H28: 1975.70 | I28: 2000.35 | J28: 2025.70 | K28: 1975 | L28: 1925 | M28: 0.33809
A29: 19 | B29: ALLCARGO | C29: 108.6 | D29: 108.37 | E29: 107.48 | F29: 106.37 | G29: 105.48 | H29: 109.48 | I29: 110.37 | J29: 111.48 | K29: 109.25 | L29: 107.25 | M29: 0.8673
A30: 20 | B30: AMARAJABAT | C30: 733.55 | D30: 735.15 | E30: 729.20 | F30: 724.85 | G30: 718.90 | H30: 739.50 | I30: 745.45 | J30: 749.80 | K30: 741.1 | L30: 730.8 | M30: 2.65053
A31: 21 | B31: AMBUJACEM | C31: 218.95 | D31: 220.27 | E31: 216.73 | F31: 214.52 | G31: 210.98 | H31: 222.48 | I31: 226.02 | J31: 228.23 | K31: 223.8 | L31: 218.05 | M31: 18.26162
A32: 22 | B32: ANDHRABANK | C32: 29.65 | D32: 29.75 | E32: 29.45 | F32: 29.25 | G32: 28.95 | H32: 29.95 | I32: 30.25 | J32: 30.45 | K32: 30.05 | L32: 29.55 | M32: 10.86302
A33: 23 | B33: APLAPOLLO | C33: 1208.85 | D33: 1199.30 | E33: 1169.60 | F33: 1130.35 | G33: 1100.65 | H33: 1238.55 | I33: 1268.25 | J33: 1307.50 | K33: 1229 | L33: 1160.05 | M33: 0.56412
A34: 24 | B34: APLLTD | C34: 580.45 | D34: 582.17 | E34: 575.33 | F34: 570.22 | G34: 563.38 | H34: 587.28 | I34: 594.12 | J34: 599.23 | K34: 589 | L34: 577.05 | M34: 0.15441
A35: 25 | B35: APOLLOHOSP | C35: 1258.75 | D35: 1266.18 | E35: 1244.37 | F35: 1229.98 | G35: 1208.17 | H35: 1280.57 | I35: 1302.38 | J35: 1316.77 | K35: 1288 | L35: 1251.8 | M35: 6.58775
A36: 26 | B36: APOLLOTYRE | C36: 230.85 | D36: 231.78 | E36: 228.32 | F36: 225.78 | G36: 222.32 | H36: 234.32 | I36: 237.78 | J36: 240.32 | K36: 235.25 | L36: 229.25 | M36: 19.8351
A37: 27 | B37: ARVIND | C37: 96.3 | D37: 97.00 | E37: 95.35 | F37: 94.40 | G37: 92.75 | H37: 97.95 | I37: 99.60 | J37: 100.55 | K37: 98.65 | L37: 96.05 | M37: 14.21931
A38: 28 | B38: ASAHIINDIA | C38: 258.75 | D38: 262.85 | E38: 252.90 | F38: 247.05 | G38: 237.10 | H38: 268.70 | I38: 278.65 | J38: 284.50 | K38: 272.8 | L38: 257 | M38: 0.22791
A39: 29 | B39: ASHOKA | C39: 123.4 | D39: 123.88 | E39: 121.92 | F39: 120.43 | G39: 118.47 | H39: 125.37 | I39: 127.33 | J39: 128.82 | K39: 125.85 | L39: 122.4 | M39: 0.51243
A40: 30 | B40: ASHOKLEY | C40: 99.95 | D40: 100.42 | E40: 98.53 | F40: 97.12 | G40: 95.23 | H40: 101.83 | I40: 103.72 | J40: 105.13 | K40: 102.3 | L40: 99 | M40: 401.23864
A41: 31 | B41: ASIANPAINT | C41: 1383.3 | D41: 1377.25 | E41: 1367.65 | F41: 1352.00 | G41: 1342.40 | H41: 1392.90 | I41: 1402.50 | J41: 1418.15 | K41: 1386.85 | L41: 1361.6 | M41: 12.3378
A42: 32 | B42: ASTRAL | C42: 1141.05 | D42: 1137.08 | E42: 1125.27 | F42: 1109.48 | G42: 1097.67 | H42: 1152.87 | I42: 1164.68 | J42: 1180.47 | K42: 1148.9 | L42: 1121.3 | M42: 0.37352
A43: 33 | B43: ATUL | C43: 3463.1 | D43: 3461.80 | E43: 3438.60 | F43: 3414.10 | G43: 3390.90 | H43: 3486.30 | I43: 3509.50 | J43: 3534.00 | K43: 3485 | L43: 3437.3 | M43: 0.08619
A44: 34 | B44: AUBANK | C44: 620.25 | D44: 618.95 | E44: 613.25 | F44: 606.25 | G44: 600.55 | H44: 625.95 | I44: 631.65 | J44: 638.65 | K44: 624.65 | L44: 611.95 | M44: 1.66148
A45: 35 | B45: AUROPHARMA | C45: 724.35 | D45: 725.25 | E45: 718.10 | F45: 711.85 | G45: 704.70 | H45: 731.50 | I45: 738.65 | J45: 744.90 | K45: 732.4 | L45: 719 | M45: 18.45752
A46: 36 | B46: AVANTIFEED | C46: 378.4 | D46: 380.70 | E46: 374.05 | F46: 369.70 | G46: 363.05 | H46: 385.05 | I46: 391.70 | J46: 396.05 | K46: 387.35 | L46: 376.35 | M46: 1.59652
A47: 37 | B47: AXISBANK | C47: 620.05 | D47: 622.02 | E47: 615.53 | F47: 611.02 | G47: 604.53 | H47: 626.53 | I47: 633.02 | J47: 637.53 | K47: 628.5 | L47: 617.5 | M47: 123.86281
A48: 38 | B48: BAJAJ-AUTO | C48: 2692 | D48: 2705.42 | E48: 2663.58 | F48: 2635.17 | G48: 2593.33 | H48: 2733.83 | I48: 2775.67 | J48: 2804.08 | K48: 2747.25 | L48: 2677 | M48: 5.99274
A49: 39 | B49: BAJAJCORP | C49: 378.05 | D49: 377.73 | E49: 375.47 | F49: 372.88 | G49: 370.62 | H49: 380.32 | I49: 382.58 | J49: 385.17 | K49: 380 | L49: 375.15 | M49: 0.54079
A50: 40 | B50: BAJAJELEC | C50: 506.35 | D50: 506.77 | E50: 501.73 | F50: 497.12 | G50: 492.08 | H50: 511.38 | I50: 516.42 | J50: 521.03 | K50: 511.8 | L50: 502.15 | M50: 1.45547
A51: 41 | B51: BAJAJFINSV | C51: 6384 | D51: 6423.33 | E51: 6320.67 | F51: 6257.33 | G51: 6154.67 | H51: 6486.67 | I51: 6589.33 | J51: 6652.67 | K51: 6526 | L51: 6360 | M51: 2.21274
A52: 42 | B52: BAJAJHIND | C52: 8.9 | D52: 8.87 | E52: 8.63 | F52: 8.37 | G52: 8.13 | H52: 9.13 | I52: 9.37 | J52: 9.63 | K52: 9.1 | L52: 8.6 | M52: 27.15501
A53: 43 | B53: BAJAJHLDNG | C53: 2950.1 | D53: 2947.70 | E53: 2927.40 | F53: 2904.70 | G53: 2884.40 | H53: 2970.40 | I53: 2990.70 | J53: 3013.40 | K53: 2968 | L53: 2925 | M53: 0.15693
A54: 44 | B54: BAJFINANCE | C54: 2614.05 | D54: 2625.98 | E54: 2589.97 | F54: 2565.88 | G54: 2529.87 | H54: 2650.07 | I54: 2686.08 | J54: 2710.17 | K54: 2662 | L54: 2601.9 | M54: 13.04915
A55: 45 | B55: BALKRISIND | C55: 912.3 | D55: 917.83 | E55: 902.92 | F55: 893.53 | G55: 878.62 | H55: 927.22 | I55: 942.13 | J55: 951.52 | K55: 932.75 | L55: 908.45 | M55: 5.34985
A56: 46 | B56: BALLARPUR | C56: 5.5 | D56: 5.52 | E56: 5.38 | F56: 5.27 | G56: 5.13 | H56: 5.63 | I56: 5.77 | J56: 5.88 | K56: 5.65 | L56: 5.4 | M56: 3.77682
A57: 47 | B57: BALMLAWRIE | C57: 198.75 | D57: 200.35 | E57: 196.85 | F57: 194.95 | G57: 191.45 | H57: 202.25 | I57: 205.75 | J57: 207.65 | K57: 203.85 | L57: 198.45 | M57: 0.29411
A58: 48 | B58: BALRAMCHIN | C58: 104.5 | D58: 103.75 | E58: 102.60 | F58: 100.70 | G58: 99.55 | H58: 105.65 | I58: 106.80 | J58: 108.70 | K58: 104.9 | L58: 101.85 | M58: 22.16466
A59: 49 | B59: BANKBARODA | C59: 119.35 | D59: 120.67 | E59: 116.88 | F59: 114.42 | G59: 110.63 | H59: 123.13 | I59: 126.92 | J59: 129.38 | K59: 124.45 | L59: 118.2 | M59: 255.68039
A60: 50 | B60: BANKINDIA | C60: 104.8 | D60: 105.50 | E60: 103.10 | F60: 101.40 | G60: 99.00 | H60: 107.20 | I60: 109.60 | J60: 111.30 | K60: 107.9 | L60: 103.8 | M60: 169.84848
A61: 51 | B61: BASF | C61: 1534.4 | D61: 1536.38 | E61: 1523.02 | F61: 1511.63 | G61: 1498.27 | H61: 1547.77 | I61: 1561.13 | J61: 1572.52 | K61: 1549.75 | L61: 1525 | M61: 0.07273
A62: 52 | B62: BATAINDIA | C62: 1112.05 | D62: 1118.35 | E62: 1101.70 | F62: 1091.35 | G62: 1074.70 | H62: 1128.70 | I62: 1145.35 | J62: 1155.70 | K62: 1135 | L62: 1108 | M62: 4.93851
A63: 53 | B63: BBTC | C63: 1305.25 | D63: 1309.42 | E63: 1287.83 | F63: 1270.42 | G63: 1248.83 | H63: 1326.83 | I63: 1348.42 | J63: 1365.83 | K63: 1331 | L63: 1292 | M63: 0.57452
A64: 54 | B64: BEL | C64: 89.7 | D64: 88.90 | E64: 87.55 | F64: 85.40 | G64: 84.05 | H64: 91.05 | I64: 92.40 | J64: 94.55 | K64: 90.25 | L64: 86.75 | M64: 102.31387
A65: 55 | B65: BEML | C65: 922.9 | D65: 915.87 | E65: 902.03 | F65: 881.17 | G65: 867.33 | H65: 936.73 | I65: 950.57 | J65: 971.43 | K65: 929.7 | L65: 895 | M65: 45.12582
A66: 56 | B66: BERGEPAINT | C66: 327.3 | D66: 328.37 | E66: 324.88 | F66: 322.47 | G66: 318.98 | H66: 330.78 | I66: 334.27 | J66: 336.68 | K66: 331.85 | L66: 325.95 | M66: 13.31713
A67: 57 | B67: BFUTILITIE | C67: 223.9 | D67: 224.57 | E67: 218.33 | F67: 212.77 | G67: 206.53 | H67: 230.13 | I67: 236.37 | J67: 241.93 | K67: 230.8 | L67: 219 | M67: 12.82189
A68: 58 | B68: BGRENERGY | C68: 60.9 | D68: 61.07 | E68: 60.08 | F68: 59.27 | G68: 58.28 | H68: 61.88 | I68: 62.87 | J68: 63.68 | K68: 62.05 | L68: 60.25 | M68: 0.52426
A69: 59 | B69: BHARATFIN | C69: 1001.4 | D69: 1003.92 | E69: 993.23 | F69: 985.07 | G69: 974.38 | H69: 1012.08 | I69: 1022.77 | J69: 1030.93 | K69: 1014.6 | L69: 995.75 | M69: 1.99322
A70: 60 | B70: BHARATFORG | C70: 494.9 | D70: 499.22 | E70: 487.68 | F70: 480.47 | G70: 468.93 | H70: 506.43 | I70: 517.97 | J70: 525.18 | K70: 510.75 | L70: 492 | M70: 16.21236
A71: 61 | B71: BHARTIARTL | C71: 312.65 | D71: 314.25 | E71: 307.50 | F71: 302.35 | G71: 295.60 | H71: 319.40 | I71: 326.15 | J71: 331.30 | K71: 321 | L71: 309.1 | M71: 56.04911
A72: 62 | B72: BHEL | C72: 73 | D72: 73.42 | E72: 72.03 | F72: 71.07 | G72: 69.68 | H72: 74.38 | I72: 75.77 | J72: 76.73 | K72: 74.8 | L72: 72.45 | M72: 86.15103
A73: 63 | B73: BIOCON | C73: 622.8 | D73: 624.33 | E73: 617.47 | F73: 612.13 | G73: 605.27 | H73: 629.67 | I73: 636.53 | J73: 641.87 | K73: 631.2 | L73: 619 | M73: 12.32572
A74: 64 | B74: BIRLACORPN | C74: 590.8 | D74: 592.63 | E74: 586.27 | F74: 581.73 | G74: 575.37 | H74: 597.17 | I74: 603.53 | J74: 608.07 | K74: 599 | L74: 588.1 | M74: 0.24982
A75: 65 | B75: BLISSGVS | C75: 165.65 | D75: 165.87 | E75: 160.73 | F75: 155.82 | G75: 150.68 | H75: 170.78 | I75: 175.92 | J75: 180.83 | K75: 171 | L75: 160.95 | M75: 8.65211
A76: 66 | B76: BLUEDART | C76: 3365.9 | D76: 3368.65 | E76: 3327.25 | F76: 3288.60 | G76: 3247.20 | H76: 3407.30 | I76: 3448.70 | J76: 3487.35 | K76: 3410.05 | L76: 3330 | M76: 0.049
A77: 67 | B77: BLUESTARCO | C77: 622.4 | D77: 622.65 | E77: 619.75 | F77: 617.10 | G77: 614.20 | H77: 625.30 | I77: 628.20 | J77: 630.85 | K77: 625.55 | L77: 620 | M77: 0.08342
A78: 68 | B78: BOMDYEING | C78: 112.45 | D78: 113.48 | E78: 110.97 | F78: 109.48 | G78: 106.97 | H78: 114.97 | I78: 117.48 | J78: 118.97 | K78: 116 | L78: 112 | M78: 5.94589
A79: 69 | B79: BOSCHLTD | C79: 19477.8 | D79: 19512.85 | E79: 19396.75 | F79: 19315.70 | G79: 19199.60 | H79: 19593.90 | I79: 19710.00 | J79: 19791.05 | K79: 19628.95 | L79: 19431.8 | M79: 0.1081
A80: 70 | B80: BPCL | C80: 357.95 | D80: 356.90 | E80: 347.80 | F80: 337.65 | G80: 328.55 | H80: 367.05 | I80: 376.15 | J80: 386.30 | K80: 366 | L80: 346.75 | M80: 98.62795
A81: 71 | B81: BRFL | C81: 9.3 | D81: 9.20 | E81: 9.10 | F81: 8.90 | G81: 8.80 | H81: 9.40 | I81: 9.50 | J81: 9.70 | K81: 9.3 | L81: 9 | M81: 2.58508
A82: 72 | B82: BRIGADE | C82: 214 | D82: 215.57 | E82: 209.68 | F82: 205.37 | G82: 199.48 | H82: 219.88 | I82: 225.77 | J82: 230.08 | K82: 221.45 | L82: 211.25 | M82: 0.67367
A83: 73 | B83: BRITANNIA | C83: 3116.85 | D83: 3109.68 | E83: 3088.37 | F83: 3059.88 | G83: 3038.57 | H83: 3138.17 | I83: 3159.48 | J83: 3187.97 | K83: 3131 | L83: 3081.2 | M83: 1.52324
A84: 74 | B84: BSE | C84: 598.6 | D84: 599.42 | E84: 596.38 | F84: 594.17 | G84: 591.13 | H84: 601.63 | I84: 604.67 | J84: 606.88 | K84: 602.45 | L84: 597.2 | M84: 0.53145
A85: 75 | B85: CADILAHC | C85: 346.75 | D85: 346.43 | E85: 342.87 | F85: 338.98 | G85: 335.42 | H85: 350.32 | I85: 353.88 | J85: 357.77 | K85: 350 | L85: 342.55 | M85: 5.58345
A86: 77 | B86: CANBK | C86: 275.4 | D86: 277.57 | E86: 271.43 | F86: 267.47 | G86: 261.33 | H86: 281.53 | I86: 287.67 | J86: 291.63 | K86: 283.7 | L86: 273.6 | M86: 56.44563
A87: 78 | B87: CANFINHOME | C87: 280.9 | D87: 283.08 | E87: 275.82 | F87: 270.73 | G87: 263.47 | H87: 288.17 | I87: 295.43 | J87: 300.52 | K87: 290.35 | L87: 278 | M87: 8.78757
A88: 79 | B88: CAPF
A89: 80 | B89: CAPLIPOINT | C89: 382.75 | D89: 383.32 | E89: 379.78 | F89: 376.82 | G89: 373.28 | H89: 386.28 | I89: 389.82 | J89: 392.78 | K89: 386.85 | L89: 380.35 | M89: 0.14131
A90: 81 | B90: CARBORUNIV | C90: 361.5 | D90: 361.57 | E90: 355.13 | F90: 348.77 | G90: 342.33 | H90: 367.93 | I90: 374.37 | J90: 380.73 | K90: 368 | L90: 355.2 | M90: 5.92865
A91: 82 | B91: CARERATING | C91: 972.85 | D91: 975.60 | E91: 967.25 | F91: 961.65 | G91: 953.30 | H91: 981.20 | I91: 989.55 | J91: 995.15 | K91: 983.95 | L91: 970 | M91: 0.24749
A92: 83 | B92: CASTROLIND | C92: 147.35 | D92: 148.62 | E92: 145.63 | F92: 143.92 | G92: 140.93 | H92: 150.33 | I92: 153.32 | J92: 155.03 | K92: 151.6 | L92: 146.9 | M92: 8.611
A93: 84 | B93: CCL | C93: 270 | D93: 270.37 | E93: 268.88 | F93: 267.77 | G93: 266.28 | H93: 271.48 | I93: 272.97 | J93: 274.08 | K93: 271.85 | L93: 269.25 | M93: 0.34168
A94: 85 | B94: CDSL | C94: 230.85 | D94: 229.87 | E94: 226.23 | F94: 221.62 | G94: 217.98 | H94: 234.48 | I94: 238.12 | J94: 242.73 | K94: 233.5 | L94: 225.25 | M94: 4.80866
A95: 86 | B95: CEATLTD | C95: 1292.6 | D95: 1293.50 | E95: 1277.25 | F95: 1261.90 | G95: 1245.65 | H95: 1308.85 | I95: 1325.10 | J95: 1340.45 | K95: 1309.75 | L95: 1278.15 | M95: 4.27845
A96: 87 | B96: CENTRALBK | C96: 37.25 | D96: 37.40 | E96: 36.85 | F96: 36.45 | G96: 35.90 | H96: 37.80 | I96: 38.35 | J96: 38.75 | K96: 37.95 | L96: 37 | M96: 18.18337
A97: 88 | B97: CENTURYPLY | C97: 174.9 | D97: 175.63 | E97: 173.27 | F97: 171.63 | G97: 169.27 | H97: 177.27 | I97: 179.63 | J97: 181.27 | K97: 178 | L97: 174 | M97: 3.45481
A98: 89 | B98: CENTURYTEX | C98: 905.6 | D98: 910.08 | E98: 896.22 | F98: 886.83 | G98: 872.97 | H98: 919.47 | I98: 933.33 | J98: 942.72 | K98: 923.95 | L98: 900.7 | M98: 3.24587
A99: 90 | B99: CERA | C99: 2354.8 | D99: 2368.27 | E99: 2336.53 | F99: 2318.27 | G99: 2286.53 | H99: 2386.53 | I99: 2418.27 | J99: 2436.53 | K99: 2400 | L99: 2350 | M99: 0.03481
A100: 91 | B100: CGPOWER | C100: 44.35 | D100: 44.78 | E100: 43.67 | F100: 42.98 | G100: 41.87 | H100: 45.47 | I100: 46.58 | J100: 47.27 | K100: 45.9 | L100: 44.1 | M100: 50.01467
A101: 92 | B101: CHAMBLFERT | C101: 154.8 | D101: 153.00 | E101: 149.55 | F101: 144.30 | G101: 140.85 | H101: 158.25 | I101: 161.70 | J101: 166.95 | K101: 156.45 | L101: 147.75 | M101: 22.65585
A102: 93 | B102: CHENNPETRO | C102: 285 | D102: 286.32 | E102: 279.98 | F102: 274.97 | G102: 268.63 | H102: 291.33 | I102: 297.67 | J102: 302.68 | K102: 292.65 | L102: 281.3 | M102: 6.54505
A103: 94 | B103: CHOLAFIN | C103: 1236.95 | D103: 1243.95 | E103: 1221.05 | F103: 1205.15 | G103: 1182.25 | H103: 1259.85 | I103: 1282.75 | J103: 1298.65 | K103: 1266.85 | L103: 1228.05 | M103: 2.84508
A104: 95 | B104: CIPLA | C104: 514.55 | D104: 516.73 | E104: 510.97 | F104: 507.38 | G104: 501.62 | H104: 520.32 | I104: 526.08 | J104: 529.67 | K104: 522.5 | L104: 513.15 | M104: 12.43067
A105: 96 | B105: COALINDIA | C105: 236.7 | D105: 238.07 | E105: 234.68 | F105: 232.67 | G105: 229.28 | H105: 240.08 | I105: 243.47 | J105: 245.48 | K105: 241.45 | L105: 236.05 | M105: 38.97893
A106: 97 | B106: COCHINSHIP | C106: 370.65 | D106: 371.25 | E106: 369.40 | F106: 368.15 | G106: 366.30 | H106: 372.50 | I106: 374.35 | J106: 375.60 | K106: 373.1 | L106: 370 | M106: 0.59218
A107: 98 | B107: COFFEEDAY | C107: 275.9 | D107: 275.95 | E107: 274.25 | F107: 272.60 | G107: 270.90 | H107: 277.60 | I107: 279.30 | J107: 280.95 | K107: 277.65 | L107: 274.3 | M107: 1.02193
A108: 99 | B108: COLPAL | C108: 1301.8 | D108: 1307.25 | E108: 1291.75 | F108: 1281.70 | G108: 1266.20 | H108: 1317.30 | I108: 1332.80 | J108: 1342.85 | K108: 1322.75 | L108: 1297.2 | M108: 3.96926
A109: 100 | B109: CONCOR | C109: 668.95 | D109: 673.68 | E109: 658.27 | F109: 647.58 | G109: 632.17 | H109: 684.37 | I109: 699.78 | J109: 710.47 | K109: 689.1 | L109: 663 | M109: 10.92937
A110: 101 | B110: COROMANDEL | C110: 450.05 | D110: 451.02 | E110: 448.03 | F110: 446.02 | G110: 443.03 | H110: 453.03 | I110: 456.02 | J110: 458.03 | K110: 454 | L110: 449 | M110: 1.34328
A111: 102 | B111: COX&KINGS | C111: 160.35 | D111: 161.73 | E111: 158.12 | F111: 155.88 | G111: 152.27 | H111: 163.97 | I111: 167.58 | J111: 169.82 | K111: 165.35 | L111: 159.5 | M111: 0.24439
A112: 103 | B112: CRISIL | C112: 1625 | D112: 1622.68 | E112: 1612.37 | F112: 1599.73 | G112: 1589.42 | H112: 1635.32 | I112: 1645.63 | J112: 1658.27 | K112: 1633 | L112: 1610.05 | M112: 0.10263
A113: 104 | B113: CROMPTON | C113: 231.7 | D113: 232.53 | E113: 228.42 | F113: 225.13 | G113: 221.02 | H113: 235.82 | I113: 239.93 | J113: 243.22 | K113: 236.65 | L113: 229.25 | M113: 3.08712
A114: 105 | B114: CUB | C114: 193.1 | D114: 192.47 | E114: 187.23 | F114: 181.37 | G114: 176.13 | H114: 198.33 | I114: 203.57 | J114: 209.43 | K114: 197.7 | L114: 186.6 | M114: 6.76388
A115: 106 | B115: CUMMINSIND | C115: 845.9 | D115: 847.53 | E115: 836.37 | F115: 826.83 | G115: 815.67 | H115: 857.07 | I115: 868.23 | J115: 877.77 | K115: 858.7 | L115: 838 | M115: 3.87427
A116: 107 | B116: CYIENT | C116: 621.9 | D116: 620.05 | E116: 615.10 | F116: 608.30 | G116: 603.35 | H116: 626.85 | I116: 631.80 | J116: 638.60 | K116: 625 | L116: 613.25 | M116: 0.58774
A117: 108 | B117: DABUR | C117: 416.4 | D117: 417.58 | E117: 409.82 | F117: 403.23 | G117: 395.47 | H117: 424.17 | I117: 431.93 | J117: 438.52 | K117: 425.35 | L117: 411 | M117: 25.50167
A118: 109 | B118: DBCORP | C118: 169.9 | D118: 169.38 | E118: 166.92 | F118: 163.93 | G118: 161.47 | H118: 172.37 | I118: 174.83 | J118: 177.82 | K118: 171.85 | L118: 166.4 | M118: 0.279
A119: 110 | B119: DBL | C119: 419.35 | D119: 421.25 | E119: 415.10 | F119: 410.85 | G119: 404.70 | H119: 425.50 | I119: 431.65 | J119: 435.90 | K119: 427.4 | L119: 417 | M119: 1.93169
A120: 111 | B120: DBREALTY | C120: 31.2 | D120: 31.67 | E120: 30.03 | F120: 28.87 | G120: 27.23 | H120: 32.83 | I120: 34.47 | J120: 35.63 | K120: 33.3 | L120: 30.5 | M120: 25.50927
A121: 112 | B121: DCAL | C121: 231.65 | D121: 231.63 | E121: 229.32 | F121: 226.98 | G121: 224.67 | H121: 233.97 | I121: 236.28 | J121: 238.62 | K121: 233.95 | L121: 229.3 | M121: 0.34593
A122: 113 | B122: DCBBANK | C122: 168.7 | D122: 169.40 | E122: 166.60 | F122: 164.50 | G122: 161.70 | H122: 171.50 | I122: 174.30 | J122: 176.40 | K122: 172.2 | L122: 167.3 | M122: 20.7214
A123: 114 | B123: DCMSHRIRAM | C123: 344.2 | D123: 346.42 | E123: 336.83 | F123: 329.47 | G123: 319.88 | H123: 353.78 | I123: 363.37 | J123: 370.73 | K123: 356 | L123: 339.05 | M123: 0.9542
A124: 115 | B124: DEEPAKFERT | C124: 147.8 | D124: 148.88 | E124: 145.92 | F124: 144.03 | G124: 141.07 | H124: 150.77 | I124: 153.73 | J124: 155.62 | K124: 151.85 | L124: 147 | M124: 1.92061
A125: 116 | B125: DELTACORP | C125: 247.2 | D125: 247.75 | E125: 243.25 | F125: 239.30 | G125: 234.80 | H125: 251.70 | I125: 256.20 | J125: 260.15 | K125: 252.25 | L125: 243.8 | M125: 5.88807
A126: 117 | B126: DEN | C126: 70 | D126: 70.12 | E126: 69.68 | F126: 69.37 | G126: 68.93 | H126: 70.43 | I126: 70.87 | J126: 71.18 | K126: 70.55 | L126: 69.8 | M126: 3.28438
A127: 118 | B127: DENABANK | C127: 17.9 | D127: 18.05 | E127: 17.65 | F127: 17.40 | G127: 17.00 | H127: 18.30 | I127: 18.70 | J127: 18.95 | K127: 18.45 | L127: 17.8 | M127: 30.6049
A128: 119 | B128: DHFL | C128: 241.7 | D128: 243.78 | E128: 238.22 | F128: 234.73 | G128: 229.17 | H128: 247.27 | I128: 252.83 | J128: 256.32 | K128: 249.35 | L128: 240.3 | M128: 71.76965
A129: 120 | B129: DISHTV | C129: 38.35 | D129: 38.17 | E129: 37.58 | F129: 36.82 | G129: 36.23 | H129: 38.93 | I129: 39.52 | J129: 40.28 | K129: 38.75 | L129: 37.4 | M129: 33.52297
A130: 121 | B130: DIVISLAB | C130: 1470.9 | D130: 1471.97 | E130: 1460.33 | F130: 1449.77 | G130: 1438.13 | H130: 1482.53 | I130: 1494.17 | J130: 1504.73 | K130: 1483.6 | L130: 1461.4 | M130: 2.47208
A131: 122 | B131: DIXON | C131: 2010.55 | D131: 2024.20 | E131: 1988.40 | F131: 1966.25 | G131: 1930.45 | H131: 2046.35 | I131: 2082.15 | J131: 2104.30 | K131: 2060 | L131: 2002.05 | M131: 0.0452
A132: 123 | B132: DLF | C132: 173.1 | D132: 175.08 | E132: 170.27 | F132: 167.43 | G132: 162.62 | H132: 177.92 | I132: 182.73 | J132: 185.57 | K132: 179.9 | L132: 172.25 | M132: 66.04177
A133: 124 | B133: DMART | C133: 1560.25 | D133: 1567.83 | E133: 1543.72 | F133: 1527.18 | G133: 1503.07 | H133: 1584.37 | I133: 1608.48 | J133: 1625.02 | K133: 1591.95 | L133: 1551.3 | M133: 3.97366
A134: 125 | B134: DREDGECORP | C134: 463.15 | D134: 463.45 | E134: 453.20 | F134: 443.25 | G134: 433.00 | H134: 473.40 | I134: 483.65 | J134: 493.60 | K134: 473.7 | L134: 453.5 | M134: 34.46364
A135: 126 | B135: DRREDDY | C135: 2601.05 | D135: 2598.03 | E135: 2578.07 | F135: 2555.08 | G135: 2535.12 | H135: 2621.02 | I135: 2640.98 | J135: 2663.97 | K135: 2618 | L135: 2575.05 | M135: 4.17551
A136: 127 | B136: ECLERX | C136: 1092.55 | D136: 1087.63 | E136: 1080.27 | F136: 1067.98 | G136: 1060.62 | H136: 1099.92 | I136: 1107.28 | J136: 1119.57 | K136: 1095 | L136: 1075.35 | M136: 0.01409
A137: 128 | B137: EDELWEISS | C137: 180.25 | D137: 180.88 | E137: 177.97 | F137: 175.68 | G137: 172.77 | H137: 183.17 | I137: 186.08 | J137: 188.37 | K137: 183.8 | L137: 178.6 | M137: 7.74141
A138: 129 | B138: EICHERMOT | C138: 21162.3 | D138: 21484.18 | E138: 20628.37 | F138: 20094.43 | G138: 19238.62 | H138: 22018.12 | I138: 22873.93 | J138: 23407.87 | K138: 22340 | L138: 20950.25 | M138: 4.81497
A139: 130 | B139: EIDPARRY | C139: 205.95 | D139: 206.45 | E139: 204.00 | F139: 202.05 | G139: 199.60 | H139: 208.40 | I139: 210.85 | J139: 212.80 | K139: 208.9 | L139: 204.5 | M139: 0.38105
A140: 131 | B140: EIHOTEL | C140: 188.55 | D140: 189.55 | E140: 184.70 | F140: 180.85 | G140: 176.00 | H140: 193.40 | I140: 198.25 | J140: 202.10 | K140: 194.4 | L140: 185.7 | M140: 1.08911
A141: 132 | B141: EMAMILTD | C141: 422.7 | D141: 422.20 | E141: 418.90 | F141: 415.10 | G141: 411.80 | H141: 426.00 | I141: 429.30 | J141: 433.10 | K141: 425.5 | L141: 418.4 | M141: 11.38318
A142: 133 | B142: ENDURANCE | C142: 1245.15 | D142: 1251.35 | E142: 1233.75 | F142: 1222.35 | G142: 1204.75 | H142: 1262.75 | I142: 1280.35 | J142: 1291.75 | K142: 1268.95 | L142: 1239.95 | M142: 0.59788
A143: 134 | B143: ENGINERSIN | C143: 125 | D143: 125.78 | E143: 123.82 | F143: 122.63 | G143: 120.67 | H143: 126.97 | I143: 128.93 | J143: 130.12 | K143: 127.75 | L143: 124.6 | M143: 10.98546
A144: 135 | B144: EQUITAS | C144: 123.15 | D144: 123.93 | E144: 121.42 | F144: 119.68 | G144: 117.17 | H144: 125.67 | I144: 128.18 | J144: 129.92 | K144: 126.45 | L144: 122.2 | M144: 14.00717
A145: 136 | B145: ERIS | C145: 672.6 | D145: 679.35 | E145: 660.40 | F145: 648.20 | G145: 629.25 | H145: 691.55 | I145: 710.50 | J145: 722.70 | K145: 698.3 | L145: 667.15 | M145: 0.16949
A146: 137 | B146: EROSMEDIA | C146: 86.05 | D146: 86.60 | E146: 85.20 | F146: 84.35 | G146: 82.95 | H146: 87.45 | I146: 88.85 | J146: 89.70 | K146: 88 | L146: 85.75 | M146: 2.69995
A147: 138 | B147: ESCORTS | C147: 707.1 | D147: 712.87 | E147: 696.23 | F147: 685.37 | G147: 668.73 | H147: 723.73 | I147: 740.37 | J147: 751.23 | K147: 729.5 | L147: 702 | M147: 42.36232
A148: 139 | B148: EVEREADY | C148: 183.55 | D148: 185.05 | E148: 181.50 | F148: 179.45 | G148: 175.90 | H148: 187.10 | I148: 190.65 | J148: 192.70 | K148: 188.6 | L148: 183 | M148: 0.9707
A149: 140 | B149: EXIDEIND | C149: 261.4 | D149: 263.23 | E149: 258.37 | F149: 255.33 | G149: 250.47 | H149: 266.27 | I149: 271.13 | J149: 274.17 | K149: 268.1 | L149: 260.2 | M149: 7.95469
A150: 141 | B150: FCONSUMER | C150: 45.35 | D150: 45.52 | E150: 44.93 | F150: 44.52 | G150: 43.93 | H150: 45.93 | I150: 46.52 | J150: 46.93 | K150: 46.1 | L150: 45.1 | M150: 6.76148
A151: 142 | B151: FEDERALBNK | C151: 94.8 | D151: 94.57 | E151: 93.38 | F151: 91.97 | G151: 90.78 | H151: 95.98 | I151: 97.17 | J151: 98.58 | K151: 95.75 | L151: 93.15 | M151: 183.53855
A152: 143 | B152: FINCABLES | C152: 453.35 | D152: 453.65 | E152: 450.70 | F152: 448.05 | G152: 445.10 | H152: 456.30 | I152: 459.25 | J152: 461.90 | K152: 456.6 | L152: 451 | M152: 0.13236
A153: 144 | B153: FINPIPE | C153: 533.95 | D153: 538.48 | E153: 526.97 | F153: 519.98 | G153: 508.47 | H153: 545.47 | I153: 556.98 | J153: 563.97 | K153: 550 | L153: 531.5 | M153: 0.13277
A154: 145 | B154: FLFL | C154: 396.85 | D154: 399.27 | E154: 390.58 | F154: 384.32 | G154: 375.63 | H154: 405.53 | I154: 414.22 | J154: 420.48 | K154: 407.95 | L154: 393 | M154: 0.141
A155: 146 | B155: FSL | C155: 48.4 | D155: 48.72 | E155: 47.78 | F155: 47.17 | G155: 46.23 | H155: 49.33 | I155: 50.27 | J155: 50.88 | K155: 49.65 | L155: 48.1 | M155: 24.71654
A156: 147 | B156: GAIL | C156: 350.3 | D156: 353.25 | E156: 344.60 | F156: 338.90 | G156: 330.25 | H156: 358.95 | I156: 367.60 | J156: 373.30 | K156: 361.9 | L156: 347.55 | M156: 35.28488
A157: 148 | B157: GATI | C157: 84.6 | D157: 85.20 | E157: 83.65 | F157: 82.70 | G157: 81.15 | H157: 86.15 | I157: 87.70 | J157: 88.65 | K157: 86.75 | L157: 84.25 | M157: 2.84017
A158: 149 | B158: GDL | C158: 123.15 | D158: 124.15 | E158: 121.35 | F158: 119.55 | G158: 116.75 | H158: 125.95 | I158: 128.75 | J158: 130.55 | K158: 126.95 | L158: 122.35 | M158: 1.39711
A159: 150 | B159: GEPIL | C159: 815.9 | D159: 819.90 | E159: 808.00 | F159: 800.10 | G159: 788.20 | H159: 827.80 | I159: 839.70 | J159: 847.60 | K159: 831.8 | L159: 812 | M159: 0.02205
A160: 151 | B160: GESHIP | C160: 319.95 | D160: 321.35 | E160: 309.70 | F160: 299.45 | G160: 287.80 | H160: 331.60 | I160: 343.25 | J160: 353.50 | K160: 333 | L160: 311.1 | M160: 1.00094
A161: 152 | B161: GET&D | C161: 289 | D161: 290.47 | E161: 284.53 | F161: 280.07 | G161: 274.13 | H161: 294.93 | I161: 300.87 | J161: 305.33 | K161: 296.4 | L161: 286 | M161: 0.24628
A162: 153 | B162: GHCL | C162: 244.75 | D162: 243.83 | E162: 240.97 | F162: 237.18 | G162: 234.32 | H162: 247.62 | I162: 250.48 | J162: 254.27 | K162: 246.7 | L162: 240.05 | M162: 0.65308
A163: 154 | B163: GICRE | C163: 257.4 | D163: 258.82 | E163: 254.83 | F163: 252.27 | G163: 248.28 | H163: 261.38 | I163: 265.37 | J163: 267.93 | K163: 262.8 | L163: 256.25 | M163: 1.68951
A164: 155 | B164: GILLETTE | C164: 6484.8 | D164: 6468.28 | E164: 6437.57 | F164: 6390.33 | G164: 6359.62 | H164: 6515.52 | I164: 6546.23 | J164: 6593.47 | K164: 6499 | L164: 6421.05 | M164: 0.0268
A165: 156 | B165: GLAXO | C165: 1497.55 | D165: 1499.10 | E165: 1486.20 | F165: 1474.85 | G165: 1461.95 | H165: 1510.45 | I165: 1523.35 | J165: 1534.70 | K165: 1512 | L165: 1487.75 | M165: 0.06845
A166: 157 | B166: GLENMARK | C166: 683.05 | D166: 682.63 | E166: 673.47 | F166: 663.88 | G166: 654.72 | H166: 692.22 | I166: 701.38 | J166: 710.97 | K166: 691.8 | L166: 673.05 | M166: 5.83438
A167: 158 | B167: GMDCLTD | C167: 90.05 | D167: 90.00 | E167: 89.60 | F167: 89.15 | G167: 88.75 | H167: 90.45 | I167: 90.85 | J167: 91.30 | K167: 90.4 | L167: 89.55 | M167: 0.60487
A168: 159 | B168: GMRINFRA | C168: 15.95 | D168: 16.08 | E168: 15.72 | F168: 15.48 | G168: 15.12 | H168: 16.32 | I168: 16.68 | J168: 16.92 | K168: 16.45 | L168: 15.85 | M168: 91.10731
A169: 160 | B169: GNFC | C169: 343.4 | D169: 346.40 | E169: 339.20 | F169: 335.00 | G169: 327.80 | H169: 350.60 | I169: 357.80 | J169: 362.00 | K169: 353.6 | L169: 342.2 | M169: 4.12918
A170: 161 | B170: GODFRYPHLP | C170: 868.05 | D170: 874.05 | E170: 854.15 | F170: 840.25 | G170: 820.35 | H170: 887.95 | I170: 907.85 | J170: 921.75 | K170: 893.95 | L170: 860.15 | M170: 2.35187
A171: 162 | B171: GODREJAGRO | C171: 499.45 | D171: 500.97 | E171: 496.68 | F171: 493.92 | G171: 489.63 | H171: 503.73 | I171: 508.02 | J171: 510.78 | K171: 505.25 | L171: 498.2 | M171: 0.39368
A172: 163 | B172: GODREJCP | C172: 806.65 | D172: 808.53 | E172: 794.32 | F172: 781.98 | G172: 767.77 | H172: 820.87 | I172: 835.08 | J172: 847.42 | K172: 822.75 | L172: 796.2 | M172: 12.65919
A173: 164 | B173: GODREJIND | C173: 538.25 | D173: 540.25 | E173: 533.00 | F173: 527.75 | G173: 520.50 | H173: 545.50 | I173: 552.75 | J173: 558.00 | K173: 547.5 | L173: 535 | M173: 2.58586
A174: 165 | B174: GODREJPROP | C174: 669.8 | D174: 666.83 | E174: 659.67 | F174: 649.53 | G174: 642.37 | H174: 676.97 | I174: 684.13 | J174: 694.27 | K174: 674 | L174: 656.7 | M174: 8.96038
A175: 166 | B175: GPPL | C175: 102.05 | D175: 102.68 | E175: 101.37 | F175: 100.68 | G175: 99.37 | H175: 103.37 | I175: 104.68 | J175: 105.37 | K175: 104 | L175: 102 | M175: 0.55698
A176: 167 | B176: GRANULES | C176: 89.9 | D176: 90.05 | E176: 88.90 | F176: 87.90 | G176: 86.75 | H176: 91.05 | I176: 92.20 | J176: 93.20 | K176: 91.2 | L176: 89.05 | M176: 5.35316
A177: 168 | B177: GRAPHITE | C177: 747.35 | D177: 752.32 | E177: 740.88 | F177: 734.42 | G177: 722.98 | H177: 758.78 | I177: 770.22 | J177: 776.68 | K177: 763.75 | L177: 745.85 | M177: 4.70039
A178: 169 | B178: GRASIM | C178: 815.5 | D178: 822.08 | E178: 806.17 | F178: 796.83 | G178: 780.92 | H178: 831.42 | I178: 847.33 | J178: 856.67 | K178: 838 | L178: 812.75 | M178: 8.21812
A179: 170 | B179: GREAVESCOT | C179: 116.45 | D179: 117.20 | E179: 115.15 | F179: 113.85 | G179: 111.80 | H179: 118.50 | I179: 120.55 | J179: 121.85 | K179: 119.25 | L179: 115.9 | M179: 9.06456
A180: 171 | B180: GREENPLY | C180: 137.45 | D180: 137.77 | E180: 135.98 | F180: 134.52 | G180: 132.73 | H180: 139.23 | I180: 141.02 | J180: 142.48 | K180: 139.55 | L180: 136.3 | M180: 0.28409
A181: 172 | B181: GRUH | C181: 321.4 | D181: 319.83 | E181: 316.67 | F181: 311.93 | G181: 308.77 | H181: 324.57 | I181: 327.73 | J181: 332.47 | K181: 323 | L181: 315.1 | M181: 2.03054
A182: 173 | B182: GSFC | C182: 111.9 | D182: 113.52 | E182: 109.63 | F182: 107.37 | G182: 103.48 | H182: 115.78 | I182: 119.67 | J182: 121.93 | K182: 117.4 | L182: 111.25 | M182: 22.00537
A183: 174 | B183: GSKCONS | C183: 7515.85 | D183: 7529.45 | E183: 7437.70 | F183: 7359.55 | G183: 7267.80 | H183: 7607.60 | I183: 7699.35 | J183: 7777.50 | K183: 7621.2 | L183: 7451.3 | M183: 0.65849
A184: 175 | B184: GSPL | C184: 176.05 | D184: 175.52 | E184: 174.63 | F184: 173.22 | G184: 172.33 | H184: 176.93 | I184: 177.82 | J184: 179.23 | K184: 176.4 | L184: 174.1 | M184: 13.86895
A185: 176 | B185: GUJALKALI | C185: 541.8 | D185: 543.47 | E185: 534.98 | F185: 528.17 | G185: 519.68 | H185: 550.28 | I185: 558.77 | J185: 565.58 | K185: 551.95 | L185: 536.65 | M185: 0.23195
A186: 177 | B186: GUJFLUORO | C186: 911.6 | D186: 910.70 | E186: 905.35 | F186: 899.10 | G186: 893.75 | H186: 916.95 | I186: 922.30 | J186: 928.55 | K186: 916.05 | L186: 904.45 | M186: 0.54406
A187: 178 | B187: GUJGASLTD | C187: 669.55 | D187: 669.52 | E187: 667.08 | F187: 664.62 | G187: 662.18 | H187: 671.98 | I187: 674.42 | J187: 676.88 | K187: 671.95 | L187: 667.05 | M187: 0.19362
A188: 179 | B188: GULFOILLUB | C188: 836.75 | D188: 835.05 | E188: 812.80 | F188: 788.85 | G188: 766.60 | H188: 859.00 | I188: 881.25 | J188: 905.20 | K188: 857.3 | L188: 811.1 | M188: 0.25114
A189: 180 | B189: GVKPIL | C189: 7.85 | D189: 7.95 | E189: 7.70 | F189: 7.55 | G189: 7.30 | H189: 8.10 | I189: 8.35 | J189: 8.50 | K189: 8.2 | L189: 7.8 | M189: 12.78567
A190: 181 | B190: HATHWAY | C190: 30.7 | D190: 30.72 | E190: 30.63 | F190: 30.57 | G190: 30.48 | H190: 30.78 | I190: 30.87 | J190: 30.93 | K190: 30.8 | L190: 30.65 | M190: 0.81428
A191: 182 | B191: HATSUN | C191: 631.4 | D191: 628.80 | E191: 622.65 | F191: 613.90 | G191: 607.75 | H191: 637.55 | I191: 643.70 | J191: 652.45 | K191: 634.95 | L191: 620.05 | M191: 0.13487
A192: 183 | B192: HAVELLS | C192: 691.8 | D192: 694.93 | E192: 686.87 | F192: 681.93 | G192: 673.87 | H192: 699.87 | I192: 707.93 | J192: 712.87 | K192: 703 | L192: 690 | M192: 12.28486
A193: 184 | B193: HCC | C193: 13.55 | D193: 13.58 | E193: 13.17 | F193: 12.78 | G193: 12.37 | H193: 13.97 | I193: 14.38 | J193: 14.77 | K193: 14 | L193: 13.2 | M193: 213.63626
A194: 185 | B194: HCL-INSYS | C194: 25.55 | D194: 25.80 | E194: 24.95 | F194: 24.35 | G194: 23.50 | H194: 26.40 | I194: 27.25 | J194: 27.85 | K194: 26.65 | L194: 25.2 | M194: 12.24151
A195: 186 | B195: HCLTECH | C195: 946.35 | D195: 949.17 | E195: 936.33 | F195: 926.32 | G195: 913.48 | H195: 959.18 | I195: 972.02 | J195: 982.03 | K195: 962 | L195: 939.15 | M195: 11.35048
A196: 187 | B196: HDFC | C196: 1980.65 | D196: 1983.55 | E196: 1958.10 | F196: 1935.55 | G196: 1910.10 | H196: 2006.10 | I196: 2031.55 | J196: 2054.10 | K196: 2009 | L196: 1961 | M196: 20.0117
A197: 188 | B197: HDFCBANK | C197: 2128.5 | D197: 2131.90 | E197: 2116.30 | F197: 2104.10 | G197: 2088.50 | H197: 2144.10 | I197: 2159.70 | J197: 2171.90 | K197: 2147.5 | L197: 2119.7 | M197: 20.33558
A198: 189 | B198: HDIL | C198: 25.95 | D198: 26.22 | E198: 25.53 | F198: 25.12 | G198: 24.43 | H198: 26.63 | I198: 27.32 | J198: 27.73 | K198: 26.9 | L198: 25.8 | M198: 61.47986
A199: 190 | B199: HEG | C199: 3678.25 | D199: 3684.25 | E199: 3644.00 | F199: 3609.75 | G199: 3569.50 | H199: 3718.50 | I199: 3758.75 | J199: 3793.00 | K199: 3724.5 | L199: 3650 | M199: 0.86221
A200: 191 | B200: HEIDELBERG | C200: 150.75 | D200: 151.25 | E200: 149.55 | F200: 148.35 | G200: 146.65 | H200: 152.45 | I200: 154.15 | J200: 155.35 | K200: 152.95 | L200: 150.05 | M200: 0.66487
A201: 192 | B201: HERITGFOOD | C201: 523 | D201: 524.25 | E201: 518.75 | F201: 514.50 | G201: 509.00 | H201: 528.50 | I201: 534.00 | J201: 538.25 | K201: 529.75 | L201: 520 | M201: 0.32245
A202: 193 | B202: HEROMOTOCO | C202: 3046.55 | D202: 3062.55 | E202: 3007.80 | F202: 2969.05 | G202: 2914.30 | H202: 3101.30 | I202: 3156.05 | J202: 3194.80 | K202: 3117.3 | L202: 3023.8 | M202: 5.97712
A203: 194 | B203: HEXAWARE | C203: 330.75 | D203: 333.70 | E203: 326.15 | F203: 321.55 | G203: 314.00 | H203: 338.30 | I203: 345.85 | J203: 350.45 | K203: 341.25 | L203: 329.1 | M203: 20.16439
A204: 195 | B204: HFCL | C204: 21.2 | D204: 21.23 | E204: 20.97 | F204: 20.73 | G204: 20.47 | H204: 21.47 | I204: 21.73 | J204: 21.97 | K204: 21.5 | L204: 21 | M204: 13.07545
A205: 196 | B205: HIMATSEIDE | C205: 214.7 | D205: 215.13 | E205: 211.57 | F205: 208.43 | G205: 204.87 | H205: 218.27 | I205: 221.83 | J205: 224.97 | K205: 218.7 | L205: 212 | M205: 0.3307
A206: 197 | B206: HINDALCO | C206: 214.55 | D206: 215.78 | E206: 212.42 | F206: 210.28 | G206: 206.92 | H206: 217.92 | I206: 221.28 | J206: 223.42 | K206: 219.15 | L206: 213.65 | M206: 109.91026
... 304 more rows

Sheet Bulk Deals
E6: Back To Main Page
A7: Subject : | B7: BULK DEAL | D7: =Main!B10 -> 2019-01-03
A9: Date | B9: Scrip code | C9: Scrip Name | D9: Client Name | E9: Buy / Sell | F9: Quantity Traded | G9: Trade Price / Wt.Avg.trade price | H9: Exchange
A10: 2019-01-02 | B10: 530187 | C10: ATHARVENT | D10: AMAN SHREE TRADING AND REAL ESTATE PRIVATE LIMITED | E10: SELL | F10: 281,000 | G10: 1.72 | H10: BSE
A11: 2019-01-02 | B11: 537766 | C11: BCP | D11: DIPESH SITARAM GORULE | E11: SELL | F11: 328,554 | G11: 33.11 | H11: BSE
A12: 2019-01-02 | B12: 537766 | C12: BCP | D12: DIPESH SITARAM GORULE | E12: BUY | F12: 280,554 | G12: 33.24 | H12: BSE
A13: 2019-01-02 | B13: 539335 | C13: CHPLIND | D13: DIMPLE SURANA | E13: BUY | F13: 18,390 | G13: 10.84 | H13: BSE
A14: 2019-01-02 | B14: 530393 | C14: DBSTOCKBRO | D14: NEW KMS FINANCE PRIVATE LIMITED | E14: BUY | F14: 650,000 | G14: 8.4 | H14: BSE
A15: 2019-01-02 | B15: 530393 | C15: DBSTOCKBRO | D15: GURU KIRPA FINVEST LTD | E15: SELL | F15: 650,000 | G15: 8.4 | H15: BSE
A16: 2019-01-02 | B16: 539009 | C16: GBLIL | D16: HIGHGROWTH VINCOM PRIVATE LIMITED | E16: SELL | F16: 33,000 | G16: 80.27 | H16: BSE
A17: 2019-01-02 | B17: 540614 | C17: GGENG | D17: HANSABEN DIPAKBHAI PUJARA | E17: SELL | F17: 51,000 | G17: 50.98 | H17: BSE
A18: 2019-01-02 | B18: 540266 | C18: GLCL | D18: MAHESH DESAI | E18: SELL | F18: 17,000 | G18: 20.35 | H18: BSE
A19: 2019-01-02 | B19: 540266 | C19: GLCL | D19: GODHAR RAJENDRA GANGARAM | E19: BUY | F19: 17,100 | G19: 20.37 | H19: BSE
A20: 2019-01-02 | B20: 540266 | C20: GLCL | D20: GAUTAM PARSOTAMBHAI BORANA | E20: SELL | F20: 17,000 | G20: 20.37 | H20: BSE
A21: 2019-01-02 | B21: 540266 | C21: GLCL | D21: GAUTAM PARSOTAMBHAI BORANA | E21: BUY | F21: 17,000 | G21: 20.35 | H21: BSE
A22: 2019-01-02 | B22: 540377 | C22: IFL | D22: VIKRAM SHARMA | E22: SELL | F22: 18,000 | G22: 8.5 | H22: BSE
A23: 2019-01-02 | B23: 540377 | C23: IFL | D23: SUBHASH CHAND AGARWAL | E23: BUY | F23: 24,000 | G23: 8.5 | H23: BSE
A24: 2019-01-02 | B24: 531337 | C24: IRISMEDIA | D24: ESAAR INDIA LIMITED | E24: BUY | F24: 600,000 | G24: 24.6 | H24: BSE
A25: 2019-01-02 | B25: 531337 | C25: IRISMEDIA | D25: MEHUL HASMUKH SHAH | E25: SELL | F25: 601,000 | G25: 24.6 | H25: BSE
A26: 2019-01-02 | B26: 531337 | C26: IRISMEDIA | D26: MEHUL HASMUKH SHAH | E26: BUY | F26: 1,000 | G26: 24.76 | H26: BSE
A27: 2019-01-02 | B27: 530805 | C27: OIVL | D27: SITAL MERCANTILE & CREDIT PRIVATE LIMITED . | E27: BUY | F27: 20,000 | G27: 18.5 | H27: BSE
A28: 2019-01-02 | B28: 530805 | C28: OIVL | D28: ASHOK BOTHRA | E28: SELL | F28: 20,000 | G28: 18.5 | H28: BSE
A29: 2019-01-02 | B29: 538557 | C29: SAIBABA | D29: FORAM NIKUL PATEL | E29: SELL | F29: 584,000 | G29: 1.79 | H29: BSE
A30: 2019-01-02 | B30: 506906 | C30: SCBL | D30: VISHNU BANWARILAL SHARMA | E30: SELL | F30: 60,584 | G30: 9.74 | H30: BSE
A31: 2019-01-02 | B31: 506906 | C31: SCBL | D31: VISHNU BANWARILAL SHARMA | E31: BUY | F31: 63,585 | G31: 9.85 | H31: BSE
A32: 2019-01-02 | B32: 539520 | C32: SHAILJA | D32: AJAYBASUDEOMODIHUF | E32: BUY | F32: 27,500 | G32: 13.63 | H32: BSE
A33: 2019-01-02 | B33: 533655 | C33: TRITURBINE | D33: NALANDA INDIA FUND LIMITED | E33: SELL | F33: 5150000 | G33: 103 | H33: BSE
A34: 2019-01-02 | B34: 533655 | C34: TRITURBINE | D34: SBI MUTUAL FUND | E34: BUY | F34: 5131000 | G34: 103 | H34: BSE
A35: 2019-01-02 | B35: 531518 | C35: VIKASPROP | D35: GOURAV | E35: SELL | F35: 1200000 | G35: 3.78 | H35: BSE
A36: 2019-01-02 | B36: 531518 | C36: VIKASPROP | D36: PUNEET | E36: SELL | F36: 1500000 | G36: 3.78 | H36: BSE
A37: 2019-01-02 | B37: 531518 | C37: VIKASPROP | D37: BP COMTRADE PVT LTD | E37: SELL | F37: 929065 | G37: 3.75 | H37: BSE
A38: 2019-01-02 | B38: 531518 | C38: VIKASPROP | D38: BP COMTRADE PVT LTD | E38: BUY | F38: 769069 | G38: 3.77 | H38: BSE
A39: 2019-01-02 | B39: 531518 | C39: VIKASPROP | D39: ALPHA LEON ENTERPRISES LLP | E39: BUY | F39: 433474 | G39: 3.69 | H39: BSE
A40: 2019-01-02 | B40: 531518 | C40: VIKASPROP | D40: ALPHA LEON ENTERPRISES LLP | E40: SELL | F40: 2241871 | G40: 3.76 | H40: BSE
A41: 2019-01-02 | B41: BEML | C41: BEML Limited | D41: ALPHAGREP SECURITIES PRIVATE LIMITED | E41: BUY | F41: 336898 | G41: 920.86 | H41: NSE
A42: 2019-01-02 | B42: GSS | C42: GSS Infotech Limited | D42: MITTAL SAMEER | E42: BUY | F42: 113680 | G42: 133.06 | H42: NSE
A43: 2019-01-02 | B43: JETAIRWAYS | C43: Jet Airways (India) Ltd. | D43: TOWER RESEARCH CAPITAL MARKETS INDIA PRIVATE LIMITED | E43: BUY | F43: 966978 | G43: 270.51 | H43: NSE
A44: 2019-01-02 | B44: MOHOTAIND | C44: Mohota Industries Ltd. | D44: YOGESH KUMAR SHARMA | E44: BUY | F44: 57,000 | G44: 80.87 | H44: NSE
A45: 2019-01-02 | B45: MTNL | C45: Maha Tel Nigam Ltd. | D45: ADROIT FINANCIAL SERVICES PRIVATE LIMITED | E45: BUY | F45: 1,990,090 | G45: 18.35 | H45: NSE
A46: 2019-01-02 | B46: RCOM | C46: Reliance Comm. Ltd. | D46: SKYVEIL TRADE SOLUTIONS LLP | E46: BUY | F46: 21,585,253 | G46: 13.93 | H46: NSE
A47: 2019-01-02 | B47: RIIL | C47: Reliance Indl Infra Ltd | D47: BERKELEY SECURITIES LIMITED | E47: BUY | F47: 112,198 | G47: 349.3 | H47: NSE
A48: 2019-01-02 | B48: VIKASECO | C48: Vikas EcoTech Limited | D48: MITTAL SAMEER | E48: BUY | F48: 1,672,744 | G48: 12.7 | H48: NSE
A49: 2019-01-02 | B49: BEML | C49: BEML Limited | D49: ALPHAGREP SECURITIES PRIVATE LIMITED | E49: SELL | F49: 336,898 | G49: 921.21 | H49: NSE
A50: 2019-01-02 | B50: GSS | C50: GSS Infotech Limited | D50: MITTAL SAMEER | E50: SELL | F50: 113,680 | G50: 133.57 | H50: NSE
A51: 2019-01-02 | B51: JETAIRWAYS | C51: Jet Airways (India) Ltd. | D51: TOWER RESEARCH CAPITAL MARKETS INDIA PRIVATE LIMITED | E51: SELL | F51: 966,978 | G51: 270.66 | H51: NSE
A52: 2019-01-02 | B52: MOHOTAIND | C52: Mohota Industries Ltd. | D52: YOGESH KUMAR SHARMA | E52: SELL | F52: 83,000 | G52: 81.55 | H52: NSE
A53: 2019-01-02 | B53: MTNL | C53: Maha Tel Nigam Ltd. | D53: ADROIT FINANCIAL SERVICES PRIVATE LIMITED | E53: SELL | F53: 2,184,163 | G53: 18.39 | H53: NSE
A54: 2019-01-02 | B54: RCOM | C54: Reliance Comm. Ltd. | D54: SKYVEIL TRADE SOLUTIONS LLP | E54: SELL | F54: 21,585,254 | G54: 13.95 | H54: NSE
A55: 2019-01-02 | B55: RIIL | C55: Reliance Indl Infra Ltd | D55: BERKELEY SECURITIES LIMITED | E55: SELL | F55: 112,198 | G55: 348.6 | H55: NSE
A56: 2019-01-02 | B56: VIKASECO | C56: Vikas EcoTech Limited | D56: MITTAL SAMEER | E56: SELL | F56: 1,672,744 | G56: 13.01 | H56: NSE

Sheet Call Tracker (Equity & F&O)
M5: Back To Main Page
A6: Retail Research Technical Calls & Fundamental Performance Report for the month of January -2019
M7: =Main!B10 -> 2019-01-03
B8: Positional Call
A9: Sr.no | B9: Date | D9: Company | E9: Rec | F9: Rec Price | G9: Stop Loss*** | H9: Call Closed At | I9: Target | J9: Remark | K9: Profit / Loss per Share | L9: Gain / Loss % | M9: Status | N9: Closed Date | O9: NSE Closed Price
A10: 1 | B10: 2018-12-21 | D10: TATAGLOBAL | E10: Buy | F10: 217 | G10: 209 | H10: 223.5 | I10: 235-240 | J10: Part Profit of Rs.6.25/- | K10: =H10-F10 -> 6.5 | L10: =K10/F10 -> 3.00% | M10: Successful | N10: 2018-12-24 | R10: H
A11: 2 | B11: 2018-12-24 | D11: JSWSTEEL | E11: Buy | F11: 299-300 | G11: 289 | I11: 320-325 | J11: Open | O11: =VLOOKUP(D11,Sheet2!A2:M1497,6,0) -> 288.7 | R11: H
A12: 3 | B12: 2018-12-24 | D12: TATAPOWER | E12: Buy | F12: 77.2-77.4 | G12: 73.7 | I12: 83-84 | J12: Open | O12: =VLOOKUP(D12,Sheet2!A3:M1498,6,0) -> 74.85 | R12: R
A13: 4 | B13: 2018-12-27 | D13: TVSMOTOR | E13: Buy | F13: 552.5 | G13: 519 | H13: 571.75 | I13: 600-620 | J13: Part of Rs.19.25/- | K13: =H13-F13 -> 19.25 | L13: =K13/F13 -> 3.48% | M13: Successful | N13: 2019-01-02 | R13: H
A14: 5 | B14: 2019-01-01 | D14: ASHOKLEY | E14: Buy | F14: 100.60-101.60 | G14: 96 | I14: 110-112 | J14: Open | R14: R
A26: CLBS = Closing Basis *** | F26: Reinitiated $
A27: Dividend adjusted <> | F27: Revised stoploss #
A28: Part book {}
A29: Master Trade High Risk
A30: Sr.no | B30: Date | D30: Company | E30: Rec | F30: Rec Price | G30: Stop Loss | H30: Call Closed At | I30: Target | J30: Remark | K30: Profit / Loss per share | L30: Gain / Loss per Lot | M30: Lot | N30: Status | O30: Closed Date
A31: 1 | B31: 2018-12-28 | D31: INFY JAN FUT | E31: Buy | F31: 660.5 | G31: 643 | H31: 668.5 | I31: 690 | J31: Profit of Rs. 8.50 /- | K31: =H31-F31 -> 8 | L31: =M31*8.5 -> 10200 | M31: 1200 | N31: Successful | O31: 2019-01-01 | R31: H
D32: INFY JAN 680 CE | E32: Sell | F32: 21 | H32: 20.5 | K32: =F32-H32 -> 0.5 | R32: H
A33: 2 | B33: 2019-01-02 | D33: NIFTY JAN FUT | E33: Buy | F33: 10880-10890 | G33: 10740 | I33: 11100 | J33: Open | R33: H
D34: Nifty JAN 11100 CE | E34: Sell | F34: 82-84 | R34: H
A47: Master Trade Medium Risk
A48: Sr.no | B48: Date | D48: Company | E48: Rec | F48: Rec Price | G48: Stop Loss | H48: Call Closed At | I48: Target | J48: Remark | K48: Profit/ Loss per lot | L48: Gain / Loss per Lot | M48: Lot | N48: Status | O48: Closed Date
B67: Smart Delivery Trade
A68: Sr.no | B68: Date | D68: Company | E68: Rec | F68: Rec Price | G68: Stop Loss*** | H68: Call Closed At | I68: Target | J68: Remark | K68: Profit / Loss per Share | L68: Gain / Loss % | M68: Status | N68: Closed Date | O68: NSE Closed Price
A69: 1 | B69: 2018-12-20 | D69: AUROPHARMA | E69: Buy | F69: 730-735 | G69: 709.3 | I69: 775-785 | J69: Open | O69: =VLOOKUP(D69,Sheet2!A74:M1569,6,0) -> 724.35 | R69: R
A70: 2 | B70: 2018-12-27 | D70: HCLTECH | E70: Buy | F70: 944-948 | G70: 918 | I70: 1000 | J70: Open | O70: =VLOOKUP(D70,Sheet2!A4:N1636,6,0) -> 946.35 | R70: H
A71: 3 | B71: 2018-12-28 | D71: JUBLFOOD | E71: Buy | F71: 1244 | G71: 1204 | H71: 1280 | I71: 1300-1320 | J71: Open | O71: =VLOOKUP(D71,Sheet2!A5:N1637,6,0) -> 1239.15 | R71: R
A72: 4 | B72: 2019-01-01 | D72: DLF | E72: Buy | F72: 181 | G72: 174.7 | H72: 173.5 | I72: 192-194 | J72: Loss of Rs.7.5/- | K72: =H72-F72 -> -7.5 | L72: =K72/F72 -> -4.14% | M72: UnSuccessful | N72: 2019-01-02 | R72: R
A73: 5 | B73: 2019-01-02 | D73: MCDOWELL-N | E73: Buy | F73: 620-625 | G73: 603 | I73: 650-660 | J73: Open | O73: =VLOOKUP(D73,Sheet2!A7:N1639,6,0) -> 619.75 | R73: R
A74: 6 | B74: 2019-01-02 | D74: PIDILITIND | E74: Buy | F74: 1100-1105 | G74: 1068.7 | I74: 1165-1175 | J74: Open | O74: =VLOOKUP(D74,Sheet2!A8:N1640,6,0) -> 1107.65 | R74: R
A89: CLBS = Closing Basis *** | F89: Reinitiated $
A90: Dividend adjusted <> | F90: Revised stoploss #
B93: Momentum Call
A94: Sr.no | B94: Date | D94: Company | E94: Rec | F94: Rec Price | G94: Stop Loss | H94: Call Closed At | I94: Target | J94: Remark | K94: Profit / Loss per Share/Lot | L94: Gain / Loss % | M94: Gain / Loss per Lot | N94: Lot | O94: Status | P94: Closed Date
A95: 1 | B95: 2018-12-31 | D95: DRREDDY JAN FUT | E95: Buy | F95: 2662.5 | G95: 2620 | H95: 2615 | I95: 2750 | J95: Loss of Rs.47.5/- | K95: =H95-F95 -> -47.5 | M95: =N95*K95 -> -11875 | N95: 250 | O95: UnSuccessful | P95: 2019-01-02 | R95: R
A96: 2 | B96: 2018-12-31 | D96: COLPAL JAN FUT | E96: Sell | F96: 1333 | G96: 1353 | H96: 1325.5 | I96: 1300 | J96: Profit of Rs.7.5/- | K96: =F96-H96 -> 7.5 | M96: =N96*K96 -> 5250 | N96: 700 | O96: Successful | P96: 2019-01-01 | R96: H
A97: 3 | B97: 2018-12-31 | D97: SUNTV | E97: Buy | F97: 610-615 | G97: 594 | I97: 635-645 | J97: Open | R97: H
A98: 4 | B98: 2019-01-01 | D98: TATACHEM JAN FUT | E98: Buy | F98: 708-710 | G98: 693 | I98: 740 | J98: Open | R98: N
A99: 5 | B99: 2019-01-02 | D99: TCS JAN FUT | E99: Buy | F99: 1915-1925 | G99: 1875 | I99: 2000 | J99: Open | R99: H
A100: 6 | B100: 2019-01-02 | D100: AMBUJACEM JAN FUT | E100: Buy | F100: 221.50-222.50 | G100: 217 | I100: 232 | J100: Open | R100: N
A101: 7 | B101: 2019-01-02 | D101: IOC | E101: Buy | F101: 137-138 | G101: 134 | I101: 143-145 | J101: Open | R101: H
A117: CLBS = Closing Basis ***
A118: Dividend adjusted <> | F118: Reinitiated $
F119: Revised stoploss #
B120: Quick Pick Intraday
A121: Sr.no | B121: Date | D121: Company | E121: Rec | F121: Rec Price | G121: Stop Loss*** | H121: Call Closed At | I121: Target | J121: Remark | K121: Profit / Loss per Share | L121: Status | M121: Closed Date
A135: Techno -Funda (positional)
A136: Sr.no | B136: Date | D136: Company | E136: Rec | F136: Rec Price | G136: Stop Loss*** | H136: Call Closed At | I136: Target | J136: Remark | K136: Profit / Loss per Share | L136: Gain / Loss % | M136: Status | N136: Closed Date | O136: NSE Closed Price
A139: CLBS = Closing Basis *** | F139: Reinitiated $
A140: Dividend adjusted <> | F140: Revised stoploss #
B145: Investment Idea
A146: Sr.no | B146: Date | D146: Company | E146: Rec | F146: Rec Price | G146: Point of Review | H146: Close Rate | I146: Target | J146: Remark | K146: Profit / Loss per Share | L146: Gain / Loss % | M146: Status | N146: Closed Date
A147: 1 | B147: 2013-11-01 | D147: L&T Finance Holding | E147: Accu | F147: 82.00 | G147: - | H147: 100 | I147: 100.00 | J147: Target Achieved | K147: =H147-F147 -> 18.00 | L147: =K147/F147 -> 21.95% | M147: Successful | N147: 2016-10-14
A148: 2 | B148: 2014-06-04 | D148: Finolex Inds | E148: Buy | F148: 257.00 | G148: - | H148: 300 | I148: 300.00 | J148: Target Achieved | K148: =H148-F148 -> 43.00 | L148: 16.73% | M148: Successful | N148: 2014-07-02
A149: =1+A148 -> 3 | B149: 2014-07-08 | D149: JK Cement | E149: Buy | F149: 393.00 | G149: - | H149: 468 | I149: 468.00 | J149: Target Achieved | K149: =H149-F149 -> 75.00 | L149: 19.08% | M149: Successful | N149: 2014-08-12
A150: 4 | B150: 2014-08-06 | D150: Finolex Cables | E150: Buy | F150: 205.00 | G150: - | H150: 275 | I150: 250.00 | J150: Target Achieved | K150: 70.00 | L150: 34.15% | M150: Successful | N150: 2014-11-19
A151: 5 | B151: 2014-09-04 | D151: Exide Inds | E151: Buy | F151: 162.00 | G151: - | H151: 190 | I151: 190.00 | J151: Target Achieved | K151: 28.00 | L151: 17.28% | M151: Successful | N151: 2015-01-02
A152: 6 | B152: 2014-09-04 | D152: Deepak Nitrite | E152: Buy | F152: 75.00 | G152: - | H152: 91.5 | I152: 95-100 | J152: Profit of Rs.16.50/- | K152: 16.50 | L152: 22.00% | M152: Successful | N152: 2014-11-11
A153: 7 | B153: 2014-10-01 | D153: Mercks | E153: Buy | F153: 850.00 | G153: - | H153: 982.5 | I153: 1050.00 | J153: Profit of Rs.132.50/- | K153: 132.50 | L153: 15.59% | M153: Successful | N153: 2015-02-04
A154: 8 | B154: 2014-10-01 | D154: Grindwell Norton | E154: Buy | F154: 475.00 | G154: - | H154: 515 | I154: 600.00 | J154: Profit of Rs.40/- | K154: 40.00 | L154: 8.42% | M154: Successful | N154: 2014-10-27
A155: 9 | B155: 2014-10-01 | D155: Snowman Logistics | E155: Buy | F155: 86.00 | G155: - | H155: 99 | I155: 140.00 | J155: Profit of Rs.13.00/- | K155: 13.00 | L155: 15.12% | M155: Successful | N155: 2014-10-27
A156: 10 | B156: 2014-10-14 | D156: Birla Corp | E156: Buy | F156: 496.60 | G156: - | H156: 621 | I156: 580.00 | J156: Target Achieved | K156: 124.40 | L156: 25.05% | M156: Successful | N156: 2016-08-23
A157: 11 | B157: 2014-10-14 | D157: Ultratech Cem | E157: Buy | F157: 2481.90 | G157: - | H157: 2840 | I157: 2870.00 | J157: Profit of Rs.358.10/- | K157: 358.10 | L157: 14.43% | M157: Successful | N157: 2015-01-13
A158: =1+A155 -> 10 | B158: 2014-10-16 | D158: Sintex Inds | E158: Buy | F158: 84.50 | G158: - | H158: 93 | I158: 110.00 | J158: Profit of Rs.8.50/- | K158: 8.50 | L158: 10.06% | M158: Successful | N158: 2014-10-27
A159: =1+A158 -> 11 | B159: 2014-10-16 | D159: HSIL | E159: Buy | F159: 401.00 | G159: - | H159: 428 | I159: 450.00 | J159: Profit of Rs.27.00/- | K159: 27.00 | L159: 6.73% | M159: Successful | N159: 2015-01-16
A160: 12 | B160: 2014-10-16 | D160: Eveready Inds | E160: Buy | F160: 101.00 | G160: - | H160: 112 | I160: 120.00 | J160: Profit of Rs.11.00/- | K160: 11.00 | L160: 10.89% | M160: Successful | N160: 2014-10-27
A161: 13 | B161: 2014-11-11 | D161: Pennar Inds | E161: Buy | F161: 59.00 | G161: - | H161: 76 | I161: 76.00 | J161: Target Achieved | K161: 17.00 | L161: 28.81% | M161: Successful | N161: 2017-10-24
A162: 14 | B162: 2014-11-11 | D162: Snowman Logistics | E162: Buy | F162: 99.00 | G162: - | H162: 120 | I162: 120.00 | J162: Profit of Rs.21/- | K162: 21.00 | L162: 21.21% | M162: Successful | N162: 2014-11-17
A163: 15 | B163: 2014-11-13 | D163: Dharamsi Morarji Chem | E163: Buy | F163: 22.00 | G163: - | H163: 33.55 | I163: 32.00 | J163: Profit of Rs 11.55/- | K163: 11.55 | L163: 52.50% | M163: Successful | N163: 2015-07-03
A164: 16 | B164: 2014-12-03 | D164: Tatachem | E164: Buy | F164: 440.00 | G164: - | H164: 520 | I164: 520.00 | J164: Profit of Rs 80.00/- | K164: 80.00 | L164: 18.18% | M164: Successful | N164: 2015-07-23
A165: 17 | B165: 2014-12-03 | D165: Advanta | E165: Buy | F165: 360.00 | G165: - | H165: 427 | I165: 425.00 | J165: Profit of Rs.67.00/- | K165: 67.00 | L165: 18.61% | M165: Successful | N165: 2015-02-23
A166: 18 | B166: 2015-01-08 | D166: GDL | E166: Buy | F166: 360.00 | G166: - | H166: 455 | I166: 420.00 | J166: Profit of Rs.95.00/- | K166: 95.00 | L166: 26.39% | M166: Successful | N166: 2015-01-20
A167: 19 | B167: 2015-01-08 | D167: NRB Bearing | E167: Buy | F167: 130.00 | H167: 175.5 | I167: 165.00 | J167: Profit of Rs 45.50/- | K167: 45.50 | L167: 35.00% | M167: Successful | N167: 2017-12-19
A168: 20 | B168: 2015-02-05 | D168: GSFC | E168: Accu | F168: 98.00 | H168: 120 | I168: 120.00 | J168: Target Achieved | K168: 22.00 | L168: 22.45% | M168: Successful | N168: 2017-01-18
A169: 21 | B169: 2015-02-05 | D169: Sundrmfast | E169: Accu | F169: 196.00 | H169: 262 | I169: 255.00 | J169: Target Achieved | K169: 66.00 | L169: 33.67% | M169: Successful | N169: 2016-08-17
A170: 22 | B170: 2015-03-04 | D170: GPPL | E170: Accu | F170: 230-240 | I170: 280-285 | J170: Open
A171: 23 | B171: 2015-03-04 | D171: ORIENTCEM | E171: Accu | F171: 185.00 | H171: 224 | I171: 220-225 | J171: Target Achieved | K171: 39.00 | L171: =K171/F171 -> 21.08% | M171: Successful | N171: 2016-10-04
A172: 24 | B172: 2015-03-27 | D172: PFS | E172: Accu | F172: 49-50 | I172: 67.00 | J172: Open
A173: 25 | B173: 2015-03-30 | D173: Walchandnagar Ind Ltd | E173: Accu | F173: 183.50 | H173: 219 | I173: 218.00 | J173: Profit of Rs.35.50/- | K173: 35.50 | L173: =K173/F173 -> 19.35% | M173: Successful | N173: 2015-04-09
A174: 26 | B174: 2015-04-20 | D174: Kalpataru Power Transmission Ltd | E174: Accu | F174: =(227+237)/2 -> 232.00 | H174: 298 | I174: 298.00 | J174: Target Achieved | K174: 66.00 | L174: 28.45% | M174: Successful | N174: 2017-03-29
A175: 27 | B175: 2015-05-04 | D175: Mastek Ltd | E175: Buy | F175: 385.00 | H175: =212.5+331 -> 543.5 | I175: 510.00 | J175: Profit of Rs 158.50/- | K175: 158.50 | L175: 41.17% | M175: Successful | N175: 2015-08-19
A176: 28 | B176: 2015-05-04 | D176: Suprajit Eng | E176: Buy | F176: 115.50 | H176: 146 | I176: 142.00 | J176: Profit of Rs 30.50/- | K176: 30.50 | L176: 26.41% | M176: Successful | N176: 2015-07-17
A177: 29 | B177: 2015-05-27 | D177: TCI | E177: Buy | F177: 237.50 | H177: 279.5 | I177: 278.00 | J177: Target Achieved | K177: 42.00 | L177: 17.68% | M177: Successful | N177: 2015-08-06
A178: 30 | B178: 2015-06-19 | D178: HSIL | E178: Accu | F178: 340.00 | H178: 448 | I178: 448.00 | J178: Target Achieved | K178: 108.00 | L178: 31.76% | M178: Successful | N178: 2017-10-10
A179: 31 | B179: 2015-07-06 | D179: Capital First | E179: Accu | F179: 390.00 | H179: 460 | I179: 460.00 | J179: Target Achieved | K179: 70.00 | L179: 17.95% | M179: Successful | N179: 2016-04-18
A180: 32 | B180: 2015-07-10 | D180: Dolphin OffShore | E180: Accu | F180: 122.5 | H180: 61.00 | I180: 172.00 | J180: Loss of Rs.61.50/- | K180: -61.50 | L180: -50.20% | M180: Unsuccessful | N180: 2018-08-21
A181: 33 | B181: 2015-08-03 | D181: Allcargo logistics | E181: Accu | F181: 297.50 | H181: 350 | I181: 360.00 | J181: Profit of Rs 52.50/- | K181: 52.50 | L181: =K181/F181 -> 17.65% | M181: Successful | N181: 2015-08-16
A182: 34 | B182: 2015-08-03 | D182: Camline Fine | E182: Accu | F182: 115.50 | H182: 149 | I182: 140.00 | J182: Profit of Rs 33.50/- | K182: 33.50 | L182: 29.00% | M182: Successful | N182: 2017-01-05
A183: 35 | B183: 2015-09-04 | D183: TCI | E183: Accu | F183: 226.00 | H183: 292 | I183: 292.00 | J183: Target Achieved | K183: 66.00 | L183: 29.20% | M183: Successful | N183: 2015-10-09
A184: 36 | B184: 2015-09-07 | D184: Kalpataru Power Transmission Ltd | E184: Accu | F184: 232.50 | H184: 312.5 | I184: 310.00 | J184: Target Achieved | K184: 80.00 | L184: 34.41% | M184: Successful | N184: 2017-03-29
A185: 37 | B185: 2015-09-21 | D185: LLOYD ELECTRIC & ENG LTD | E185: Accu | F185: 196.50 | H185: 238 | I185: 238.00 | J185: Target Achieved | K185: 41.50 | L185: 21.12% | M185: Successful | N185: 2015-10-14
A186: 38 | B186: 2015-09-24 | D186: L&T Finance Holding | E186: Accu | F186: 65.00 | H186: 82 | I186: 82.00 | J186: Target Achieved | K186: 17.00 | L186: 26.15% | M186: Successful | N186: 2016-07-27
A187: 39 | B187: 2015-10-14 | D187: KEC International ltd | E187: Accu | F187: 144.00 | H187: 182.5 | I187: 181.00 | J187: Target Achieved | K187: 38.50 | L187: 26.74% | M187: Successful | N187: 2017-03-23
A188: 40 | B188: 2015-10-14 | D188: Gruh Finance | E188: Accu | F188: 264.00 | H188: 311 | I188: 311.00 | J188: Target Achieved | K188: 47.00 | L188: 17.80% | M188: Successful | N188: 2016-08-22
A189: 41 | B189: 2015-11-10 | D189: Pidilitind | E189: Buy | F189: 549.50 | H189: 630 | I189: 630.00 | J189: Target Achieved | K189: 80.50 | L189: 14.65% | M189: Successful | N189: 2016-02-19
A190: 42 | B190: 2015-12-04 | D190: Zensar Technology | E190: Accu | F190: 1027.50 | H190: 1315 | I190: 1250.00 | J190: Target Achieved | K190: =H190-F190 -> 287.50 | L190: 27.98% | M190: Successful | N190: 2018-05-24
A191: 43 | B191: 2015-12-29 | D191: Vinati Organics Ltd | E191: Accu | F191: 465.00 | H191: 540 | I191: 540.00 | J191: Target Achieved | K191: 75.00 | L191: =K191/F191 -> 16.13% | M191: Successful | N191: 2016-06-09
A192: 44 | B192: 2016-01-11 | D192: GSFC | E192: Buy | F192: 81.00 | H192: 110 | I192: 110.00 | J192: Target Achieved | K192: 29.00 | L192: 35.80% | M192: Successful | N192: 2017-01-10
A193: 45 | B193: 2016-01-13 | D193: SSWL | E193: Buy | F193: 417.50 | H193: 547 | I193: 535.00 | J193: Target Achieved | K193: 129.50 | L193: 31.02% | M193: Successful | N193: 2016-07-27
A194: 46 | B194: 2016-02-08 | D194: Persistent System Ltd | E194: Accu | F194: 650.00 | H194: 800 | I194: 800.00 | J194: Target Achieved | K194: 150.00 | L194: 23.08% | M194: Successful | N194: 2018-02-23
A195: 47 | B195: 2016-03-04 | D195: UPL | E195: Accu | F195: 437.50 | H195: 504.5 | I195: 522.00 | J195: Profit of Rs.67/- | K195: 67.00 | L195: 15.31% | M195: Successful | N195: 2016-04-20
A196: 48 | B196: 2016-03-09 | D196: Ashoka Buildcon Ltd | E196: Accu | F196: 189.50 | H196: 218 | I196: 218.00 | J196: Target Achieved | K196: 28.50 | L196: 15.04% | M196: Successful | N196: 2017-10-26
A197: 49 | B197: 2016-04-11 | D197: PTC INDIA FIN SERV LTD | E197: Accu | F197: 36-37 | I197: 60.00 | J197: Open
A198: 50 | B198: 2016-04-12 | D198: CAMLINFINE $ | E198: Accu | F198: 93.00 | H198: 149 | I198: 140.00 | J198: Profit of Rs 56/- | K198: 56.00 | L198: =K198/F198 -> 60.22% | M198: Successful | N198: 2017-01-05
A199: 51 | B199: 2016-04-12 | D199: Greaves Cotton Ltd. | E199: Accu | F199: 130.00 | H199: 150 | I199: 150-155 | J199: Target Achieved | K199: 20.00 | L199: 15.38% | M199: Successful | N199: 2016-07-13
A200: 52 | B200: 2016-04-13 | D200: DHFL | E200: Accu | F200: 196.00 | H200: 299 | I200: 299.00 | J200: Target Achieved | K200: 103.00 | L200: 52.55% | M200: Successful | N200: 2016-09-07
A201: 53 | B201: 2016-04-13 | D201: Magma | E201: Accu | F201: 88.00 | H201: 103 | I201: 103.00 | J201: Target Achieved | K201: 15.00 | L201: 17.05% | M201: Successful | N201: 2016-06-09
A202: 54 | B202: 2016-05-02 | D202: KEC International ltd $ | E202: Accu | F202: 127.50 | H202: 148 | I202: 148-150 | J202: Target Achieved | K202: 20.50 | L202: 16.08% | M202: Successful | N202: 2016-07-13
A203: 55 | B203: 2016-05-03 | D203: Mindtree | E203: Accu | F203: 675.00 | H203: 815 | I203: 790-800 | J203: Target Achieved | K203: 140.00 | L203: 20.74% | M203: Successful | N203: 2018-02-23
A204: 56 | B204: 2016-06-01 | D204: Atulauto | E204: Accu | F204: 495-505 | I204: 565-570 | J204: Open
A205: 57 | B205: 2016-06-06 | D205: TRITURBINE | E205: Accu | F205: 110.00 | H205: 126.5 | I205: 125.00 | J205: Profit of Rs.16.50/- | K205: 16.50 | L205: =K205/F205 -> 15.00% | M205: Successful | N205: 2016-07-01
A206: 58 | B206: 2016-06-17 | D206: Pennar Industries Ltd | E206: Accu | F206: 44.00 | H206: 69.5 | I206: 69.50 | J206: Profit of Rs.25.50/- | K206: 25.50 | L206: =K206/F206 -> 57.95% | M206: Successful | N206: 2017-08-30
A207: 59 | B207: 2016-06-28 | D207: EVEREADY INDS. IND. LTD. | E207: Accu | F207: 262.50 | H207: 340 | I207: 333.00 | J207: Profit of Rs.77.50/- | K207: 77.50 | L207: =K207/F207 -> 29.52% | M207: Successful | N207: 2017-10-09
A208: 60 | B208: 2016-06-28 | D208: FIEM INDUSTRIES LIMITED | E208: Accu | F208: 840.00 | H208: 1230 | I208: 1230.00 | J208: Target Achieved | K208: 390.00 | L208: =K208/F208 -> 46.43% | M208: Successful | N208: 2016-10-06
A209: 61 | B209: 2016-07-05 | D209: Bajaj Corp Ltd | E209: Accu | F209: 395 | H209: 468.50 | I209: 510.00 | J209: Part profit of Rs.73.50/- | K209: 73.50 | L209: =K209/F209 -> 19% | M209: Successful | N209: 2017-08-30
A210: 62 | B210: 2016-08-02 | D210: GPPL $ | E210: Buy | F210: 167-172 | I210: 198-200 | J210: Open
A211: 63 | B211: 2016-08-04 | D211: WONDERLA HOLIDAYS LTD | E211: Accu | F211: 395-405 | I211: 475.00 | J211: Open
A212: 64 | B212: 2016-08-11 | D212: CAMLINFINE | E212: Accu | F212: 86.50 | H212: 130 | I212: 130.00 | J212: Profit of Rs.43.50/- | K212: =H212-F212 -> 43.50 | L212: =K212/F212 -> 50.29% | M212: Successful | N212: 2017-12-22
A213: 65 | B213: 2016-08-18 | D213: GRANULES | E213: Accu | F213: 133.5 | H213: 126.50 | I213: 178.00 | J213: Exit | K213: -7.00 | L213: -5.24% | M213: Unsuccessful | N213: 2016-09-02
A214: 66 | B214: 2016-08-31 | D214: VA TECH WABAG | E214: Accu | F214: 560.00 | H214: 725 | I214: 725.00 | J214: Target Achieved | K214: 165.00 | L214: 29.46% | M214: Successful | N214: 2016-03-27
A215: 67 | B215: 2016-09-01 | D215: SKIPPER LIMITED | E215: Accu | F215: 160.50 | H215: 210 | I215: 210.00 | J215: Target Achieved | K215: 49.50 | L215: 30.84% | M215: Successful | N215: 2017-05-16
A216: 68 | B216: 2016-10-03 | D216: IFB Industries | E216: Accu | F216: 430.00 | H216: 596 | I216: 575.00 | J216: Profit of Rs.166/- | K216: 166.00 | L216: 38.60% | M216: Successful | N216: 2017-02-03
A217: 69 | B217: 2016-10-14 | D217: ASIANTILES | E217: Accu | F217: 280.00 | H217: 345 | I217: 345.00 | J217: Target Achieved | K217: 65.00 | L217: 23.21% | M217: Successful | N217: 2017-03-20
A218: 70 | B218: 2016-10-14 | D218: DEEPIND | E218: Accu | F218: 245.00 | H218: 325.5 | I218: 330.00 | J218: Profit of Rs.80.5/- | K218: 80.50 | L218: 32.86% | M218: Successful | N218: 2017-02-03
A219: 71 | B219: 2016-10-17 | D219: DCBBANK | E219: Accu | F219: 125.00 | H219: 160 | I219: 160.00 | J219: Target Achieved | K219: 35.00 | L219: 28.00% | M219: Successful | N219: 2017-03-09
A220: 72 | B220: 2016-10-17 | D220: ORIENTREF | E220: Accu | F220: 114.00 | H220: 145 | I220: 145.00 | J220: Target Achieved | K220: 31.00 | L220: =K220/F220 -> 27.19% | M220: Successful | N220: 2017-05-04
A221: 73 | B221: 2016-10-17 | D221: GANECOS | E221: Accu | F221: 212.00 | H221: 280 | I221: 276.00 | J221: Profit of Rs.68/- | K221: 68.00 | L221: =K221/F221 -> 32.08% | M221: Successful | N221: 2017-05-03
A222: 74 | B222: 2016-11-04 | D222: NBCC | E222: Accu | F222: 155.00 | H222: 210 | I222: 210.00 | J222: Profit of Rs.55/- | K222: 55.00 | L222: =K222/F222 -> 35.48% | M222: Successful | N222: 2017-07-28
A223: 75 | B223: 2016-12-06 | D223: PRECAM | E223: Accu | F223: 150.5 | H223: 72.50 | I223: 174.00 | J223: Loss of Rs.78/- | K223: -78.00 | L223: =K223/F223 -> -51.83% | M223: Unsuccessful | N223: 2018-08-21
A224: 76 | B224: 2016-12-08 | D224: INFRATEL | E224: Accu | F224: 380.00 | H224: 478 | I224: 468.00 | J224: Target Achieved | K224: 98.00 | L224: =K224/F224 -> 25.79% | M224: Successful | N224: 2017-10-17
A225: 77 | B225: 2016-12-30 | D225: GODREJPROP | E225: Accu | F225: 305.00 | H225: 375 | I225: 375.00 | J225: Target Achieved | K225: 70.00 | L225: 22.95% | M225: Successful | N225: 2017-02-02
A226: 78 | B226: 2017-01-04 | D226: DEEPAKNTR | E226: Accu | F226: 99.50 | H226: 158 | I226: 158.00 | J226: Target Achieved | K226: 58.50 | L226: 58.79% | M226: Successful | N226: 2017-06-12
A227: 79 | B227: 2017-02-20 | D227: SUBROS | E227: Accu | F227: 202.50 | H227: 234 | I227: 234.00 | J227: Target Achieved | K227: 31.50 | L227: 15.56% | M227: Successful | N227: 2017-04-11
A228: 80 | B228: 2017-02-20 | D228: RECLTD | E228: Accu | F228: 140.50 | H228: 220 | I228: 220.00 | J228: Target Achieved | K228: 79.50 | L228: 56.58% | M228: Successful | N228: 2017-05-09
A229: 81 | B229: 2017-03-24 | D229: VRLLOG | E229: Accu | F229: 300.50 | H229: 417.5 | I229: 420.00 | J229: Profit of Rs.117/- | K229: 117.00 | L229: 38.94% | M229: Successful | N229: 2017-12-01
A230: 82 | B230: 2017-03-24 | D230: FIEMIND | E230: Accu | F230: 850.00 | H230: 1042.5 | I230: 1023.00 | J230: Profit of Rs 192.50/- | K230: 192.50 | L230: 22.65% | M230: Successful | N230: 2017-04-05
A231: 83 | B231: 2017-04-05 | D231: RATNAMANI | E231: Accu | F231: 785.00 | H231: 930 | I231: 920.00 | J231: Profit of Rs.145/- | K231: 145.00 | L231: 18.47% | M231: Successful | N231: 2017-08-29
A232: 84 | B232: 2017-04-06 | D232: ZEEMEDIA | E232: Accu | F232: 39-41 | I232: 60.00 | J232: Open
A233: 85 | B233: 2017-04-12 | D233: DABUR | E233: Accu | F233: 289.50 | H233: 354 | I233: 360.00 | J233: Profit of Rs.64.5/- | K233: 64.50 | L233: =K233/F233 -> 22.28% | M233: Successful | N233: 2017-11-01
A234: 86 | B234: 2017-04-20 | D234: KPRMILL | E234: Accu | F234: 700.00 | H234: 840 | I234: 840.00 | J234: Profit of Rs.140/- | K234: 140.00 | L234: =K234/F234 -> 20.00% | M234: Successful | N234: 2017-06-07
A235: 87 | B235: 2017-05-22 | D235: GREAVESCOT | E235: Accu | F235: 153-158 | I235: 190.00 | J235: Open
A236: 88 | B236: 2017-06-01 | D236: ESSELPACK | E236: Accu | F236: 260 | H236: 311.00 | I236: 340.00 | J236: Part profit of Rs.51/- | K236: =H236-F236 -> 51.00 | L236: =K236/F236 -> 20% | M236: Successful | N236: 2017-11-17
A237: 89 | B237: 2017-06-15 | D237: KEI | E237: Accu | F237: 214.50 | H237: 262 | I237: 262.00 | J237: Profit of Rs.47.5/- | K237: =H237-F237 -> 47.50 | L237: 22.14% | M237: Successful | N237: 2017-08-30
A238: 90 | B238: 2017-07-17 | D238: MAYURUNIQ | E238: Accu | F238: 370.00 | H238: 447.5 | I238: 450.00 | J238: Target Achieved | K238: 77.50 | L238: 20.95% | M238: Successful | N238: 2017-10-27
A239: 91 | B239: 2017-07-27 | D239: RAMCOCEM | E239: Accu | F239: 657.50 | H239: 825 | I239: 820.00 | J239: Target Achieved | K239: 167.50 | L239: 25.48% | M239: Successful | N239: 2017-12-21
A240: 92 | B240: 2017-08-17 | D240: FINPIPE | E240: Accu | F240: 605.00 | H240: 750 | I240: 750.00 | J240: Profit of Rs.145/- | K240: 145.00 | L240: 23.97% | M240: Successful | N240: 2017-10-19
A241: 93 | B241: 2017-09-01 | D241: SHK | E241: Accu | F241: 255 | H241: 307.50 | I241: 320.00 | J241: Part profit of Rs.52.5/- | K241: 52.50 | L241: 21% | M241: Successful | N241: 2017-12-29
A242: 94 | B242: 2017-09-19 | D242: SKIPPER | E242: Accu | F242: 215.00 | H242: 258 | I242: 258.00 | J242: Target Achieved | K242: 43.00 | L242: 20.00% | M242: Successful | N242: 2017-11-01
A243: 95 | B243: 2017-09-20 | D243: CAMLINFINE | E243: Accu | F243: 75.00 | H243: 90 | I243: 90.00 | J243: Profit of Rs.15.00/- | K243: 15.00 | L243: 20.00% | M243: Successful | N243: 2017-10-11
A244: 96 | B244: 2017-10-03 | D244: GNA | E244: Accu | F244: 315.00 | H244: 392 | I244: 384.00 | J244: Profit of Rs.77/- | K244: 77.00 | L244: 24.44% | M244: Successful | N244: 2017-10-09
A245: 97 | B245: 2017-10-05 | D245: NOCIL | E245: Accu | F245: 145.00 | H245: 179 | I245: 180.00 | J245: Profit of Rs.34/- | K245: 34.00 | L245: 23.45% | M245: Successful | N245: 2017-10-17
A246: 98 | B246: 2017-10-06 | D246: CENTURYPLY | E246: Accu | F246: 256.00 | H246: 323 | I246: 320.00 | J246: Target Achieved | K246: 67.00 | L246: 26.17% | M246: Successful | N246: 2017-11-28
A247: 99 | B247: 2017-10-09 | D247: RECLTD | E247: Accu | F247: 152.5 | H247: 183.50 | I247: 210.00 | J247: Part Profit of Rs.31/- | K247: 31.00 | L247: 20% | M247: Successful | N247: 2017-11-03
A248: 100 | B248: 2017-10-09 | D248: EIHOTEL | E248: Accu | F248: 137.50 | H248: 184 | I248: 183.00 | J248: Profit of Rs.46.5/- | K248: 46.50 | L248: 33.82% | M248: Successful | N248: 2018-01-08
A249: 101 | B249: 2017-10-10 | D249: BOROSIL | E249: Accu | F249: 895.00 | H249: 1122.5 | I249: 1078.00 | J249: Profit of Rs.227.5/- | K249: 227.50 | L249: 25.42% | M249: Successful | N249: 2018-01-17
A250: 102 | B250: 2017-10-10 | D250: NRBBEARING | E250: Accu | F250: 125.50 | H250: 158 | I250: 155.00 | J250: Profit of Rs.32.5/- | K250: 32.50 | L250: 25.90% | M250: Successful | N250: 2017-11-28
A251: 103 | B251: 2017-10-12 | D251: CYIENT | E251: Accu | F251: 525.00 | H251: 629 | I251: 629.00 | J251: Target Achieved | K251: 104.00 | L251: 19.81% | M251: Successful | N251: 2018-01-19
A252: 104 | B252: 2017-11-07 | D252: HATSUN | E252: Accu | F252: 740.00 | H252: 892.5 | I252: 900.00 | J252: Profit of Rs.152.5/- | K252: 152.50 | L252: 20.61% | M252: Successful | N252: 2017-11-13
A253: 105 | B253: 2017-12-04 | D253: SANGHIIND | E253: Accu | F253: 118.50 | H253: 143.5 | I253: 145.00 | J253: Profit of Rs.25/- | K253: 25.00 | L253: 21.10% | M253: Successful | N253: 2017-12-28
A254: 106 | B254: 2017-12-05 | D254: ALLCARGO | E254: Accu | F254: 177.5 | H254: 215.00 | I254: 230.00 | J254: Part Profit of Rs.37.5/- | K254: 37.50 | L254: 21% | M254: Successful | N254: 2017-12-27
A255: 107 | B255: 2017-12-21 | D255: KAJARIACER | E255: Accu | F255: 710-720 | I255: 872.00 | J255: Open
A256: 108 | B256: 2017-12-29 | D256: GNA | E256: Accu | F256: 435.00 | H256: 542.5 | I256: 539.00 | J256: Target Achieved | K256: =H256-F256 -> 107.50 | L256: =K256/F256 -> 24.71% | M256: Successful | N256: 2018-04-16
A257: 109 | B257: 2017-12-29 | D257: ZENSARTECH | E257: Accu | F257: 885.00 | H257: 1090 | I257: 1084.00 | J257: Target Achieved | K257: 205.00 | L257: =K257/F257 -> 23.16% | M257: Successful | N257: 2018-04-23
A258: 110 | B258: 2018-02-07 | D258: GREAVESCOT | E258: Accu | F258: 130-132 | I258: 190.00 | J258: Open
A259: 111 | B259: 2018-02-27 | D259: MOLDTKPAC | E259: Accu | F259: 320-330 | I259: 398.00 | J259: Open
A260: 112 | B260: 2018-03-05 | D260: LICHSGFIN | E260: Accu | F260: 505-515 | I260: 672.00 | J260: Open
A261: 113 | B261: 2018-04-02 | D261: EVERESTIND | E261: Accu | F261: 492.5 | H261: 589.00 | I261: 613.00 | J261: Part Profit of Rs.37.5/- | K261: =H261-F261 -> 96.50 | L261: =K261/F261 -> 20% | M261: Successful | N261: 2018-08-21
A262: 114 | B262: 2018-04-04 | D262: GPPL | E262: Accu | F262: 140-143 | I262: 180.00 | J262: Open
A263: 115 | B263: 2018-04-19 | D263: MANPASAND | E263: Accu | F263: 430 | H263: 220.00 | I263: 537.00 | J263: Loss of Rs.210/- | K263: =H263-F263 -> -210.00 | L263: =K263/F263 -> -48.84% | M263: Unsuccessful | N263: 2018-06-01
A264: 116 | B264: 2018-04-30 | D264: HEIDELBERG | E264: Accu | F264: 154-158 | I264: 196.00 | J264: Open
A265: 117 | B265: 2018-05-17 | D265: PHILIPCARB | E265: Accu | F265: 230-240 | I265: 348.00 | J265: Open
A266: 118 | B266: 2018-06-07 | D266: KEC | E266: Accu | F266: 340-345 | I266: 439.00 | J266: Open
A267: 119 | B267: 2018-07-04 | D267: ASHOKLEY | E267: Accu | F267: 125-130 | I267: 170.00 | J267: Open
A268: 120 | B268: 2018-07-13 | D268: FCONSUMER | E268: Accu | F268: 46-47 | I268: 59.00 | J268: Open
A269: 121 | B269: 2018-07-25 | D269: ZEEMEDIA | E269: Accu | F269: 27-28 | I269: 44.00 | J269: Open
A270: 122 | B270: 2018-08-06 | D270: GABRIEL | E270: Accu | F270: 148-152 | I270: 182.00 | J270: Open
A271: 123 | B271: 2018-08-23 | D271: INDIANHUME | E271: Accu | F271: 285.00 | H271: 355 | I271: 364.00 | J271: Profit of Rs.70/- | K271: =H271-F271 -> 70.00 | L271: =K271/F271 -> 24.56% | M271: Successful | N271: 2018-12-21
A272: 124 | B272: 2018-08-29 | D272: GRINDWELL | E272: Accu | F272: 520-530 | I272: 635.00 | J272: Open
A273: 125 | B273: 2018-10-22 | D273: FINPIPE | E273: Accu | F273: 475.00 | H273: 574 | I273: 570.00 | J273: Target Achieved | K273: =H273-F273 -> 99.00 | L273: =K273/F273 -> 20.84% | M273: Successful | N273: 2018-10-30
A274: 126 | B274: 2018-10-23 | D274: JKPAPER | E274: Accu | F274: 158-162 | I274: 191.00 | J274: Open
A275: 127 | B275: 2018-10-24 | D275: GULFOILLUB | E275: Accu | F275: 707.5 | H275: 847.50 | I275: 872.00 | J275: Part Profit of Rs.140/- | K275: =H275-F275 -> 140.00 | L275: =K275/F275 -> 20% | M275: Successful | N275: 2018-12-24
A276: 128 | B276: 2018-10-25 | D276: GODREJCP | E276: Accu | F276: 707.5 | H276: 850.00 | I276: 890.00 | J276: Part Profit of Rs.142.5/- | K276: =H276-F276 -> 142.50 | L276: =K276/F276 -> 20% | M276: Successful | N276: 2018-12-19
A277: 129 | B277: 2018-10-25 | D277: DBCORP | E277: Accu | F277: 161-167 | I277: 209.00 | J277: Open
A278: 130 | B278: 2018-10-26 | D278: RITES | E278: Accu | F278: 240.00 | H278: 297 | I278: 297.00 | J278: Target Achieved | K278: =H278-F278 -> 57.00 | L278: =K278/F278 -> 23.75% | M278: Successful | N278: 2018-11-13
A279: 131 | B279: 2018-12-05 | D279: CCL | E279: Accu | F279: 260-270 | I279: 321.00 | J279: Open
A280: 132 | B280: 2018-12-05 | D280: VARROC | E280: Accu | F280: 710-720 | I280: 840.00 | J280: Open
A281: 133 | B281: 2018-12-05 | D281: BRIGADE | E281: Accu | F281: 202.5 | H281: 242.50 | I281: 252.00 | J281: Part Profit of Rs.40/- | K281: =H281-F281 -> 40.00 | L281: =K281/F281 -> 20% | M281: Successful | N281: 2018-12-26
A282: 134 | B282: 2018-12-31 | D282: JKCEMENT | E282: Accu | F282: 705-715 | I282: 866.00 | J282: Open
F288: Reinitiated $
A290: Disclaimer:
A291: This document has been prepared by the Retail Research Desk of Asit C Mehta
A292: Investment Intermediates Ltd. and is meant for use of the recipient only
A293: and is not for circulation. This document is not to be reported or
A294: copied or made available to others. It should not be considered to be
A295: taken as an offer to sell or a solicitation to buy any security. The
A296: information contained herein is from sources believed reliable. We do
A297: not represent that it is accurate or complete and it should not be
A298: relied upon as such. We may from time to time have positions in and buy
A299: and sell securities referred to herein

Sheet Sheet2 (hidden)
A1: SYMBOL | B1: SERIES | C1: OPEN | D1: HIGH | E1: LOW | F1: CLOSE | G1: LAST | H1: PREVCLOSE | I1: TOTTRDQTY | J1: TOTTRDVAL | K1: TIMESTAMP | L1: TOTALTRADES | M1: ISIN | N1: ISIN
A2: 20MICRONS | B2: EQ | C2: 45.5 | D2: 45.95 | E2: 43.8 | F2: 44.05 | G2: 44.45 | H2: 44.25 | I2: 164131 | J2: 7414680.5 | K2: 2019-01-02 | L2: 1292 | M2: INE144J01027
A3: 21STCENMGM | B3: EQ | C3: 24.25 | D3: 24.3 | E3: 23.8 | F3: 23.8 | G3: 23.8 | H3: 24.25 | I3: 2980 | J3: 71020.5 | K3: 2019-01-02 | L3: 15 | M3: INE253B01015
A4: 3IINFOTECH | B4: EQ | C4: 3.65 | D4: 3.7 | E4: 3.6 | F4: 3.65 | G4: 3.7 | H4: 3.65 | I4: 1774440 | J4: 6483473.75 | K4: 2019-01-02 | L4: 554 | M4: INE748C01020
A5: 3MINDIA | B5: EQ | C5: 20666.35 | D5: 20666.35 | E5: 19952.45 | F5: 19985.75 | G5: 19980 | H5: 20666.35 | I5: 8642 | J5: 173052211.5 | K5: 2019-01-02 | L5: 2543 | M5: INE470A01017
A6: 3PLAND | B6: EQ | C6: 11.3 | D6: 12 | E6: 11.3 | F6: 12 | G6: 12 | H6: 12 | I6: 1031 | J6: 11960 | K6: 2019-01-02 | L6: 6 | M6: INE105C01023
A7: 5PAISA | B7: EQ | C7: 270.75 | D7: 270.75 | E7: 260.6 | F7: 270.75 | G7: 270.75 | H7: 257.9 | I7: 20081 | J7: 5405538.5 | K7: 2019-01-02 | L7: 424 | M7: INE618L01018
A8: 63MOONS | B8: EQ | C8: 98.9 | D8: 100.4 | E8: 96.6 | F8: 97.2 | G8: 96.65 | H8: 99.6 | I8: 183950 | J8: 18053925.5 | K8: 2019-01-02 | L8: 2948 | M8: INE111B01023
A9: 8KMILES | B9: EQ | C9: 141.8 | D9: 143 | E9: 138.25 | F9: 138.8 | G9: 138.6 | H9: 142.3 | I9: 215557 | J9: 30209397.95 | K9: 2019-01-02 | L9: 2986 | M9: INE650K01021
A10: A2ZINFRA | B10: EQ | C10: 13.25 | D10: 13.25 | E10: 12.9 | F10: 13 | G10: 13 | H10: 13 | I10: 73069 | J10: 950587.85 | K10: 2019-01-02 | L10: 232 | M10: INE619I01012
A11: AARTIDRUGS | B11: EQ | C11: 577.3 | D11: 577.3 | E11: 571.05 | F11: 575.1 | G11: 575 | H11: 575.65 | I11: 4864 | J11: 2796277.15 | K11: 2019-01-02 | L11: 179 | M11: INE767A01016
A12: AARTIIND | B12: EQ | C12: 1453.95 | D12: 1453.95 | E12: 1431.2 | F12: 1450.7 | G12: 1450 | H12: 1448.6 | I12: 27836 | J12: 40190296.15 | K12: 2019-01-02 | L12: 4539 | M12: INE769A01020
A13: AARVEEDEN | B13: EQ | C13: 25.8 | D13: 27.15 | E13: 25.8 | F13: 27.05 | G13: 27.15 | H13: 26.05 | I13: 23978 | J13: 636903.75 | K13: 2019-01-02 | L13: 130 | M13: INE273D01019
A14: AAVAS | B14: EQ | C14: 840.25 | D14: 856.75 | E14: 829.95 | F14: 840.65 | G14: 839 | H14: 845.25 | I14: 10812 | J14: 9100405.05 | K14: 2019-01-02 | L14: 1133 | M14: INE216P01012
A15: ABAN | B15: EQ | C15: 74 | D15: 75.3 | E15: 73.1 | F15: 74.1 | G15: 74 | H15: 74.5 | I15: 413245 | J15: 30710032.25 | K15: 2019-01-02 | L15: 4473 | M15: INE421A01028
A16: ABB | B16: EQ | C16: 1320 | D16: 1330 | E16: 1311.3 | F16: 1319.25 | G16: 1315.9 | H16: 1319.2 | I16: 56713 | J16: 74955966.7 | K16: 2019-01-02 | L16: 6648 | M16: INE117A01022
A17: ABBOTINDIA | B17: EQ | C17: 7580 | D17: 7580 | E17: 7506 | F17: 7527.05 | G17: 7517 | H17: 7580.05 | I17: 1013 | J17: 7643031.8 | K17: 2019-01-02 | L17: 359 | M17: INE358A01014
A18: ABCAPITAL | B18: EQ | C18: 99.8 | D18: 101.45 | E18: 99 | F18: 99.25 | G18: 99.05 | H18: 100.1 | I18: 1728162 | J18: 173299262.2 | K18: 2019-01-02 | L18: 14182 | M18: INE674K01013
A19: ABFRL | B19: EQ | C19: 198.7 | D19: 200.85 | E19: 194.55 | F19: 195.55 | G19: 194.8 | H19: 199.55 | I19: 854111 | J19: 168497579.1 | K19: 2019-01-02 | L19: 14965 | M19: INE647O01011
A20: ABSLNN50ET | B20: EQ | C20: 277.07 | D20: 287.99 | E20: 277.07 | F20: 280 | G20: 280 | H20: 292 | I20: 74 | J20: 20835.94 | K20: 2019-01-02 | L20: 8 | M20: INF209KB1B87
A21: ACC | B21: EQ | C21: 1487.85 | D21: 1501.95 | E21: 1477.55 | F21: 1483.95 | G21: 1478.2 | H21: 1488.8 | I21: 669181 | J21: 997225536.2 | K21: 2019-01-02 | L21: 28943 | M21: INE012A01025
A22: ACCELYA | B22: EQ | C22: 945.05 | D22: 951.95 | E22: 941 | F22: 949.4 | G22: 951.95 | H22: 950 | I22: 1067 | J22: 1011639.45 | K22: 2019-01-02 | L22: 166 | M22: INE793A01012
A23: ACE | B23: EQ | C23: 94.1 | D23: 101 | E23: 93.6 | F23: 97.4 | G23: 97.4 | H23: 94.4 | I23: 911696 | J23: 89436493.35 | K23: 2019-01-02 | L23: 9930 | M23: INE731H01025
A24: ADANIENT | B24: EQ | C24: 157 | D24: 157.85 | E24: 152.5 | F24: 154.85 | G24: 154.5 | H24: 157.25 | I24: 2735262 | J24: 425224680.1 | K24: 2019-01-02 | L24: 15331 | M24: INE423A01024
A25: ADANIGAS | B25: EQ | C25: 101.25 | D25: 102.55 | E25: 99.4 | F25: 100.45 | G25: 100.85 | H25: 101.85 | I25: 379628 | J25: 38383260.2 | K25: 2019-01-02 | L25: 3395 | M25: INE399L01023
A26: ADANIGREEN | B26: EQ | C26: 41.1 | D26: 42.5 | E26: 40.55 | F26: 41.15 | G26: 40.9 | H26: 41.4 | I26: 288827 | J26: 11996245.2 | K26: 2019-01-02 | L26: 1791 | M26: INE364U01010
A27: ADANIPORTS | B27: EQ | C27: 388 | D27: 388.95 | E27: 378 | F27: 381.3 | G27: 381 | H27: 389 | I27: 1506543 | J27: 578238777.7 | K27: 2019-01-02 | L27: 17571 | M27: INE742F01042
A28: ADANIPOWER | B28: EQ | C28: 50.85 | D28: 51.05 | E28: 50.2 | F28: 50.55 | G28: 50.55 | H28: 50.85 | I28: 6174960 | J28: 312587170.3 | K28: 2019-01-02 | L28: 9529 | M28: INE814H01011
A29: ADANITRANS | B29: EQ | C29: 199.7 | D29: 202 | E29: 198.1 | F29: 200.55 | G29: 200.05 | H29: 200.5 | I29: 67391 | J29: 13524659.85 | K29: 2019-01-02 | L29: 1767 | M29: INE931S01010
A30: ADFFOODS | B30: EQ | C30: 270.7 | D30: 274.5 | E30: 267.2 | F30: 269.55 | G30: 269 | H30: 270.1 | I30: 21749 | J30: 5883240.35 | K30: 2019-01-02 | L30: 1022 | M30: INE982B01019
A31: ADHUNIK | B31: EQ | C31: 2.1 | D31: 2.15 | E31: 2.1 | F31: 2.15 | G31: 2.15 | H31: 2.15 | I31: 46541 | J31: 98487.3 | K31: 2019-01-02 | L31: 50 | M31: INE400H01019
A32: ADHUNIKIND | B32: EQ | C32: 46 | D32: 46 | E32: 44.15 | F32: 45.2 | G32: 45.35 | H32: 46.15 | I32: 5833 | J32: 263137.7 | K32: 2019-01-02 | L32: 91 | M32: INE452L01012
A33: ADLABS | B33: EQ | C33: 11.15 | D33: 11.35 | E33: 10.9 | F33: 11.05 | G33: 11.1 | H33: 11 | I33: 101298 | J33: 1126036.2 | K33: 2019-01-02 | L33: 319 | M33: INE172N01012
A34: ADORWELD | B34: EQ | C34: 378.6 | D34: 384.85 | E34: 368 | F34: 373.75 | G34: 374 | H34: 382.3 | I34: 7910 | J34: 2957562.2 | K34: 2019-01-02 | L34: 617 | M34: INE045A01017
A35: ADROITINFO | B35: EQ | C35: 18.45 | D35: 19.6 | E35: 18.25 | F35: 18.95 | G35: 19.3 | H35: 17.85 | I35: 9946 | J35: 188069.65 | K35: 2019-01-02 | L35: 56 | M35: INE737B01033
A36: ADSL | B36: EQ | C36: 14 | D36: 14.7 | E36: 13.85 | F36: 14.4 | G36: 14.2 | H36: 14 | I36: 9285 | J36: 131928.25 | K36: 2019-01-02 | L36: 87 | M36: INE102I01027
A37: ADVANIHOTR | B37: EQ | C37: 65.95 | D37: 65.95 | E37: 61.95 | F37: 64 | G37: 64 | H37: 64.15 | I37: 17930 | J37: 1130267.35 | K37: 2019-01-02 | L37: 260 | M37: INE199C01026
A38: ADVENZYMES | B38: EQ | C38: 176.85 | D38: 176.85 | E38: 174.2 | F38: 175 | G38: 175.75 | H38: 175.8 | I38: 19928 | J38: 3498335.25 | K38: 2019-01-02 | L38: 618 | M38: INE837H01020
A39: AEGISCHEM | B39: EQ | C39: 203.7 | D39: 204.9 | E39: 199 | F39: 203.95 | G39: 202.55 | H39: 204 | I39: 71509 | J39: 14516722.75 | K39: 2019-01-02 | L39: 2581 | M39: INE208C01025
A40: AGARIND | B40: EQ | C40: 205 | D40: 205 | E40: 182.65 | F40: 188.7 | G40: 189 | H40: 203.7 | I40: 6778 | J40: 1292082.7 | K40: 2019-01-02 | L40: 232 | M40: INE204E01012
A41: AGCNET | B41: EQ | C41: 75.8 | D41: 75.8 | E41: 73 | F41: 73.75 | G41: 74.6 | H41: 73 | I41: 2470 | J41: 182682 | K41: 2019-01-02 | L41: 107 | M41: INE676A01019
A42: AGLSL | B42: EQ | C42: 64 | D42: 66.55 | E42: 62.4 | F42: 65.9 | G42: 66.4 | H42: 64.65 | I42: 5440 | J42: 352192.75 | K42: 2019-01-02 | L42: 210 | M42: INE517U01013
A43: AGRITECH | B43: BE | C43: 58 | D43: 61.9 | E43: 58 | F43: 60.9 | G43: 60.95 | H43: 61.05 | I43: 7044 | J43: 426799 | K43: 2019-01-02 | L43: 101 | M43: INE449G01018
A44: AHLEAST | B44: EQ | C44: 240 | D44: 246 | E44: 239.8 | F44: 244.65 | G44: 246 | H44: 244.55 | I44: 2454 | J44: 590590.7 | K44: 2019-01-02 | L44: 135 | M44: INE926K01017
A45: AHLUCONT | B45: EQ | C45: 324.9 | D45: 328 | E45: 318.1 | F45: 324.25 | G45: 326.5 | H45: 324.8 | I45: 14414 | J45: 4660696.15 | K45: 2019-01-02 | L45: 707 | M45: INE758C01029
A46: AHLWEST | B46: EQ | C46: 303 | D46: 304.5 | E46: 296 | F46: 296.2 | G46: 296 | H46: 303 | I46: 1193 | J46: 358241.2 | K46: 2019-01-02 | L46: 11 | M46: INE915K01010
A47: AIAENG | B47: EQ | C47: 1670.1 | D47: 1673.85 | E47: 1629.1 | F47: 1652.55 | G47: 1638.05 | H47: 1674.4 | I47: 13910 | J47: 22938820.2 | K47: 2019-01-02 | L47: 1663 | M47: INE212H01026
A48: AIFL | B48: EQ | C48: 26.7 | D48: 26.75 | E48: 25.6 | F48: 26.75 | G48: 26.75 | H48: 25.5 | I48: 491649 | J48: 12933600.2 | K48: 2019-01-02 | L48: 928 | M48: INE428O01016
A49: AIONJSW | B49: EQ | C49: 40.95 | D49: 40.95 | E49: 39.55 | F49: 39.85 | G49: 39.8 | H49: 40.7 | I49: 40074 | J49: 1609817.3 | K49: 2019-01-02 | L49: 244 | M49: INE743C01021
A50: AJANTPHARM | B50: EQ | C50: 1178.5 | D50: 1191.6 | E50: 1154.15 | F50: 1164.35 | G50: 1159.15 | H50: 1181.7 | I50: 178595 | J50: 208800509.4 | K50: 2019-01-02 | L50: 7089 | M50: INE031B01049
A51: AJMERA | B51: EQ | C51: 170.75 | D51: 175 | E51: 166.6 | F51: 167.95 | G51: 167.55 | H51: 172.1 | I51: 58795 | J51: 10040473.9 | K51: 2019-01-02 | L51: 1974 | M51: INE298G01027
A52: AKSHARCHEM | B52: EQ | C52: 440.1 | D52: 446.75 | E52: 438.5 | F52: 441 | G52: 438.5 | H52: 444.9 | I52: 1137 | J52: 502522.25 | K52: 2019-01-02 | L52: 68 | M52: INE542B01011
A53: AKSHOPTFBR | B53: EQ | C53: 24.55 | D53: 26.1 | E53: 24.4 | F53: 25.45 | G53: 25.35 | H53: 24.6 | I53: 1786399 | J53: 45377671.65 | K53: 2019-01-02 | L53: 5678 | M53: INE523B01011
A54: AKZOINDIA | B54: EQ | C54: 1764 | D54: 1825 | E54: 1743.6 | F54: 1769.4 | G54: 1774 | H54: 1769.55 | I54: 19951 | J54: 35679943.85 | K54: 2019-01-02 | L54: 3452 | M54: INE133A01011
A55: ALANKIT | B55: EQ | C55: 25.7 | D55: 25.7 | E55: 24.95 | F55: 25.1 | G55: 25.25 | H55: 25.6 | I55: 251315 | J55: 6327832.7 | K55: 2019-01-02 | L55: 1061 | M55: INE914E01040
A56: ALBERTDAVD | B56: EQ | C56: 419.8 | D56: 421.9 | E56: 410.05 | F56: 417.55 | G56: 414.1 | H56: 414.5 | I56: 5854 | J56: 2441998 | K56: 2019-01-02 | L56: 407 | M56: INE155C01010
A57: ALBK | B57: EQ | C57: 46.7 | D57: 47 | E57: 44.85 | F57: 45 | G57: 45 | H57: 46.7 | I57: 4612405 | J57: 211296681.3 | K57: 2019-01-02 | L57: 10514 | M57: INE428A01015
A58: ALCHEM | B58: BE | C58: 2.8 | D58: 2.8 | E58: 2.8 | F58: 2.8 | G58: 2.8 | H58: 2.7 | I58: 3535 | J58: 9898 | K58: 2019-01-02 | L58: 14 | M58: INE964B01033
A59: ALEMBICLTD | B59: EQ | C59: 47.5 | D59: 47.5 | E59: 46.5 | F59: 46.7 | G59: 46.75 | H59: 47.5 | I59: 145148 | J59: 6810537.3 | K59: 2019-01-02 | L59: 992 | M59: INE426A01027
A60: ALICON | B60: EQ | C60: 585.1 | D60: 595 | E60: 569.1 | F60: 592.6 | G60: 594 | H60: 587.6 | I60: 4373 | J60: 2568972.65 | K60: 2019-01-02 | L60: 214 | M60: INE062D01024
A61: ALKALI | B61: EQ | C61: 54.5 | D61: 55.8 | E61: 54.1 | F61: 54.45 | G61: 54.55 | H61: 55.2 | I61: 3942 | J61: 214871.95 | K61: 2019-01-02 | L61: 62 | M61: INE773I01017
A62: ALKEM | B62: EQ | C62: 1925 | D62: 1975 | E62: 1925 | F62: 1951.05 | G62: 1950 | H62: 1940.3 | I62: 33809 | J62: 65983881.4 | K62: 2019-01-02 | L62: 4311 | M62: INE540L01014
A63: ALKYLAMINE | B63: EQ | C63: 789.9 | D63: 789.9 | E63: 770 | F63: 783.85 | G63: 777 | H63: 773 | I63: 4606 | J63: 3586965.55 | K63: 2019-01-02 | L63: 249 | M63: INE150B01021
A64: ALLCARGO | B64: EQ | C64: 107.95 | D64: 109.25 | E64: 107.25 | F64: 108.6 | G64: 108.35 | H64: 107.75 | I64: 86730 | J64: 9402623.05 | K64: 2019-01-02 | L64: 694 | M64: INE418H01029
A65: ALLSEC | B65: EQ | C65: 203.35 | D65: 203.55 | E65: 196.55 | F65: 200.75 | G65: 201.7 | H65: 201.9 | I65: 5481 | J65: 1104786.3 | K65: 2019-01-02 | L65: 374 | M65: INE835G01018
A66: ALMONDZ | B66: EQ | C66: 20.75 | D66: 23.5 | E66: 20.75 | F66: 23.15 | G66: 23.45 | H66: 21.7 | I66: 8741 | J66: 195606.75 | K66: 2019-01-02 | L66: 73 | M66: INE326B01027
A67: ALOKTEXT | B67: EQ | C67: 4.2 | D67: 4.25 | E67: 4 | F67: 4.05 | G67: 4.15 | H67: 4.05 | I67: 6300844 | J67: 26176610.9 | K67: 2019-01-02 | L67: 2300 | M67: INE270A01011
A68: ALPA | B68: EQ | C68: 25.15 | D68: 26.65 | E68: 24.6 | F68: 25.05 | G68: 25.05 | H68: 25.8 | I68: 3925 | J68: 98791.75 | K68: 2019-01-02 | L68: 84 | M68: INE385I01010
A69: ALPHAGEO | B69: EQ | C69: 479.95 | D69: 483.55 | E69: 469.3 | F69: 475.05 | G69: 477 | H69: 478.55 | I69: 1650 | J69: 785883.75 | K69: 2019-01-02 | L69: 331 | M69: INE137C01018
A70: AMARAJABAT | B70: EQ | C70: 740 | D70: 741.1 | E70: 730.8 | F70: 733.55 | G70: 733.5 | H70: 738.8 | I70: 265053 | J70: 194743947.2 | K70: 2019-01-02 | L70: 11000 | M70: INE885A01032
A71: AMBER | B71: EQ | C71: 900 | D71: 911.5 | E71: 892.3 | F71: 899.95 | G71: 898 | H71: 909 | I71: 1778 | J71: 1606507.5 | K71: 2019-01-02 | L71: 215 | M71: INE371P01015
A72: AMBIKCO | B72: EQ | C72: 1160 | D72: 1160 | E72: 1155 | F72: 1159.25 | G72: 1159.5 | H72: 1159.1 | I72: 1039 | J72: 1204426.85 | K72: 2019-01-02 | L72: 82 | M72: INE540G01014
A73: AMBUJACEM | B73: EQ | C73: 222.9 | D73: 223.8 | E73: 218.05 | F73: 218.95 | G73: 218.25 | H73: 222.9 | I73: 1826162 | J73: 403613182.8 | K73: 2019-01-02 | L73: 15208 | M73: INE079A01024
A74: AMDIND | B74: EQ | C74: 21.45 | D74: 22.55 | E74: 21.4 | F74: 21.95 | G74: 21.95 | H74: 21.45 | I74: 3707 | J74: 81432.1 | K74: 2019-01-02 | L74: 43 | M74: INE005I01014
A75: AMJLAND | B75: EQ | C75: 20.45 | D75: 24.45 | E75: 20.45 | F75: 24.35 | G75: 24.45 | H75: 20.4 | I75: 229079 | J75: 5525438.25 | K75: 2019-01-02 | L75: 1161 | M75: INE606A01024
A76: AMRUTANJAN | B76: EQ | C76: 282 | D76: 288.7 | E76: 281 | F76: 282.55 | G76: 284 | H76: 285.55 | I76: 51075 | J76: 14494987.85 | K76: 2019-01-02 | L76: 1827 | M76: INE098F01031
A77: ANANTRAJ | B77: EQ | C77: 36.8 | D77: 37.3 | E77: 33.65 | F77: 35.15 | G77: 34 | H77: 36.8 | I77: 774819 | J77: 27652264.3 | K77: 2019-01-02 | L77: 1921 | M77: INE242C01024
A78: ANDHRABANK | B78: EQ | C78: 29.65 | D78: 30.05 | E78: 29.55 | F78: 29.65 | G78: 29.65 | H78: 29.75 | I78: 1086302 | J78: 32332643.8 | K78: 2019-01-02 | L78: 2457 | M78: INE434A01013
A79: ANDHRACEMT | B79: EQ | C79: 6.1 | D79: 6.1 | E79: 5.85 | F79: 5.9 | G79: 5.9 | H79: 5.95 | I79: 138809 | J79: 828482.75 | K79: 2019-01-02 | L79: 127 | M79: INE666E01012
A80: ANDHRSUGAR | B80: EQ | C80: 339 | D80: 339.5 | E80: 332.05 | F80: 332.95 | G80: 332.15 | H80: 337.95 | I80: 5749 | J80: 1930107.6 | K80: 2019-01-02 | L80: 417 | M80: INE715B01013
A81: ANGIND | B81: BE | C81: 1.35 | D81: 1.4 | E81: 1.3 | F81: 1.3 | G81: 1.3 | H81: 1.35 | I81: 1177 | J81: 1581.95 | K81: 2019-01-02 | L81: 14 | M81: INE017D01010
A82: ANIKINDS | B82: EQ | C82: 23.8 | D82: 23.8 | E82: 23.1 | F82: 23.7 | G82: 23.7 | H82: 23.15 | I82: 354 | J82: 8308.7 | K82: 2019-01-02 | L82: 11 | M82: INE087B01017
A83: ANKITMETAL | B83: BE | C83: 0.5 | D83: 0.5 | E83: 0.45 | F83: 0.5 | G83: 0.5 | H83: 0.5 | I83: 31584 | J83: 14492.05 | K83: 2019-01-02 | L83: 16 | M83: INE106I01010
A84: ANSALAPI | B84: EQ | C84: 11.9 | D84: 11.95 | E84: 10.55 | F84: 11.3 | G84: 11.35 | H84: 11.8 | I84: 87087 | J84: 974148.9 | K84: 2019-01-02 | L84: 351 | M84: INE436A01026
A85: ANSALHSG | B85: EQ | C85: 11.15 | D85: 11.4 | E85: 10.8 | F85: 10.85 | G85: 10.8 | H85: 11.35 | I85: 24367 | J85: 271037.65 | K85: 2019-01-02 | L85: 102 | M85: INE880B01015
A86: ANTGRAPHIC | B86: BE | C86: 0.45 | D86: 0.5 | E86: 0.45 | F86: 0.5 | G86: 0.5 | H86: 0.5 | I86: 22888 | J86: 10850.95 | K86: 2019-01-02 | L86: 20 | M86: INE414B01021
A87: APARINDS | B87: EQ | C87: 672.5 | D87: 680.95 | E87: 660.1 | F87: 663.15 | G87: 661.05 | H87: 665.6 | I87: 3281 | J87: 2196974.25 | K87: 2019-01-02 | L87: 470 | M87: INE372A01015
A88: APCL | B88: EQ | C88: 131.95 | D88: 134.3 | E88: 130.55 | F88: 132.35 | G88: 131.55 | H88: 130.8 | I88: 386 | J88: 51140.1 | K88: 2019-01-02 | L88: 21 | M88: INE071F01012
A89: APCOTEXIND | B89: EQ | C89: 524.15 | D89: 527 | E89: 519.45 | F89: 524.5 | G89: 523.65 | H89: 526.35 | I89: 1611 | J89: 843287.15 | K89: 2019-01-02 | L89: 121 | M89: INE116A01024
A90: APEX | B90: EQ | C90: 366 | D90: 369.9 | E90: 357 | F90: 360.4 | G90: 358 | H90: 367.35 | I90: 31399 | J90: 11432889.5 | K90: 2019-01-02 | L90: 1944 | M90: INE346W01013
A91: APLAPOLLO | B91: EQ | C91: 1171.85 | D91: 1229 | E91: 1160.05 | F91: 1208.85 | G91: 1192 | H91: 1172.8 | I91: 56412 | J91: 68373709.6 | K91: 2019-01-02 | L91: 3860 | M91: INE702C01019
A92: APLLTD | B92: EQ | C92: 589 | D92: 589 | E92: 577.05 | F92: 580.45 | G92: 580 | H92: 586.85 | I92: 15441 | J92: 8978374.45 | K92: 2019-01-02 | L92: 1025 | M92: INE901L01018
A93: APOLLO | B93: EQ | C93: 126.85 | D93: 126.85 | E93: 124 | F93: 124.85 | G93: 125.6 | H93: 125.4 | I93: 12864 | J93: 1613430.9 | K93: 2019-01-02 | L93: 379 | M93: INE713T01010
A94: APOLLOHOSP | B94: EQ | C94: 1268 | D94: 1288 | E94: 1251.8 | F94: 1258.75 | G94: 1259 | H94: 1266.4 | I94: 658775 | J94: 839687897.8 | K94: 2019-01-02 | L94: 24538 | M94: INE437A01024
A95: APOLLOTYRE | B95: EQ | C95: 233 | D95: 235.25 | E95: 229.25 | F95: 230.85 | G95: 230.2 | H95: 234.4 | I95: 1983510 | J95: 460679311.2 | K95: 2019-01-02 | L95: 21219 | M95: INE438A01022
A96: APOLSINHOT | B96: EQ | C96: 1074.95 | D96: 1092 | E96: 1026.1 | F96: 1069.7 | G96: 1077.8 | H96: 1069.7 | I96: 4987 | J96: 5332781.75 | K96: 2019-01-02 | L96: 741 | M96: INE451F01024
A97: APTECHT | B97: EQ | C97: 191 | D97: 195.85 | E97: 185.2 | F97: 186.75 | G97: 187.15 | H97: 191.8 | I97: 339784 | J97: 64984092.5 | K97: 2019-01-02 | L97: 5588 | M97: INE266F01018
A98: ARCHIDPLY | B98: EQ | C98: 43.5 | D98: 43.5 | E98: 41 | F98: 41.2 | G98: 41.1 | H98: 42.4 | I98: 11126 | J98: 464755.7 | K98: 2019-01-02 | L98: 233 | M98: INE877I01016
A99: ARCHIES | B99: EQ | C99: 30.5 | D99: 30.5 | E99: 29.55 | F99: 29.75 | G99: 29.6 | H99: 30.5 | I99: 97848 | J99: 2917706.05 | K99: 2019-01-02 | L99: 591 | M99: INE731A01020
A100: ARCOTECH | B100: EQ | C100: 7.35 | D100: 7.7 | E100: 7.1 | F100: 7.45 | G100: 7.4 | H100: 7.35 | I100: 52939 | J100: 391835.35 | K100: 2019-01-02 | L100: 156 | M100: INE574I01035
A101: ARIES | B101: EQ | C101: 101.3 | D101: 102.05 | E101: 99.4 | F101: 99.9 | G101: 99.9 | H101: 101.5 | I101: 18652 | J101: 1879074.6 | K101: 2019-01-02 | L101: 387 | M101: INE298I01015
A102: ARIHANT | B102: EQ | C102: 31.6 | D102: 32.8 | E102: 30.75 | F102: 31.5 | G102: 31.5 | H102: 32.15 | I102: 3363 | J102: 106838.8 | K102: 2019-01-02 | L102: 24 | M102: INE413D01011
A103: ARIHANTSUP | B103: EQ | C103: 59 | D103: 59.1 | E103: 57 | F103: 58.4 | G103: 59.05 | H103: 58.55 | I103: 13059 | J103: 763833.55 | K103: 2019-01-02 | L103: 339 | M103: INE643K01018
A104: ARMANFIN | B104: EQ | C104: 394.95 | D104: 398.95 | E104: 390.05 | F104: 390.05 | G104: 390.05 | H104: 397.3 | I104: 584 | J104: 230655.9 | K104: 2019-01-02 | L104: 27 | M104: INE109C01017
A105: AROGRANITE | B105: EQ | C105: 52.8 | D105: 53.5 | E105: 51.7 | F105: 52.1 | G105: 51.7 | H105: 52.1 | I105: 7094 | J105: 371515.4 | K105: 2019-01-02 | L105: 100 | M105: INE210C01013
A106: ARROWGREEN | B106: EQ | C106: 114 | D106: 116.7 | E106: 111.85 | F106: 112.3 | G106: 111.85 | H106: 117.7 | I106: 25262 | J106: 2875779.25 | K106: 2019-01-02 | L106: 382 | M106: INE570D01018
A107: ARROWTEX | B107: EQ | C107: 22.45 | D107: 22.85 | E107: 22 | F107: 22.2 | G107: 22.25 | H107: 24 | I107: 122588 | J107: 2740326.45 | K107: 2019-01-02 | L107: 731 | M107: INE933J01015
A108: ARSHIYA | B108: EQ | C108: 32.4 | D108: 34.85 | E108: 32 | F108: 32.2 | G108: 32.05 | H108: 32.8 | I108: 152699 | J108: 4998563.75 | K108: 2019-01-02 | L108: 1008 | M108: INE968D01022
A109: ARSSINFRA | B109: BE | C109: 37.3 | D109: 37.3 | E109: 34 | F109: 35.95 | G109: 36.25 | H109: 35.75 | I109: 40372 | J109: 1450828.25 | K109: 2019-01-02 | L109: 133 | M109: INE267I01010
A110: ARVIND | B110: EQ | C110: 98 | D110: 98.65 | E110: 96.05 | F110: 96.3 | G110: 96.35 | H110: 98.4 | I110: 1421931 | J110: 138349569.7 | K110: 2019-01-02 | L110: 9845 | M110: INE034A01011
A111: ARVSMART | B111: EQ | C111: 125.95 | D111: 127.4 | E111: 123.45 | F111: 124.05 | G111: 124 | H111: 128.8 | I111: 22829 | J111: 2864597.15 | K111: 2019-01-02 | L111: 590 | M111: INE034S01021
A112: ASAHIINDIA | B112: EQ | C112: 264.4 | D112: 272.8 | E112: 257 | F112: 258.75 | G112: 257.25 | H112: 263.5 | I112: 22791 | J112: 6031367.55 | K112: 2019-01-02 | L112: 860 | M112: INE439A01020
A113: ASAHISONG | B113: EQ | C113: 214.05 | D113: 216 | E113: 212.55 | F113: 214 | G113: 214 | H113: 213.55 | I113: 928 | J113: 198735.35 | K113: 2019-01-02 | L113: 72 | M113: INE228I01012
A114: ASAL | B114: EQ | C114: 76 | D114: 80.2 | E114: 74.15 | F114: 79.1 | G114: 78.55 | H114: 76.8 | I114: 42263 | J114: 3294363.1 | K114: 2019-01-02 | L114: 682 | M114: INE900C01027
A115: ASHAPURMIN | B115: EQ | C115: 31 | D115: 31.45 | E115: 30.6 | F115: 30.65 | G115: 30.6 | H115: 31.25 | I115: 20560 | J115: 632184.1 | K115: 2019-01-02 | L115: 175 | M115: INE348A01023
A116: ASHIANA | B116: EQ | C116: 116.55 | D116: 119.45 | E116: 116.55 | F116: 118.85 | G116: 119.45 | H116: 118.45 | I116: 13551 | J116: 1599060.85 | K116: 2019-01-02 | L116: 623 | M116: INE365D01021
A117: ASHIMASYN | B117: EQ | C117: 16.7 | D117: 17.35 | E117: 16.6 | F117: 16.85 | G117: 16.85 | H117: 16.75 | I117: 103403 | J117: 1759925.4 | K117: 2019-01-02 | L117: 325 | M117: INE440A01010
A118: ASHOKA | B118: EQ | C118: 124.95 | D118: 125.85 | E118: 122.4 | F118: 123.4 | G118: 122.7 | H118: 124.95 | I118: 51243 | J118: 6352502.25 | K118: 2019-01-02 | L118: 1193 | M118: INE442H01029
A119: ASHOKLEY | B119: EQ | C119: 102.05 | D119: 102.3 | E119: 99 | F119: 99.95 | G119: 100.05 | H119: 102.5 | I119: 40123864 | J119: 4024918432 | K119: 2019-01-02 | L119: 145318 | M119: INE208A01029
A120: ASIANHOTNR | B120: EQ | C120: 147.15 | D120: 149.75 | E120: 146 | F120: 146.75 | G120: 147.95 | H120: 146.9 | I120: 864 | J120: 126715.9 | K120: 2019-01-02 | L120: 25 | M120: INE363A01022
A121: ASIANPAINT | B121: EQ | C121: 1367 | D121: 1386.85 | E121: 1361.6 | F121: 1383.3 | G121: 1380.05 | H121: 1371.55 | I121: 1233780 | J121: 1698144943 | K121: 2019-01-02 | L121: 42748 | M121: INE021A01026
A122: ASIANTILES | B122: EQ | C122: 175.5 | D122: 175.5 | E122: 165.9 | F122: 167 | G122: 167 | H122: 174.3 | I122: 186247 | J122: 31425343.55 | K122: 2019-01-02 | L122: 4448 | M122: INE022I01019
A123: ASPINWALL | B123: EQ | C123: 171 | D123: 175.95 | E123: 171 | F123: 175 | G123: 175.95 | H123: 169.2 | I123: 57 | J123: 9952.05 | K123: 2019-01-02 | L123: 6 | M123: INE991I01015
A124: ASSAMCO | B124: BE | C124: 2.2 | D124: 2.2 | E124: 2.1 | F124: 2.15 | G124: 2.15 | H124: 2.15 | I124: 76487 | J124: 162979 | K124: 2019-01-02 | L124: 68 | M124: INE442A01024
A125: ASTEC | B125: EQ | C125: 529.8 | D125: 529.95 | E125: 526 | F125: 527.95 | G125: 528.9 | H125: 529.1 | I125: 3747 | J125: 1976221.9 | K125: 2019-01-02 | L125: 229 | M125: INE563J01010
A126: ASTERDM | B126: EQ | C126: 161.5 | D126: 161.5 | E126: 154.4 | F126: 160 | G126: 160 | H126: 161.55 | I126: 305985 | J126: 48737026.75 | K126: 2019-01-02 | L126: 3096 | M126: INE914M01019
A127: ASTRAL | B127: EQ | C127: 1131.9 | D127: 1148.9 | E127: 1121.3 | F127: 1141.05 | G127: 1139.5 | H127: 1128.8 | I127: 37352 | J127: 42438105.95 | K127: 2019-01-02 | L127: 7351 | M127: INE006I01046
A128: ASTRAMICRO | B128: EQ | C128: 78.85 | D128: 80.7 | E128: 78.05 | F128: 78.9 | G128: 78.55 | H128: 78.8 | I128: 253429 | J128: 20081990.3 | K128: 2019-01-02 | L128: 10148 | M128: INE386C01029
A129: ASTRAZEN | B129: EQ | C129: 1457.8 | D129: 1461.95 | E129: 1413.85 | F129: 1418.75 | G129: 1423 | H129: 1443.6 | I129: 6122 | J129: 8731307 | K129: 2019-01-02 | L129: 522 | M129: INE203A01020
A130: ASTRON | B130: EQ | C130: 109.7 | D130: 111.35 | E130: 108.65 | F130: 109.8 | G130: 109.7 | H130: 108.6 | I130: 125081 | J130: 13748322 | K130: 2019-01-02 | L130: 1590 | M130: INE646X01014
A131: ATFL | B131: EQ | C131: 607.05 | D131: 623.5 | E131: 594.3 | F131: 598.4 | G131: 595.05 | H131: 607.2 | I131: 10278 | J131: 6241612.1 | K131: 2019-01-02 | L131: 636 | M131: INE209A01019
A132: ATLANTA | B132: EQ | C132: 22.8 | D132: 23.6 | E132: 22.6 | F132: 23.05 | G132: 23.25 | H132: 22.85 | I132: 30910 | J132: 714153.6 | K132: 2019-01-02 | L132: 473 | M132: INE285H01022
A133: ATLASCYCLE | B133: BE | C133: 76.6 | D133: 78.5 | E133: 76.6 | F133: 78.5 | G133: 78.5 | H133: 77.7 | I133: 1939 | J133: 151421.6 | K133: 2019-01-02 | L133: 41 | M133: INE446A01025
A134: ATUL | B134: EQ | C134: 3450 | D134: 3485 | E134: 3437.3 | F134: 3463.1 | G134: 3452.05 | H134: 3443.2 | I134: 8619 | J134: 29889847.25 | K134: 2019-01-02 | L134: 2997 | M134: INE100A01010
A135: ATULAUTO | B135: EQ | C135: 356.8 | D135: 369.7 | E135: 351.2 | F135: 357.35 | G135: 353 | H135: 349 | I135: 1098606 | J135: 398356496.1 | K135: 2019-01-02 | L135: 25852 | M135: INE951D01028
A136: AUBANK | B136: EQ | C136: 615 | D136: 624.65 | E136: 611.95 | F136: 620.25 | G136: 622.5 | H136: 621.95 | I136: 166148 | J136: 102823409.9 | K136: 2019-01-02 | L136: 20610 | M136: INE949L01017
A137: AURIONPRO | B137: EQ | C137: 129.75 | D137: 132.35 | E137: 127.4 | F137: 129.65 | G137: 129.25 | H137: 128.9 | I137: 68947 | J137: 8961140.6 | K137: 2019-01-02 | L137: 356 | M137: INE132H01018
A138: AUROPHARMA | B138: EQ | C138: 729 | D138: 732.4 | E138: 719 | F138: 724.35 | G138: 722.1 | H138: 733.15 | I138: 1845752 | J138: 1338782311 | K138: 2019-01-02 | L138: 49869 | M138: INE406A01037
A139: AUSOMENT | B139: EQ | C139: 41.2 | D139: 41.75 | E139: 39.55 | F139: 40.15 | G139: 40.15 | H139: 41.35 | I139: 3224 | J139: 129858.3 | K139: 2019-01-02 | L139: 96 | M139: INE218C01016
A140: AUTOAXLES | B140: EQ | C140: 1413 | D140: 1413.7 | E140: 1360 | F140: 1369.4 | G140: 1363 | H140: 1406.2 | I140: 9711 | J140: 13469552.5 | K140: 2019-01-02 | L140: 1495 | M140: INE449A01011
A141: AUTOIND | B141: EQ | C141: 68.8 | D141: 73 | E141: 67.55 | F141: 70.6 | G141: 70.3 | H141: 69.45 | I141: 282608 | J141: 19910150.7 | K141: 2019-01-02 | L141: 3107 | M141: INE718H01014
A142: AUTOLITIND | B142: EQ | C142: 42.75 | D142: 42.9 | E142: 41.1 | F142: 41.2 | G142: 41.1 | H142: 43.4 | I142: 14828 | J142: 625660.05 | K142: 2019-01-02 | L142: 276 | M142: INE448A01013
A143: AVADHSUGAR | B143: EQ | C143: 371 | D143: 381.4 | E143: 370.3 | F143: 375.2 | G143: 375.35 | H143: 374.35 | I143: 17236 | J143: 6485822.7 | K143: 2019-01-02 | L143: 1066 | M143: INE349W01017
A144: AVANTIFEED | B144: EQ | C144: 384.15 | D144: 387.35 | E144: 376.35 | F144: 378.4 | G144: 377.95 | H144: 387.9 | I144: 159652 | J144: 60969747.9 | K144: 2019-01-02 | L144: 5172 | M144: INE871C01038
A145: AVTNPL | B145: EQ | C145: 27 | D145: 27.3 | E145: 26.8 | F145: 26.9 | G145: 26.8 | H145: 27.05 | I145: 10697 | J145: 288646.2 | K145: 2019-01-02 | L145: 87 | M145: INE488D01021
A146: AXISBANK | B146: EQ | C146: 623 | D146: 628.5 | E146: 617.5 | F146: 620.05 | G146: 619.45 | H146: 627.3 | I146: 12386281 | J146: 7720545780 | K146: 2019-01-02 | L146: 170903 | M146: INE238A01034
A147: AXISCADES | B147: EQ | C147: 83 | D147: 83.5 | E147: 82.1 | F147: 82.5 | G147: 82.1 | H147: 83.45 | I147: 17615 | J147: 1457566.7 | K147: 2019-01-02 | L147: 302 | M147: INE555B01013
A148: AXISGOLD | B148: EQ | C148: 2756 | D148: 2807 | E148: 2756 | F148: 2789 | G148: 2789 | H148: 2772.65 | I148: 111 | J148: 308557.95 | K148: 2019-01-02 | L148: 32 | M148: INF846K01347
A149: AXISNIFTY | B149: EQ | C149: 1111.7 | D149: 1111.7 | E149: 1104.97 | F149: 1104.97 | G149: 1104.97 | H149: 1108.14 | I149: 6 | J149: 6660.01 | K149: 2019-01-02 | L149: 4 | M149: INF846K01ZL0
A150: AYMSYNTEX | B150: EQ | C150: 43.2 | D150: 43.95 | E150: 40.5 | F150: 40.8 | G150: 40.75 | H150: 42.25 | I150: 39472 | J150: 1611835.7 | K150: 2019-01-02 | L150: 130 | M150: INE193B01039
A151: BAFNAPHARM | B151: EQ | C151: 11.2 | D151: 12 | E151: 11.2 | F151: 11.65 | G151: 11.7 | H151: 11.35 | I151: 14755 | J151: 173310.4 | K151: 2019-01-02 | L151: 147 | M151: INE878I01014
A152: BAGFILMS | B152: EQ | C152: 4.9 | D152: 5 | E152: 4.85 | F152: 4.9 | G152: 4.95 | H152: 4.95 | I152: 66516 | J152: 327212.65 | K152: 2019-01-02 | L152: 162 | M152: INE116D01028
A153: BAJAJ-AUTO | B153: EQ | C153: 2720 | D153: 2747.25 | E153: 2677 | F153: 2692 | G153: 2685 | H153: 2726.65 | I153: 599274 | J153: 1619851004 | K153: 2019-01-02 | L153: 32762 | M153: INE917I01010
A154: BAJAJCORP | B154: EQ | C154: 376.1 | D154: 380 | E154: 375.15 | F154: 378.05 | G154: 379.5 | H154: 373.4 | I154: 54079 | J154: 20444688.05 | K154: 2019-01-02 | L154: 2254 | M154: INE933K01021
A155: BAJAJELEC | B155: EQ | C155: 510.05 | D155: 511.8 | E155: 502.15 | F155: 506.35 | G155: 509.9 | H155: 513.55 | I155: 145547 | J155: 73987666.85 | K155: 2019-01-02 | L155: 7718 | M155: INE193E01025
A156: BAJAJFINSV | B156: EQ | C156: 6475 | D156: 6526 | E156: 6360 | F156: 6384 | G156: 6404 | H156: 6521.95 | I156: 221274 | J156: 1425010130 | K156: 2019-01-02 | L156: 21556 | M156: INE918I01018
A157: BAJAJHIND | B157: EQ | C157: 9.05 | D157: 9.1 | E157: 8.6 | F157: 8.9 | G157: 8.9 | H157: 9 | I157: 2715501 | J157: 24189834.15 | K157: 2019-01-02 | L157: 2688 | M157: INE306A01021
A158: BAJAJHLDNG | B158: EQ | C158: 2930.15 | D158: 2968 | E158: 2925 | F158: 2950.1 | G158: 2958 | H158: 2949.95 | I158: 15693 | J158: 46227922.4 | K158: 2019-01-02 | L158: 1312 | M158: INE118A01012
A159: BAJFINANCE | B159: EQ | C159: 2635.1 | D159: 2662 | E159: 2601.9 | F159: 2614.05 | G159: 2614.5 | H159: 2656.85 | I159: 1304915 | J159: 3436123168 | K159: 2019-01-02 | L159: 62076 | M159: INE296A01024
A160: BALAJITELE | B160: EQ | C160: 90.2 | D160: 91.9 | E160: 89 | F160: 89.9 | G160: 89.95 | H160: 90.1 | I160: 45836 | J160: 4153958.75 | K160: 2019-01-02 | L160: 1220 | M160: INE794B01026
A161: BALAMINES | B161: EQ | C161: 461.95 | D161: 461.95 | E161: 451.1 | F161: 454.35 | G161: 452 | H161: 458.05 | I161: 6094 | J161: 2766427.45 | K161: 2019-01-02 | L161: 443 | M161: INE050E01027
A162: BALKRISHNA | B162: EQ | C162: 52.6 | D162: 52.65 | E162: 50 | F162: 50.55 | G162: 50.75 | H162: 50.6 | I162: 3866 | J162: 196248.85 | K162: 2019-01-02 | L162: 66 | M162: INE875R01011
A163: BALKRISIND | B163: EQ | C163: 928 | D163: 932.75 | E163: 908.45 | F163: 912.3 | G163: 911.8 | H163: 928.85 | I163: 534985 | J163: 491864230.9 | K163: 2019-01-02 | L163: 15139 | M163: INE787D01026
A164: BALLARPUR | B164: EQ | C164: 5.45 | D164: 5.65 | E164: 5.4 | F164: 5.5 | G164: 5.55 | H164: 5.45 | I164: 377682 | J164: 2085634.95 | K164: 2019-01-02 | L164: 702 | M164: INE294A01037
A165: BALMLAWRIE | B165: EQ | C165: 200.65 | D165: 203.85 | E165: 198.45 | F165: 198.75 | G165: 198.5 | H165: 202.7 | I165: 29411 | J165: 5895039.8 | K165: 2019-01-02 | L165: 1142 | M165: INE164A01016
A166: BALPHARMA | B166: EQ | C166: 79.15 | D166: 81.4 | E166: 79.1 | F166: 79.2 | G166: 79.25 | H166: 79.05 | I166: 24309 | J166: 1944641.15 | K166: 2019-01-02 | L166: 457 | M166: INE083D01012
A167: BALRAMCHIN | B167: EQ | C167: 102.35 | D167: 104.9 | E167: 101.85 | F167: 104.5 | G167: 104.45 | H167: 103.4 | I167: 2216466 | J167: 229929417.8 | K167: 2019-01-02 | L167: 10363 | M167: INE119A01028
A168: BANARBEADS | B168: EQ | C168: 47.2 | D168: 47.8 | E168: 46.55 | F168: 47 | G168: 46.55 | H168: 48.5 | I168: 593 | J168: 28047.05 | K168: 2019-01-02 | L168: 17 | M168: INE655B01011
A169: BANARISUG | B169: EQ | C169: 1502.75 | D169: 1565 | E169: 1480 | F169: 1513.95 | G169: 1515.15 | H169: 1502.75 | I169: 792 | J169: 1203177.85 | K169: 2019-01-02 | L169: 217 | M169: INE459A01010
A170: BANCOINDIA | B170: EQ | C170: 184.75 | D170: 185.7 | E170: 182.05 | F170: 182.6 | G170: 182.25 | H170: 184.75 | I170: 28093 | J170: 5167004.65 | K170: 2019-01-02 | L170: 688 | M170: INE213C01025
A171: BANDHANBNK | B171: EQ | C171: 553 | D171: 563.7 | E171: 549.6 | F171: 552.15 | G171: 551.4 | H171: 556.7 | I171: 834846 | J171: 464931857.1 | K171: 2019-01-02 | L171: 32119 | M171: INE545U01014
A172: BANG | B172: EQ | C172: 58.5 | D172: 60.65 | E172: 56.1 | F172: 57.25 | G172: 56.65 | H172: 58.45 | I172: 159358 | J172: 9261966.1 | K172: 2019-01-02 | L172: 1238 | M172: INE863I01016
A173: BANKBARODA | B173: EQ | C173: 123.5 | D173: 124.45 | E173: 118.2 | F173: 119.35 | G173: 119.55 | H173: 123.3 | I173: 25568039 | J173: 3100092094 | K173: 2019-01-02 | L173: 92961 | M173: INE028A01039
A174: BANKBEES | B174: EQ | C174: 2793 | D174: 2794.61 | E174: 2763 | F174: 2771.96 | G174: 2773.49 | H174: 2793.9 | I174: 7227 | J174: 20153668.93 | K174: 2019-01-02 | L174: 533 | M174: INF732E01078
A175: BANKINDIA | B175: EQ | C175: 106.25 | D175: 107.9 | E175: 103.8 | F175: 104.8 | G175: 104.95 | H175: 106.35 | I175: 16984848 | J175: 1792823793 | K175: 2019-01-02 | L175: 46563 | M175: INE084A01016
A176: BANSWRAS | B176: EQ | C176: 84.9 | D176: 89 | E176: 82.3 | F176: 82.5 | G176: 82.3 | H176: 83.5 | I176: 5912 | J176: 497965.2 | K176: 2019-01-02 | L176: 118 | M176: INE629D01012
A177: BARTRONICS | B177: EQ | C177: 7.25 | D177: 7.8 | E177: 7 | F177: 7.25 | G177: 7.25 | H177: 7.25 | I177: 30906 | J177: 223393.95 | K177: 2019-01-02 | L177: 78 | M177: INE855F01034
A178: BASF | B178: EQ | C178: 1547.35 | D178: 1549.75 | E178: 1525 | F178: 1534.4 | G178: 1530 | H178: 1550.3 | I178: 7273 | J178: 11178517.5 | K178: 2019-01-02 | L178: 790 | M178: INE373A01013
A179: BASML | B179: EQ | C179: 210.05 | D179: 215 | E179: 209 | F179: 210 | G179: 209 | H179: 215 | I179: 266 | J179: 55900.65 | K179: 2019-01-02 | L179: 21 | M179: INE186H01014
A180: BATAINDIA | B180: EQ | C180: 1120.4 | D180: 1135 | E180: 1108 | F180: 1112.05 | G180: 1111.6 | H180: 1126.05 | I180: 493851 | J180: 553434746.5 | K180: 2019-01-02 | L180: 12821 | M180: INE176A01028
A181: BAYERCROP | B181: EQ | C181: 4215.9 | D181: 4236 | E181: 4173.05 | F181: 4199.6 | G181: 4219.8 | H181: 4212.95 | I181: 3010 | J181: 12642444.35 | K181: 2019-01-02 | L181: 1168 | M181: INE462A01022
A182: BBL | B182: EQ | C182: 1162.6 | D182: 1182.05 | E182: 1161.05 | F182: 1168.4 | G182: 1166.5 | H182: 1164.4 | I182: 6199 | J182: 7285139.1 | K182: 2019-01-02 | L182: 622 | M182: INE464A01028
A183: BBTC | B183: EQ | C183: 1320 | D183: 1331 | E183: 1292 | F183: 1305.25 | G183: 1302.2 | H183: 1323.9 | I183: 57452 | J183: 75524119.6 | K183: 2019-01-02 | L183: 3383 | M183: INE050A01025
A184: BCG | B184: EQ | C184: 2.65 | D184: 2.7 | E184: 2.6 | F184: 2.65 | G184: 2.65 | H184: 2.7 | I184: 447549 | J184: 1183870.3 | K184: 2019-01-02 | L184: 623 | M184: INE425B01027
A185: BDL | B185: EQ | C185: 273.35 | D185: 284.4 | E185: 273.35 | F185: 281.6 | G185: 281.7 | H185: 276.3 | I185: 23061 | J185: 6479684.2 | K185: 2019-01-02 | L185: 1341 | M185: INE171Z01018
A186: BEARDSELL | B186: EQ | C186: 26 | D186: 26 | E186: 24.45 | F186: 24.85 | G186: 25 | H186: 25.3 | I186: 2921 | J186: 72888.05 | K186: 2019-01-02 | L186: 28 | M186: INE520H01022
A187: BEDMUTHA | B187: BE | C187: 22.8 | D187: 22.8 | E187: 22.8 | F187: 22.8 | G187: 22.8 | H187: 21.75 | I187: 11166 | J187: 254584.8 | K187: 2019-01-02 | L187: 32 | M187: INE844K01012
A188: BEL | B188: EQ | C188: 87.25 | D188: 90.25 | E188: 86.75 | F188: 89.7 | G188: 90 | H188: 87.45 | I188: 10231387 | J188: 905564833.5 | K188: 2019-01-02 | L188: 46781 | M188: INE263A01024
A189: BEML | B189: EQ | C189: 903 | D189: 929.7 | E189: 895 | F189: 922.9 | G189: 922 | H189: 903.35 | I189: 4512582 | J189: 4155005394 | K189: 2019-01-02 | L189: 78947 | M189: INE258A01016
A190: BEPL | B190: EQ | C190: 86.85 | D190: 93.75 | E190: 85.5 | F190: 89.25 | G190: 89 | H190: 87.2 | I190: 870719 | J190: 79003026.85 | K190: 2019-01-02 | L190: 8018 | M190: INE922A01025
A191: BERGEPAINT | B191: EQ | C191: 330.6 | D191: 331.85 | E191: 325.95 | F191: 327.3 | G191: 327.2 | H191: 332.5 | I191: 1331713 | J191: 436178955.2 | K191: 2019-01-02 | L191: 13848 | M191: INE463A01038
A192: BFINVEST | B192: EQ | C192: 254.95 | D192: 265.8 | E192: 252.1 | F192: 254.5 | G192: 253 | H192: 257.95 | I192: 288838 | J192: 75019007.15 | K192: 2019-01-02 | L192: 7220 | M192: INE878K01010
A193: BFUTILITIE | B193: EQ | C193: 220.2 | D193: 230.8 | E193: 219 | F193: 223.9 | G193: 223.5 | H193: 221.45 | I193: 1282189 | J193: 288663364.4 | K193: 2019-01-02 | L193: 20706 | M193: INE243D01012
A194: BGLOBAL | B194: BE | C194: 2.95 | D194: 2.95 | E194: 2.75 | F194: 2.95 | G194: 2.95 | H194: 2.85 | I194: 6492 | J194: 18994.4 | K194: 2019-01-02 | L194: 15 | M194: INE224M01013
A195: BGRENERGY | B195: EQ | C195: 61.3 | D195: 62.05 | E195: 60.25 | F195: 60.9 | G195: 60.6 | H195: 61.75 | I195: 52426 | J195: 3203323.8 | K195: 2019-01-02 | L195: 504 | M195: INE661I01014
A196: BHAGERIA | B196: EQ | C196: 285.2 | D196: 287.5 | E196: 281.3 | F196: 282.75 | G196: 282.5 | H196: 286.95 | I196: 4395 | J196: 1248010.85 | K196: 2019-01-02 | L196: 189 | M196: INE354C01027
A197: BHAGYANGR | B197: EQ | C197: 32 | D197: 32.9 | E197: 29.2 | F197: 32 | G197: 32 | H197: 31.4 | I197: 9631 | J197: 303406.9 | K197: 2019-01-02 | L197: 132 | M197: INE458B01036
A198: BHAGYAPROP | B198: EQ | C198: 28.1 | D198: 28.8 | E198: 27.6 | F198: 28.75 | G198: 28.8 | H198: 28.4 | I198: 377 | J198: 10691.2 | K198: 2019-01-02 | L198: 11 | M198: INE363W01018
A199: BHANDARI | B199: EQ | C199: 2.1 | D199: 2.1 | E199: 2 | F199: 2 | G199: 2 | H199: 2.1 | I199: 94444 | J199: 192949.3 | K199: 2019-01-02 | L199: 91 | M199: INE474E01029
A200: BHARATFIN | B200: EQ | C200: 1011.45 | D200: 1014.6 | E200: 995.75 | F200: 1001.4 | G200: 1001.15 | H200: 1011.85 | I200: 199322 | J200: 200174188.7 | K200: 2019-01-02 | L200: 10264 | M200: INE180K01011
... 1436 more rows

Sheet Sheet1 (hidden)
